Workbook

Sheet Disclaimer
A10: Multi-Sector Option Model
A12: Introduction and Disclaimer

Sheet Model Description (hidden)
A1: Multi-Sector Option Model
A3: Model Description

Sheet Inputs (hidden)
A1: Characteristics - Inputs required
B3: Key
C4: Inputs required
C5: Do not change
B8: Portfolio Inputs
AE9: Externally
C10: Allocation | D10: Growth% | E10: Global% | F10: FX Hedging Level | G10: Total FX Hedging Exposure | H10: Directly or externally managed | AE10: Directly
B11: Liquid - Defensive | C11: 0.225 | D11: 0 | E11: 0.4 | F11: 1 | G11: =C11*E11*F11 -> 0.09 | H11: Externally
B12: Liquid - Growth | C12: 0.475 | D12: 1 | E12: 0.5 | F12: 0.5 | G12: =C12*E12*F12 -> 0.11875 | H12: Directly
B13: Illiquid | C13: 0.3 | D13: 0.75 | E13: 0.4 | F13: 1 | G13: =C13*E13*F13 -> 0.12 | H13: Directly
C14: =SUM(C11:C13) -> 1
B17: Portfolio characteristics
C19: Liquid | E19: Illiquid
C20: Growth | D20: Defensive | E20: Growth | F20: Defensive
B21: Domestic | C21: =C12*D12*(1-E12) -> 0.2375 | D21: =C11*(1-D11)*(1-E11) -> 0.135 | E21: =C13*D13*(1-E13) -> 0.135 | F21: =C13*(1-D13)*(1-E13) -> 0.045 | G21: =SUM(C21:F21) -> 0.5525
B22: Global | C22: =C12*D12*E12 -> 0.2375 | D22: =C11*(1-D11)*E11 -> 0.09 | E22: =C13*D13*E13 -> 0.09 | F22: =C13*(1-D13)*E13 -> 0.03 | G22: =SUM(C22:F22) -> 0.4475
C23: =SUM(C21:C22) -> 0.475 | D23: =SUM(D21:D22) -> 0.225 | E23: =SUM(E21:E22) -> 0.225 | F23: =SUM(F21:F22) -> 0.075
C24: =C23+D23 -> 0.7 | E24: =E23+F23 -> 0.3 | G24: =SUM(G21:G22) -> 1
B27: Return and risk expectations
C29: E(Return) | D29: E(Volatility) | E29: Valuation frequency (every x mths) | F29: Deterministic Monthly Movement
B30: Liquid - Defensive | C30: 0.02 | D30: 0.03 | F30: =($C$38/12*C30+D30*$C$39*SQRT($C$38/12))/$C$38 -> 0.009831632476
B31: Liquid - Growth | C31: 0.06 | D31: 0.12 | F31: =($C$38/12*C31-D31*$C$39*SQRT($C$38/12))/$C$38 -> -0.02765986324
B32: Illiquid | C32: 0.06 | D32: 0.07 | E32: 6 | F32: =IF(E32=1,I32,0) -> 0 | G32: =IF(E32=1,F32,(I32*E32)) -> -0.08430952133 | H32: periodic revaluation | I32: =($C$38/12*C32-D32*SQRT($C$38/12)*$C$39)/$C$38 -> -0.01405158689 | J32: monthly theoretical
B33: FX | C33: 0 | D33: 0.07 | F33: =($C$38/12*C33-D33*$C$39*SQRT($C$38/12))/$C$38 -> -0.01905158689
B36: Market event
B38: Timeframe (duration of the shock) | C38: 18 | D38: months
B39: Number of Standard Deviations | C39: 4
B42: Member / flows event
B44: Degree of member switching | C44: Initial month: | D44: 0.01 | E44: Subsequent months: | F44: 0.005
B45: Net fund flows (normal) | C45: 0.005 | D45: per month
B46: Impairment to fund flows (shock) | C46: -0.01 | D46: per month | E46: (e.g. reduced contributions, early release scenario etc.)
B47: Banker option obligations | C47: Single Sector % in Illiquid Assets | D47: % Flows out of illiquid single sector options (p/m) | E47: Illiquid single sector options as a % of multi-sector option (p/m) | F47: Total monthly cashflow requirements
C48: 1 | D48: 0.02 | E48: 0.02 | F48: =C48*D48*E48 -> 0.0004
B51: Correlation Matrix
B53: Liquid Defensive | C53: 1 | D53: =0 -> 0 | E53: 0
B54: Liquid Growth | C54: =D53 -> 0 | D54: 1 | E54: 0.7
B55: Illiquid | C55: =E53 -> 0 | D55: =E54 -> 0.7 | E55: 1
B58: Cost of transacting illiquids
B60: Fixed cost | C60: 0.05 | D60: (linked to stamp duty etc)
B61: Variable cost | C61: 0.04 | D61: multiple of the variability of the environment (i.e. # standard deviations)

Sheet Workings (hidden)
A1: Workings - Do not touch
BS4: Tracking Error Calcs | CC4: Impairment to E(Return)
C5: 100 | D5: Start of month positions | O5: Market moves | Y5: Step 1 - Adjusted Dollar Exposures | AJ5: Step 2 - Cashflow demands | AQ5: Step 3- Simple targeted portfolio weights | AX5: Step 4 - Adjusted portfolio weights (accounting for illiquids and balancing G/D) | BS5: Defensive | BT5: Growth | BU5: Illiquid | BV5: Defensive | BW5: Growth | BX5: Illiquid | CB5: Tracking Error | CC5: SAA E(Ret) | CD5: Actual E(Ret) | CE5: Change in E(Ret) | CF5: Mispricing
C6: Month | D6: Liquid - Defensive (Domestic) | E6: Liquid - Defensive (Global) | F6: Liquid - Growth (Domestic) | G6: Liquid - Growth (Global) | H6: Illiquid (Domestic) | I6: Illiquid (Global) | J6: Total | K6: Total Illiquid (%) | L6: FX Exposure (External) | M6: FX Exposure (Direct) | N6: Total FX Exposure | O6: Liquid - Defensive (Domestic) | P6: Liquid - Defensive (Global) | Q6: Liquid - Growth (Domestic) | R6: Liquid - Growth (Global) | S6: Illiquid (Domestic) | T6: Illiquid (Global) | U6: Theoretical Illiquid (Domestic) | V6: Theoretical Illiquid (Global) | W6: FX Exposure (External) | X6: FX Exposure (Direct) | Y6: Liquid - Defensive (Domestic) | Z6: Liquid - Defensive (Global) | AA6: Liquid - Growth (Domestic) | AB6: Liquid - Growth (Global) | AC6: Illiquid (Domestic) | AD6: Illiquid (Global) | AE6: Total Asset Holdings | AF6: FX Exposure (External) | AG6: FX Exposure (Direct) | AH6: Total FX Exposure | AI6: Total Portfolio Value | AJ6: FX cashflow | AK6: Traditional Flows | AL6: Impairment to Flows | AM6: Member switching | AN6: Total | AO6: Adjusted assets | AP6: Banker Option | AQ6: Liquid - Defensive (Domestic) | AR6: Liquid - Defensive (Global) | AS6: Liquid - Growth (Domestic) | AT6: Liquid - Growth (Global) | AU6: Illiquid (Domestic) | AV6: Illiquid (Global) | AW6: G/D | AX6: Illiquid (Domestic) | AY6: Illiquid (Global) | AZ6: G/D contribution from illiquids | BA6: Remaining Growth Demand | BB6: Liquid - Growth (Domestic) | BC6: Liquid - Growth (Global) | BD6: Remaining Defensive Demand | BE6: Liquid - Defensive (Domestic) | BF6: Liquid - Defensive (Global) | BG6: Total Portfolio (Check) | BH6: G/D (Check) | BI6: FX Exposure (External) | BJ6: FX Exposure (Direct) | BK6: Total FX Exposure | BL6: Liquid - Defensive (Domestic) | BM6: Liquid - Defensive (Global) | BN6: Liquid - Growth (Domestic) | BO6: Liquid - Growth (Global) | BP6: Illiquid (Domestic) | BQ6: Illiquid (Global) | BR6: Total Illiquid | BS6: 0 | BT6: 0 | BU6: 0 | BV6: =BS6*Inputs!$D$30 -> 0 | BW6: =BT6*Inputs!$D$31 -> 0 | BX6: =BU6*Inputs!$D$32 -> 0 | BY6: =SUMPRODUCT($BV6:$BX6,Inputs!$C$53:$E$53) -> 0 | BZ6: =SUMPRODUCT($BV6:$BX6,Inputs!$C$54:$E$54) -> 0 | CA6: =SUMPRODUCT($BV6:$BX6,Inputs!$C$55:$E$55) -> 0 | CB6: =SQRT(BV6*BY6+BW6*BZ6+BX6*CA6) -> 0 | CC6: =Inputs!$D$23*Inputs!$C$30+Inputs!$C$23*Inputs!$C$31+Inputs!$E$24*Inputs!$C$32 -> 0.051 | CD6: =CC6 -> 0.051 | CE6: =BS6*Inputs!$C$30+BT6*Inputs!$C$31+BU6*Inputs!$C$32 -> 0 | CF6: Cumulative mispricing Illiquid (Domestic) | CG6: Cumulative mispricing Illiquid (Global) | CH6: Portfolio Mispricing | CI6: Cumulative cost of selling illiquid assets | CJ6: Target Exposure to Illiquid Assets
C7: 1 | D7: =Inputs!C11*(1-Inputs!E11)*C5 -> 13.5 | E7: =Inputs!C11*Inputs!E11*C5 -> 9 | F7: =Inputs!C12*(1-Inputs!E12)*C5 -> 23.75 | G7: =Inputs!$C$12*Inputs!$E$12*C5 -> 23.75 | H7: =Inputs!C13*(1-Inputs!E13)*C5 -> 18 | I7: =Inputs!C13*Inputs!E13*C5 -> 12 | J7: =SUM(D7:I7) -> 100 | K7: =(H7+I7)/J7 -> 0.3 | L7: =SUMIF(Inputs!$H$11:$H$13,"Externally",Inputs!$G$11:$G$13)*J7 -> 9 | M7: =SUMIF(Inputs!$H$11:$H$13,"Directly",Inputs!$G$11:$G$13)*J7 -> 23.875 | N7: =L7+M7 -> 32.875 | O7: =Inputs!$F$30 -> 0.009831632476 | P7: =Inputs!$F$30 -> 0.009831632476 | Q7: =Inputs!$F$31 -> -0.02765986324 | R7: =Inputs!$F$31 -> -0.02765986324 | S7: =IF(MOD(C7,Inputs!$E$32)=0,Inputs!$G$32,Inputs!$F$32) -> 0 | T7: =S7 -> 0 | U7: =Inputs!$I$32 -> -0.01405158689 | V7: =U7 -> -0.01405158689 | W7: =Inputs!$F$33 -> -0.01905158689 | X7: =Inputs!$F$33 -> -0.01905158689 | Y7: =D7*(1+O7) -> 13.63272704 | Z7: 9.088484692 | AA7: 23.09307825 | AB7: 23.09307825 | AC7: 18 | AD7: 12 | AE7: =SUM(Y7:AD7) -> 98.90736823 | AF7: =L7*(1+W7) -> 8.828535718 | AG7: =M7*(1+X7) -> 23.42014336 | AH7: =AF7+AG7 -> 32.24867908 | AI7: =AE7+AG7-M7 -> 98.45251159 | AJ7: =AG7-M7 -> -0.454856637 | AK7: =Inputs!$C$45*$C$5 -> 0.5 | AL7: =Inputs!$C$46*$C$5 -> -1 | AM7: =-Inputs!$D$44*J7 -> -1 | AN7: =SUM(AJ7:AM7) -> -1.954856637 | AO7: =AE7+AN7 -> 96.95251159 | AP7: =-J7*Inputs!$F$48 -> -0.04 | AQ7: =Inputs!$C$11*(1-Inputs!$E$11)*AO7 -> 13.08858906 | AR7: =Inputs!$C$11*Inputs!$E$11*AO7 -> 8.725726043 | AS7: =Inputs!$C$12*(1-Inputs!$E$12)*AO7 -> 23.0262215 | AT7: =Inputs!$C$12*Inputs!$E$12*AO7 -> 23.0262215 | AU7: =Inputs!$C$13*(1-Inputs!$E$13)*AO7 -> 17.45145209 | AV7: =Inputs!$C$13*Inputs!$E$13*AO7 -> 11.63430139 | AW7: =((AQ7+AR7)*Inputs!$D$11 + (AS7+AT7)*Inputs!$D$12 + (AU7+AV7)*Inputs!$D$13)/AO7 -> 0.7 | AX7: =AC7-AP7*Inputs!$E$21/Inputs!$E$23 -> 18.024 | AY7: =AD7-AP7*Inputs!$E$22/Inputs!$E$23 -> 12.016 | AZ7: =(AX7+AY7)*Inputs!$D$13 -> 22.53 | BA7: =AO7*Inputs!$C$24-AZ7 -> 45.33675811 | BB7: =BA7*(1-Inputs!$E$12) -> 22.66837906 | BC7: =BA7*Inputs!$E$12 -> 22.66837906 | BD7: =AO7-SUM(AX7:AY7)-BA7 -> 21.57575348 | BE7: =BD7*(1-Inputs!$E$11) -> 12.94545209 | BF7: =BD7*Inputs!$E$11 -> 8.630301391 | BG7: =SUM(AX7,AY7,BB7,BC7,BE7,BF7) -> 96.95251159 | BH7: =((AX7+AY7)*Inputs!$D$13 + (BB7+BC7)*Inputs!$D$12 + (BE7+BF7)*Inputs!$D$11)/BG7 -> 0.7 | BI7: =AY7*IF(Inputs!$H$13="Externally",Inputs!$F$13,0)+BC7*IF(Inputs!$H$12="Externally",Inputs!$F$12,0)+BF7*IF(Inputs!$H$11="Externally",Inputs!$F$11,0) -> 8.630301391 | BJ7: =AY7*IF(Inputs!$H$13="Directly",Inputs!$F$13,0)+BC7*IF(Inputs!$H$12="Directly",Inputs!$F$12,0)+BF7*IF(Inputs!$H$11="Directly",Inputs!$F$11,0) -> 23.35018953 | BK7: =SUM(BI7:BJ7) -> 31.98049092 | BL7: =BE7/BG7 -> 0.1335236383 | BM7: =BF7/BG7 -> 0.08901575884 | BN7: =BB7/BG7 -> 0.2338090957 | BO7: =BC7/BG7 -> 0.2338090957 | BP7: =AX7/BG7 -> 0.1859054469 | BQ7: =AY7/BG7 -> 0.1239369646 | BR7: =BP7+BQ7 -> 0.3098424116 | BS7: =SUM(BL7:BM7)-Inputs!$D$23 -> -0.002460602896 | BT7: =SUM(BN7:BO7)-Inputs!$C$23 -> -0.007381808687 | BU7: =SUM(BP7:BQ7)-Inputs!$E$24 -> 0.009842411582 | BV7: =BS7*Inputs!$D$30 -> -7.381808687e-05 | BW7: =BT7*Inputs!$D$31 -> -0.0008858170424 | BX7: =BU7*Inputs!$D$32 -> 0.0006889688108 | BY7: =SUMPRODUCT($BV7:$BX7,Inputs!$C$53:$E$53) -> -7.381808687e-05 | BZ7: =SUMPRODUCT($BV7:$BX7,Inputs!$C$54:$E$54) -> -0.0004035388749 | CA7: =SUMPRODUCT($BV7:$BX7,Inputs!$C$55:$E$55) -> 6.889688108e-05 | CB7: =SQRT(BV7*BY7+BW7*BZ7+BX7*CA7) -> 0.0006406079338 | CC7: =Inputs!$D$23*Inputs!$C$30+Inputs!$C$23*Inputs!$C$31+Inputs!$E$24*Inputs!$C$32 -> 0.051 | CD7: =(Inputs!$D$23+BS7)*Inputs!$C$30+(Inputs!$C$23+BT7)*Inputs!$C$31+(Inputs!$E$24+BU7)*Inputs!$C$32 -> 0.05109842412 | CE7: =BS7*Inputs!$C$30+BT7*Inputs!$C$31+BU7*Inputs!$C$32 -> 9.842411582e-05 | CF7: =U7-S7 -> -0.01405158689 | CG7: =V7-T7 -> -0.01405158689 | CH7: =-(CF7*H7+CG7*I7)/BG7 -> 0.004347980261 | CI7: =BU7*(Inputs!$C$60+Inputs!$C$39*Inputs!$C$61) -> 0.002066906432 | CJ7: =Inputs!$E$24 -> 0.3
C8: 2 | D8: =IF($C8-1 >Inputs!$C$38,"",BE7) -> 12.94545209 | E8: =IF($C8-1 >Inputs!$C$38,"",BF7) -> 8.630301391 | F8: =IF($C8-1 >Inputs!$C$38,"",BB7) -> 22.66837906 | G8: =IF($C8-1 >Inputs!$C$38,"",BC7) -> 22.66837906 | H8: =IF($C8-1 >Inputs!$C$38,"",AX7) -> 18.024 | I8: =IF($C8-1 >Inputs!$C$38,"",AY7) -> 12.016 | J8: =IF($C8-1 >Inputs!$C$38,"",SUM(D8:I8)) -> 96.95251159 | K8: =IF($J8="","",(H8+I8)/J8) -> 0.3098424116 | L8: =IF($C8-1 >Inputs!$C$38,"",BI7) -> 8.630301391 | M8: =IF($C8-1 >Inputs!$C$38,"",BJ7) -> 23.35018953 | N8: =IF($C8-1 >Inputs!$C$38,"",L8+M8) -> 31.98049092 | O8: =IF($C8 >Inputs!$C$38,"",Inputs!$F$30) -> 0.009831632476 | P8: =IF($C8 >Inputs!$C$38,"",Inputs!$F$30) -> 0.009831632476 | Q8: =IF($C8 >Inputs!$C$38,"",Inputs!$F$31) -> -0.02765986324 | R8: =IF($C8 >Inputs!$C$38,"",Inputs!$F$31) -> -0.02765986324 | S8: =IF($C8 >Inputs!$C$38,"",IF(MOD(C8,Inputs!$E$32)=0,Inputs!$G$32,Inputs!$F$32)) -> 0 | T8: =S8 -> 0 | U8: =IF($C8 >Inputs!$C$38,"",Inputs!$I$32) -> -0.01405158689 | V8: =U8 -> -0.01405158689 | W8: =IF($C8 >Inputs!$C$38,"",Inputs!$F$33) -> -0.01905158689 | X8: =IF($C8 >Inputs!$C$38,"",Inputs!$F$33) -> -0.01905158689 | Y8: =IF($C8 >Inputs!$C$38,"",D8*(1+O8)) -> 13.07272701 | Z8: =IF($C8 >Inputs!$C$38,"",E8*(1+P8)) -> 8.715151342 | AA8: =IF($C8 >Inputs!$C$38,"",F8*(1+Q8)) -> 22.04137479 | AB8: =IF($C8 >Inputs!$C$38,"",G8*(1+R8)) -> 22.04137479 | AC8: =IF($C8 >Inputs!$C$38,"",H8*(1+S8)) -> 18.024 | AD8: =IF($C8 >Inputs!$C$38,"",I8*(1+T8)) -> 12.016 | AE8: =IF($C8 >Inputs!$C$38,"",SUM(Y8:AD8)) -> 95.91062794 | AF8: =IF($C8 >Inputs!$C$38,"",L8*(1+W8)) -> 8.465880454 | AG8: =IF($C8 >Inputs!$C$38,"",M8*(1+X8)) -> 22.90533136 | AH8: =IF($C8 >Inputs!$C$38,"",AF8+AG8) -> 31.37121182 | AI8: =IF($C8 >Inputs!$C$38,"",AE8+AG8-M8) -> 95.46576977 | AJ8: =IF($C8 >Inputs!$C$38,"",AG8-M8) -> -0.4448581647 | AK8: =IF($C8 >Inputs!$C$38,"",Inputs!$C$45*$C$5) -> 0.5 | AL8: =IF($C8 >Inputs!$C$38,"",Inputs!$C$46*$C$5) -> -1 | AM8: =IF($C8 >Inputs!$C$38,"",-Inputs!$F$44*J8) -> -0.4847625579 | AN8: =IF($C8 >Inputs!$C$38,"",SUM(AJ8:AM8)) -> -1.429620723 | AO8: =IF($C8 >Inputs!$C$38,"",AE8+AN8) -> 94.48100722 | AP8: =-J8*Inputs!$F$48 -> -0.03878100464 | AQ8: =IF($C8 >Inputs!$C$38,"",Inputs!$C$11*(1-Inputs!$E$11)*AO8) -> 12.75493597 | AR8: =IF($C8 >Inputs!$C$38,"",Inputs!$C$11*Inputs!$E$11*AO8) -> 8.50329065 | AS8: =IF($C8 >Inputs!$C$38,"",Inputs!$C$12*(1-Inputs!$E$12)*AO8) -> 22.43923921 | AT8: =IF($C8 >Inputs!$C$38,"",Inputs!$C$12*Inputs!$E$12*AO8) -> 22.43923921 | AU8: =IF($C8 >Inputs!$C$38,"",Inputs!$C$13*(1-Inputs!$E$13)*AO8) -> 17.0065813 | AV8: =IF($C8 >Inputs!$C$38,"",Inputs!$C$13*Inputs!$E$13*AO8) -> 11.33772087 | AW8: =IF($C8 >Inputs!$C$38,"",((AQ8+AR8)*Inputs!$D$11 + (AS8+AT8)*Inputs!$D$12 + (AU8+AV8)*Inputs!$D$13)/AO8) -> 0.7 | AX8: =AC8-AP8*Inputs!$E$21/Inputs!$E$23 -> 18.0472686 | AY8: =AD8-AP8*Inputs!$E$22/Inputs!$E$23 -> 12.0315124 | AZ8: =IF($C8 >Inputs!$C$38,"",(AX8+AY8)*Inputs!$D$13) -> 22.55908575 | BA8: =IF($C8 >Inputs!$C$38,"",AO8*Inputs!$C$24-AZ8) -> 43.5776193 | BB8: =IF($C8 >Inputs!$C$38,"",BA8*(1-Inputs!$E$12)) -> 21.78880965 | BC8: =IF($C8 >Inputs!$C$38,"",BA8*Inputs!$E$12) -> 21.78880965 | BD8: =IF($C8 >Inputs!$C$38,"",AO8-SUM(AX8:AY8)-BA8) -> 20.82460691 | BE8: =IF($C8 >Inputs!$C$38,"",BD8*(1-Inputs!$E$11)) -> 12.49476415 | BF8: =IF($C8 >Inputs!$C$38,"",BD8*Inputs!$E$11) -> 8.329842766 | BG8: =IF($C8 >Inputs!$C$38,"",SUM(AX8,AY8,BB8,BC8,BE8,BF8)) -> 94.48100722 | BH8: =IF($C8 >Inputs!$C$38,"",((AX8+AY8)*Inputs!$D$13 + (BB8+BC8)*Inputs!$D$12 + (BE8+BF8)*Inputs!$D$11)/BG8) -> 0.7 | BI8: =IF($C8 >Inputs!$C$38,"",AY8*IF(Inputs!$H$13="Externally",Inputs!$F$13,0)+BC8*IF(Inputs!$H$12="Externally",Inputs!$F$12,0)+BF8*IF(Inputs!$H$11="Externally",Inputs!$F$11,0)) -> 8.329842766 | BJ8: =IF($C8 >Inputs!$C$38,"",AY8*IF(Inputs!$H$13="Directly",Inputs!$F$13,0)+BC8*IF(Inputs!$H$12="Directly",Inputs!$F$12,0)+BF8*IF(Inputs!$H$11="Directly",Inputs!$F$11,0)) -> 22.92591723 | BK8: =IF($C8 >Inputs!$C$38,"",SUM(BI8:BJ8)) -> 31.25575999 | BL8: =IF($C8 >Inputs!$C$38,"",BE8/BG8) -> 0.1322463055 | BM8: =IF($C8 >Inputs!$C$38,"",BF8/BG8) -> 0.08816420369 | BN8: =IF($C8 >Inputs!$C$38,"",BB8/BG8) -> 0.2306157639 | BO8: =IF($C8 >Inputs!$C$38,"",BC8/BG8) -> 0.2306157639 | BP8: =IF($C8 >Inputs!$C$38,"",AX8/BG8) -> 0.1910147778 | BQ8: =IF($C8 >Inputs!$C$38,"",AY8/BG8) -> 0.1273431852 | BR8: =IF($C8 >Inputs!$C$38,"",BP8+BQ8) -> 0.3183579631 | BS8: =IF($C8 >Inputs!$C$38,"",SUM(BL8:BM8)-Inputs!$D$23) -> -0.004589490763 | BT8: =IF($C8 >Inputs!$C$38,"",SUM(BN8:BO8)-Inputs!$C$23) -> -0.01376847229 | BU8: =IF($C8 >Inputs!$C$38,"",SUM(BP8:BQ8)-Inputs!$E$24) -> 0.01835796305 | BV8: =IF($C8 >Inputs!$C$38,"",BS8*Inputs!$D$30) -> -0.0001376847229 | BW8: =IF($C8 >Inputs!$C$38,"",BT8*Inputs!$D$31) -> -0.001652216675 | BX8: =IF($C8 >Inputs!$C$38,"",BU8*Inputs!$D$32) -> 0.001285057414 | BY8: =IF($C8 >Inputs!$C$38,"",SUMPRODUCT($BV8:$BX8,Inputs!$C$53:$E$53)) -> -0.0001376847229 | BZ8: =IF($C8 >Inputs!$C$38,"",SUMPRODUCT($BV8:$BX8,Inputs!$C$54:$E$54)) -> -0.0007526764851 | CA8: =IF($C8 >Inputs!$C$38,"",SUMPRODUCT($BV8:$BX8,Inputs!$C$55:$E$55)) -> 0.0001285057414 | CB8: =IF($C8 >Inputs!$C$38,"",SQRT(BV8*BY8+BW8*BZ8+BX8*CA8)) -> 0.001194855212 | CC8: =Inputs!$D$23*Inputs!$C$30+Inputs!$C$23*Inputs!$C$31+Inputs!$E$24*Inputs!$C$32 -> 0.051 | CD8: =(Inputs!$D$23+BS8)*Inputs!$C$30+(Inputs!$C$23+BT8)*Inputs!$C$31+(Inputs!$E$24+BU8)*Inputs!$C$32 -> 0.05118357963 | CE8: =BS8*Inputs!$C$30+BT8*Inputs!$C$31+BU8*Inputs!$C$32 -> 0.0001835796305 | CF8: =IF($C8 >Inputs!$C$38,"",IF(MOD($C8,Inputs!$E$32)=0,0,CF7+(U8-S8))) -> -0.02810317378 | CG8: =IF($C8 >Inputs!$C$38,"",IF(MOD($C8,Inputs!$E$32)=0,0,CG7+(V8-T8))) -> -0.02810317378 | CH8: =IF($C8 >Inputs!$C$38,"",-(CF8*H8+CG8*I8)/BG8) -> 0.008935333832 | CI8: =IF($C8 >Inputs!$C$38,"",BU8*(Inputs!$C$60+Inputs!$C$39*Inputs!$C$61)) -> 0.003855172241 | CJ8: =IF($C8 >Inputs!$C$38,"",Inputs!$E$24) -> 0.3
C9: 3 | D9: =IF($C9-1 >Inputs!$C$38,"",BE8) -> 12.49476415 | E9: =IF($C9-1 >Inputs!$C$38,"",BF8) -> 8.329842766 | F9: =IF($C9-1 >Inputs!$C$38,"",BB8) -> 21.78880965 | G9: =IF($C9-1 >Inputs!$C$38,"",BC8) -> 21.78880965 | H9: =IF($C9-1 >Inputs!$C$38,"",AX8) -> 18.0472686 | I9: =IF($C9-1 >Inputs!$C$38,"",AY8) -> 12.0315124 | J9: =IF($C9-1 >Inputs!$C$38,"",SUM(D9:I9)) -> 94.48100722 | K9: 0.3183579631 | L9: =IF($C9-1 >Inputs!$C$38,"",BI8) -> 8.329842766 | M9: =IF($C9-1 >Inputs!$C$38,"",BJ8) -> 22.92591723 | N9: =IF($C9-1 >Inputs!$C$38,"",L9+M9) -> 31.25575999 | O9: =IF($C9 >Inputs!$C$38,"",Inputs!$F$30) -> 0.009831632476 | P9: =IF($C9 >Inputs!$C$38,"",Inputs!$F$30) -> 0.009831632476 | Q9: =IF($C9 >Inputs!$C$38,"",Inputs!$F$31) -> -0.02765986324 | R9: =IF($C9 >Inputs!$C$38,"",Inputs!$F$31) -> -0.02765986324 | S9: =IF($C9 >Inputs!$C$38,"",IF(MOD(C9,Inputs!$E$32)=0,Inputs!$G$32,Inputs!$F$32)) -> 0 | T9: 0 | U9: =IF($C9 >Inputs!$C$38,"",Inputs!$I$32) -> -0.01405158689 | V9: -0.01405158689 | W9: =IF($C9 >Inputs!$C$38,"",Inputs!$F$33) -> -0.01905158689 | X9: =IF($C9 >Inputs!$C$38,"",Inputs!$F$33) -> -0.01905158689 | Y9: =IF($C9 >Inputs!$C$38,"",D9*(1+O9)) -> 12.61760808 | Z9: =IF($C9 >Inputs!$C$38,"",E9*(1+P9)) -> 8.411738718 | AA9: =IF($C9 >Inputs!$C$38,"",F9*(1+Q9)) -> 21.18613415 | AB9: =IF($C9 >Inputs!$C$38,"",G9*(1+R9)) -> 21.18613415 | AC9: =IF($C9 >Inputs!$C$38,"",H9*(1+S9)) -> 18.0472686 | AD9: =IF($C9 >Inputs!$C$38,"",I9*(1+T9)) -> 12.0315124 | AE9: =IF($C9 >Inputs!$C$38,"",SUM(Y9:AD9)) -> 93.48039611 | AF9: =IF($C9 >Inputs!$C$38,"",L9*(1+W9)) -> 8.171146042 | AG9: =IF($C9 >Inputs!$C$38,"",M9*(1+X9)) -> 22.48914212 | AH9: =IF($C9 >Inputs!$C$38,"",AF9+AG9) -> 30.66028816 | AI9: =IF($C9 >Inputs!$C$38,"",AE9+AG9-M9) -> 93.043621 | AJ9: =IF($C9 >Inputs!$C$38,"",AG9-M9) -> -0.436775104 | AK9: =IF($C9 >Inputs!$C$38,"",Inputs!$C$45*$C$5) -> 0.5 | AL9: =IF($C9 >Inputs!$C$38,"",Inputs!$C$46*$C$5) -> -1 | AM9: =IF($C9 >Inputs!$C$38,"",-Inputs!$F$44*J9) -> -0.4724050361 | AN9: =IF($C9 >Inputs!$C$38,"",SUM(AJ9:AM9)) -> -1.40918014 | AO9: =IF($C9 >Inputs!$C$38,"",AE9+AN9) -> 92.07121597 | AP9: =-J9*Inputs!$F$48 -> -0.03779240289 | AQ9: =IF($C9 >Inputs!$C$38,"",Inputs!$C$11*(1-Inputs!$E$11)*AO9) -> 12.42961416 | AR9: =IF($C9 >Inputs!$C$38,"",Inputs!$C$11*Inputs!$E$11*AO9) -> 8.286409437 | AS9: =IF($C9 >Inputs!$C$38,"",Inputs!$C$12*(1-Inputs!$E$12)*AO9) -> 21.86691379 | AT9: =IF($C9 >Inputs!$C$38,"",Inputs!$C$12*Inputs!$E$12*AO9) -> 21.86691379 | AU9: =IF($C9 >Inputs!$C$38,"",Inputs!$C$13*(1-Inputs!$E$13)*AO9) -> 16.57281887 | AV9: =IF($C9 >Inputs!$C$38,"",Inputs!$C$13*Inputs!$E$13*AO9) -> 11.04854592 | AW9: =IF($C9 >Inputs!$C$38,"",((AQ9+AR9)*Inputs!$D$11 + (AS9+AT9)*Inputs!$D$12 + (AU9+AV9)*Inputs!$D$13)/AO9) -> 0.7 | AX9: =AC9-AP9*Inputs!$E$21/Inputs!$E$23 -> 18.06994404 | AY9: =AD9-AP9*Inputs!$E$22/Inputs!$E$23 -> 12.04662936 | AZ9: =IF($C9 >Inputs!$C$38,"",(AX9+AY9)*Inputs!$D$13) -> 22.58743006 | BA9: =IF($C9 >Inputs!$C$38,"",AO9*Inputs!$C$24-AZ9) -> 41.86242112 | BB9: =IF($C9 >Inputs!$C$38,"",BA9*(1-Inputs!$E$12)) -> 20.93121056 | BC9: =IF($C9 >Inputs!$C$38,"",BA9*Inputs!$E$12) -> 20.93121056 | BD9: =IF($C9 >Inputs!$C$38,"",AO9-SUM(AX9:AY9)-BA9) -> 20.09222144 | BE9: =IF($C9 >Inputs!$C$38,"",BD9*(1-Inputs!$E$11)) -> 12.05533286 | BF9: =IF($C9 >Inputs!$C$38,"",BD9*Inputs!$E$11) -> 8.036888575 | BG9: =IF($C9 >Inputs!$C$38,"",SUM(AX9,AY9,BB9,BC9,BE9,BF9)) -> 92.07121597 | BH9: =IF($C9 >Inputs!$C$38,"",((AX9+AY9)*Inputs!$D$13 + (BB9+BC9)*Inputs!$D$12 + (BE9+BF9)*Inputs!$D$11)/BG9) -> 0.7 | BI9: =IF($C9 >Inputs!$C$38,"",AY9*IF(Inputs!$H$13="Externally",Inputs!$F$13,0)+BC9*IF(Inputs!$H$12="Externally",Inputs!$F$12,0)+BF9*IF(Inputs!$H$11="Externally",Inputs!$F$11,0)) -> 8.036888575 | BJ9: =IF($C9 >Inputs!$C$38,"",AY9*IF(Inputs!$H$13="Directly",Inputs!$F$13,0)+BC9*IF(Inputs!$H$12="Directly",Inputs!$F$12,0)+BF9*IF(Inputs!$H$11="Directly",Inputs!$F$11,0)) -> 22.51223464 | BK9: =IF($C9 >Inputs!$C$38,"",SUM(BI9:BJ9)) -> 30.54912322 | BL9: =IF($C9 >Inputs!$C$38,"",BE9/BG9) -> 0.1309348718 | BM9: =IF($C9 >Inputs!$C$38,"",BF9/BG9) -> 0.08728991456 | BN9: =IF($C9 >Inputs!$C$38,"",BB9/BG9) -> 0.2273371796 | BO9: =IF($C9 >Inputs!$C$38,"",BC9/BG9) -> 0.2273371796 | BP9: =IF($C9 >Inputs!$C$38,"",AX9/BG9) -> 0.1962605126 | BQ9: =IF($C9 >Inputs!$C$38,"",AY9/BG9) -> 0.1308403418 | BR9: =IF($C9 >Inputs!$C$38,"",BP9+BQ9) -> 0.3271008544 | BS9: =IF($C9 >Inputs!$C$38,"",SUM(BL9:BM9)-Inputs!$D$23) -> -0.006775213596 | BT9: =IF($C9 >Inputs!$C$38,"",SUM(BN9:BO9)-Inputs!$C$23) -> -0.02032564079 | BU9: =IF($C9 >Inputs!$C$38,"",SUM(BP9:BQ9)-Inputs!$E$24) -> 0.02710085438 | BV9: =IF($C9 >Inputs!$C$38,"",BS9*Inputs!$D$30) -> -0.0002032564079 | BW9: =IF($C9 >Inputs!$C$38,"",BT9*Inputs!$D$31) -> -0.002439076895 | BX9: =IF($C9 >Inputs!$C$38,"",BU9*Inputs!$D$32) -> 0.001897059807 | BY9: =IF($C9 >Inputs!$C$38,"",SUMPRODUCT($BV9:$BX9,Inputs!$C$53:$E$53)) -> -0.0002032564079 | BZ9: =IF($C9 >Inputs!$C$38,"",SUMPRODUCT($BV9:$BX9,Inputs!$C$54:$E$54)) -> -0.00111113503 | CA9: =IF($C9 >Inputs!$C$38,"",SUMPRODUCT($BV9:$BX9,Inputs!$C$55:$E$55)) -> 0.0001897059807 | CB9: =IF($C9 >Inputs!$C$38,"",SQRT(BV9*BY9+BW9*BZ9+BX9*CA9)) -> 0.001763899242 | CC9: =Inputs!$D$23*Inputs!$C$30+Inputs!$C$23*Inputs!$C$31+Inputs!$E$24*Inputs!$C$32 -> 0.051 | CD9: =(Inputs!$D$23+BS9)*Inputs!$C$30+(Inputs!$C$23+BT9)*Inputs!$C$31+(Inputs!$E$24+BU9)*Inputs!$C$32 -> 0.05127100854 | CE9: =BS9*Inputs!$C$30+BT9*Inputs!$C$31+BU9*Inputs!$C$32 -> 0.0002710085438 | CF9: =IF($C9 >Inputs!$C$38,"",IF(MOD($C9,Inputs!$E$32)=0,0,CF8+(U9-S9))) -> -0.04215476066 | CG9: =IF($C9 >Inputs!$C$38,"",IF(MOD($C9,Inputs!$E$32)=0,0,CG8+(V9-T9))) -> -0.04215476066 | CH9: =IF($C9 >Inputs!$C$38,"",-(CF9*H9+CG9*I9)/BG9) -> 0.013771555 | CI9: =IF($C9 >Inputs!$C$38,"",BU9*(Inputs!$C$60+Inputs!$C$39*Inputs!$C$61)) -> 0.005691179421 | CJ9: =IF($C9 >Inputs!$C$38,"",Inputs!$E$24) -> 0.3
C10: 4 | D10: =IF($C10-1 >Inputs!$C$38,"",BE9) -> 12.05533286 | E10: =IF($C10-1 >Inputs!$C$38,"",BF9) -> 8.036888575 | F10: =IF($C10-1 >Inputs!$C$38,"",BB9) -> 20.93121056 | G10: =IF($C10-1 >Inputs!$C$38,"",BC9) -> 20.93121056 | H10: =IF($C10-1 >Inputs!$C$38,"",AX9) -> 18.06994404 | I10: =IF($C10-1 >Inputs!$C$38,"",AY9) -> 12.04662936 | J10: =IF($C10-1 >Inputs!$C$38,"",SUM(D10:I10)) -> 92.07121597 | K10: 0.3271008544 | L10: =IF($C10-1 >Inputs!$C$38,"",BI9) -> 8.036888575 | M10: =IF($C10-1 >Inputs!$C$38,"",BJ9) -> 22.51223464 | N10: =IF($C10-1 >Inputs!$C$38,"",L10+M10) -> 30.54912322 | O10: =IF($C10 >Inputs!$C$38,"",Inputs!$F$30) -> 0.009831632476 | P10: =IF($C10 >Inputs!$C$38,"",Inputs!$F$30) -> 0.009831632476 | Q10: =IF($C10 >Inputs!$C$38,"",Inputs!$F$31) -> -0.02765986324 | R10: =IF($C10 >Inputs!$C$38,"",Inputs!$F$31) -> -0.02765986324 | S10: =IF($C10 >Inputs!$C$38,"",IF(MOD(C10,Inputs!$E$32)=0,Inputs!$G$32,Inputs!$F$32)) -> 0 | T10: 0 | U10: =IF($C10 >Inputs!$C$38,"",Inputs!$I$32) -> -0.01405158689 | V10: -0.01405158689 | W10: =IF($C10 >Inputs!$C$38,"",Inputs!$F$33) -> -0.01905158689 | X10: =IF($C10 >Inputs!$C$38,"",Inputs!$F$33) -> -0.01905158689 | Y10: =IF($C10 >Inputs!$C$38,"",D10*(1+O10)) -> 12.17385647 | Z10: =IF($C10 >Inputs!$C$38,"",E10*(1+P10)) -> 8.11590431 | AA10: =IF($C10 >Inputs!$C$38,"",F10*(1+Q10)) -> 20.35225614 | AB10: =IF($C10 >Inputs!$C$38,"",G10*(1+R10)) -> 20.35225614 | AC10: =IF($C10 >Inputs!$C$38,"",H10*(1+S10)) -> 18.06994404 | AD10: =IF($C10 >Inputs!$C$38,"",I10*(1+T10)) -> 12.04662936 | AE10: =IF($C10 >Inputs!$C$38,"",SUM(Y10:AD10)) -> 91.11084646 | AF10: =IF($C10 >Inputs!$C$38,"",L10*(1+W10)) -> 7.883773094 | AG10: =IF($C10 >Inputs!$C$38,"",M10*(1+X10)) -> 22.08334085 | AH10: =IF($C10 >Inputs!$C$38,"",AF10+AG10) -> 29.96711394 | AI10: =IF($C10 >Inputs!$C$38,"",AE10+AG10-M10) -> 90.68195267 | AJ10: =IF($C10 >Inputs!$C$38,"",AG10-M10) -> -0.4288937944 | AK10: =IF($C10 >Inputs!$C$38,"",Inputs!$C$45*$C$5) -> 0.5 | AL10: =IF($C10 >Inputs!$C$38,"",Inputs!$C$46*$C$5) -> -1 | AM10: =IF($C10 >Inputs!$C$38,"",-Inputs!$F$44*J10) -> -0.4603560798 | AN10: =IF($C10 >Inputs!$C$38,"",SUM(AJ10:AM10)) -> -1.389249874 | AO10: =IF($C10 >Inputs!$C$38,"",AE10+AN10) -> 89.72159659 | AP10: =-J10*Inputs!$F$48 -> -0.03682848639 | AQ10: =IF($C10 >Inputs!$C$38,"",Inputs!$C$11*(1-Inputs!$E$11)*AO10) -> 12.11241554 | AR10: =IF($C10 >Inputs!$C$38,"",Inputs!$C$11*Inputs!$E$11*AO10) -> 8.074943693 | AS10: =IF($C10 >Inputs!$C$38,"",Inputs!$C$12*(1-Inputs!$E$12)*AO10) -> 21.30887919 | AT10: =IF($C10 >Inputs!$C$38,"",Inputs!$C$12*Inputs!$E$12*AO10) -> 21.30887919 | AU10: =IF($C10 >Inputs!$C$38,"",Inputs!$C$13*(1-Inputs!$E$13)*AO10) -> 16.14988739 | AV10: =IF($C10 >Inputs!$C$38,"",Inputs!$C$13*Inputs!$E$13*AO10) -> 10.76659159 | AW10: =IF($C10 >Inputs!$C$38,"",((AQ10+AR10)*Inputs!$D$11 + (AS10+AT10)*Inputs!$D$12 + (AU10+AV10)*Inputs!$D$13)/AO10) -> 0.7 | AX10: =AC10-AP10*Inputs!$E$21/Inputs!$E$23 -> 18.09204114 | AY10: =AD10-AP10*Inputs!$E$22/Inputs!$E$23 -> 12.06136076 | AZ10: =IF($C10 >Inputs!$C$38,"",(AX10+AY10)*Inputs!$D$13) -> 22.61505142 | BA10: =IF($C10 >Inputs!$C$38,"",AO10*Inputs!$C$24-AZ10) -> 40.19006619 | BB10: =IF($C10 >Inputs!$C$38,"",BA10*(1-Inputs!$E$12)) -> 20.0950331 | BC10: =IF($C10 >Inputs!$C$38,"",BA10*Inputs!$E$12) -> 20.0950331 | BD10: =IF($C10 >Inputs!$C$38,"",AO10-SUM(AX10:AY10)-BA10) -> 19.3781285 | BE10: =IF($C10 >Inputs!$C$38,"",BD10*(1-Inputs!$E$11)) -> 11.6268771 | BF10: =IF($C10 >Inputs!$C$38,"",BD10*Inputs!$E$11) -> 7.751251401 | BG10: =IF($C10 >Inputs!$C$38,"",SUM(AX10,AY10,BB10,BC10,BE10,BF10)) -> 89.72159659 | BH10: =IF($C10 >Inputs!$C$38,"",((AX10+AY10)*Inputs!$D$13 + (BB10+BC10)*Inputs!$D$12 + (BE10+BF10)*Inputs!$D$11)/BG10) -> 0.7 | BI10: =IF($C10 >Inputs!$C$38,"",AY10*IF(Inputs!$H$13="Externally",Inputs!$F$13,0)+BC10*IF(Inputs!$H$12="Externally",Inputs!$F$12,0)+BF10*IF(Inputs!$H$11="Externally",Inputs!$F$11,0)) -> 7.751251401 | BJ10: =IF($C10 >Inputs!$C$38,"",AY10*IF(Inputs!$H$13="Directly",Inputs!$F$13,0)+BC10*IF(Inputs!$H$12="Directly",Inputs!$F$12,0)+BF10*IF(Inputs!$H$11="Directly",Inputs!$F$11,0)) -> 22.10887731 | BK10: =IF($C10 >Inputs!$C$38,"",SUM(BI10:BJ10)) -> 29.86012871 | BL10: =IF($C10 >Inputs!$C$38,"",BE10/BG10) -> 0.1295883883 | BM10: =IF($C10 >Inputs!$C$38,"",BF10/BG10) -> 0.0863922589 | BN10: =IF($C10 >Inputs!$C$38,"",BB10/BG10) -> 0.2239709709 | BO10: =IF($C10 >Inputs!$C$38,"",BC10/BG10) -> 0.2239709709 | BP10: =IF($C10 >Inputs!$C$38,"",AX10/BG10) -> 0.2016464466 | BQ10: =IF($C10 >Inputs!$C$38,"",AY10/BG10) -> 0.1344309644 | BR10: =IF($C10 >Inputs!$C$38,"",BP10+BQ10) -> 0.336077411 | BS10: =IF($C10 >Inputs!$C$38,"",SUM(BL10:BM10)-Inputs!$D$23) -> -0.009019352755 | BT10: =IF($C10 >Inputs!$C$38,"",SUM(BN10:BO10)-Inputs!$C$23) -> -0.02705805827 | BU10: =IF($C10 >Inputs!$C$38,"",SUM(BP10:BQ10)-Inputs!$E$24) -> 0.03607741102 | BV10: =IF($C10 >Inputs!$C$38,"",BS10*Inputs!$D$30) -> -0.0002705805827 | BW10: =IF($C10 >Inputs!$C$38,"",BT10*Inputs!$D$31) -> -0.003246966992 | BX10: =IF($C10 >Inputs!$C$38,"",BU10*Inputs!$D$32) -> 0.002525418771 | BY10: =IF($C10 >Inputs!$C$38,"",SUMPRODUCT($BV10:$BX10,Inputs!$C$53:$E$53)) -> -0.0002705805827 | BZ10: =IF($C10 >Inputs!$C$38,"",SUMPRODUCT($BV10:$BX10,Inputs!$C$54:$E$54)) -> -0.001479173852 | CA10: =IF($C10 >Inputs!$C$38,"",SUMPRODUCT($BV10:$BX10,Inputs!$C$55:$E$55)) -> 0.0002525418771 | CB10: =IF($C10 >Inputs!$C$38,"",SQRT(BV10*BY10+BW10*BZ10+BX10*CA10)) -> 0.002348151724 | CC10: =Inputs!$D$23*Inputs!$C$30+Inputs!$C$23*Inputs!$C$31+Inputs!$E$24*Inputs!$C$32 -> 0.051 | CD10: =(Inputs!$D$23+BS10)*Inputs!$C$30+(Inputs!$C$23+BT10)*Inputs!$C$31+(Inputs!$E$24+BU10)*Inputs!$C$32 -> 0.05136077411 | CE10: =BS10*Inputs!$C$30+BT10*Inputs!$C$31+BU10*Inputs!$C$32 -> 0.0003607741102 | CF10: =IF($C10 >Inputs!$C$38,"",IF(MOD($C10,Inputs!$E$32)=0,0,CF9+(U10-S10))) -> -0.05620634755 | CG10: =IF($C10 >Inputs!$C$38,"",IF(MOD($C10,Inputs!$E$32)=0,0,CG9+(V10-T10))) -> -0.05620634755 | CH10: =IF($C10 >Inputs!$C$38,"",-(CF10*H10+CG10*I10)/BG10) -> 0.01886661246 | CI10: =IF($C10 >Inputs!$C$38,"",BU10*(Inputs!$C$60+Inputs!$C$39*Inputs!$C$61)) -> 0.007576256314 | CJ10: =IF($C10 >Inputs!$C$38,"",Inputs!$E$24) -> 0.3
C11: 5 | D11: =IF($C11-1 >Inputs!$C$38,"",BE10) -> 11.6268771 | E11: =IF($C11-1 >Inputs!$C$38,"",BF10) -> 7.751251401 | F11: =IF($C11-1 >Inputs!$C$38,"",BB10) -> 20.0950331 | G11: =IF($C11-1 >Inputs!$C$38,"",BC10) -> 20.0950331 | H11: =IF($C11-1 >Inputs!$C$38,"",AX10) -> 18.09204114 | I11: =IF($C11-1 >Inputs!$C$38,"",AY10) -> 12.06136076 | J11: =IF($C11-1 >Inputs!$C$38,"",SUM(D11:I11)) -> 89.72159659 | K11: 0.336077411 | L11: =IF($C11-1 >Inputs!$C$38,"",BI10) -> 7.751251401 | M11: =IF($C11-1 >Inputs!$C$38,"",BJ10) -> 22.10887731 | N11: =IF($C11-1 >Inputs!$C$38,"",L11+M11) -> 29.86012871 | O11: =IF($C11 >Inputs!$C$38,"",Inputs!$F$30) -> 0.009831632476 | P11: =IF($C11 >Inputs!$C$38,"",Inputs!$F$30) -> 0.009831632476 | Q11: =IF($C11 >Inputs!$C$38,"",Inputs!$F$31) -> -0.02765986324 | R11: =IF($C11 >Inputs!$C$38,"",Inputs!$F$31) -> -0.02765986324 | S11: =IF($C11 >Inputs!$C$38,"",IF(MOD(C11,Inputs!$E$32)=0,Inputs!$G$32,Inputs!$F$32)) -> 0 | T11: 0 | U11: =IF($C11 >Inputs!$C$38,"",Inputs!$I$32) -> -0.01405158689 | V11: -0.01405158689 | W11: =IF($C11 >Inputs!$C$38,"",Inputs!$F$33) -> -0.01905158689 | X11: =IF($C11 >Inputs!$C$38,"",Inputs!$F$33) -> -0.01905158689 | Y11: =IF($C11 >Inputs!$C$38,"",D11*(1+O11)) -> 11.74118828 | Z11: =IF($C11 >Inputs!$C$38,"",E11*(1+P11)) -> 7.827458856 | AA11: =IF($C11 >Inputs!$C$38,"",F11*(1+Q11)) -> 19.53920723 | AB11: =IF($C11 >Inputs!$C$38,"",G11*(1+R11)) -> 19.53920723 | AC11: =IF($C11 >Inputs!$C$38,"",H11*(1+S11)) -> 18.09204114 | AD11: =IF($C11 >Inputs!$C$38,"",I11*(1+T11)) -> 12.06136076 | AE11: =IF($C11 >Inputs!$C$38,"",SUM(Y11:AD11)) -> 88.80046349 | AF11: =IF($C11 >Inputs!$C$38,"",L11*(1+W11)) -> 7.603577762 | AG11: =IF($C11 >Inputs!$C$38,"",M11*(1+X11)) -> 21.68766811 | AH11: =IF($C11 >Inputs!$C$38,"",AF11+AG11) -> 29.29124587 | AI11: =IF($C11 >Inputs!$C$38,"",AE11+AG11-M11) -> 88.37925429 | AJ11: =IF($C11 >Inputs!$C$38,"",AG11-M11) -> -0.421209197 | AK11: =IF($C11 >Inputs!$C$38,"",Inputs!$C$45*$C$5) -> 0.5 | AL11: =IF($C11 >Inputs!$C$38,"",Inputs!$C$46*$C$5) -> -1 | AM11: =IF($C11 >Inputs!$C$38,"",-Inputs!$F$44*J11) -> -0.4486079829 | AN11: =IF($C11 >Inputs!$C$38,"",SUM(AJ11:AM11)) -> -1.36981718 | AO11: =IF($C11 >Inputs!$C$38,"",AE11+AN11) -> 87.43064631 | AP11: =-J11*Inputs!$F$48 -> -0.03588863864 | AQ11: =IF($C11 >Inputs!$C$38,"",Inputs!$C$11*(1-Inputs!$E$11)*AO11) -> 11.80313725 | AR11: =IF($C11 >Inputs!$C$38,"",Inputs!$C$11*Inputs!$E$11*AO11) -> 7.868758168 | AS11: =IF($C11 >Inputs!$C$38,"",Inputs!$C$12*(1-Inputs!$E$12)*AO11) -> 20.7647785 | AT11: =IF($C11 >Inputs!$C$38,"",Inputs!$C$12*Inputs!$E$12*AO11) -> 20.7647785 | AU11: =IF($C11 >Inputs!$C$38,"",Inputs!$C$13*(1-Inputs!$E$13)*AO11) -> 15.73751634 | AV11: =IF($C11 >Inputs!$C$38,"",Inputs!$C$13*Inputs!$E$13*AO11) -> 10.49167756 | AW11: =IF($C11 >Inputs!$C$38,"",((AQ11+AR11)*Inputs!$D$11 + (AS11+AT11)*Inputs!$D$12 + (AU11+AV11)*Inputs!$D$13)/AO11) -> 0.7 | AX11: =AC11-AP11*Inputs!$E$21/Inputs!$E$23 -> 18.11357432 | AY11: =AD11-AP11*Inputs!$E$22/Inputs!$E$23 -> 12.07571621 | AZ11: =IF($C11 >Inputs!$C$38,"",(AX11+AY11)*Inputs!$D$13) -> 22.6419679 | BA11: =IF($C11 >Inputs!$C$38,"",AO11*Inputs!$C$24-AZ11) -> 38.55948452 | BB11: =IF($C11 >Inputs!$C$38,"",BA11*(1-Inputs!$E$12)) -> 19.27974226 | BC11: =IF($C11 >Inputs!$C$38,"",BA11*Inputs!$E$12) -> 19.27974226 | BD11: =IF($C11 >Inputs!$C$38,"",AO11-SUM(AX11:AY11)-BA11) -> 18.68187126 | BE11: =IF($C11 >Inputs!$C$38,"",BD11*(1-Inputs!$E$11)) -> 11.20912276 | BF11: =IF($C11 >Inputs!$C$38,"",BD11*Inputs!$E$11) -> 7.472748504 | BG11: =IF($C11 >Inputs!$C$38,"",SUM(AX11,AY11,BB11,BC11,BE11,BF11)) -> 87.43064631 | BH11: =IF($C11 >Inputs!$C$38,"",((AX11+AY11)*Inputs!$D$13 + (BB11+BC11)*Inputs!$D$12 + (BE11+BF11)*Inputs!$D$11)/BG11) -> 0.7 | BI11: =IF($C11 >Inputs!$C$38,"",AY11*IF(Inputs!$H$13="Externally",Inputs!$F$13,0)+BC11*IF(Inputs!$H$12="Externally",Inputs!$F$12,0)+BF11*IF(Inputs!$H$11="Externally",Inputs!$F$11,0)) -> 7.472748504 | BJ11: =IF($C11 >Inputs!$C$38,"",AY11*IF(Inputs!$H$13="Directly",Inputs!$F$13,0)+BC11*IF(Inputs!$H$12="Directly",Inputs!$F$12,0)+BF11*IF(Inputs!$H$11="Directly",Inputs!$F$11,0)) -> 21.71558734 | BK11: =IF($C11 >Inputs!$C$38,"",SUM(BI11:BJ11)) -> 29.18833585 | BL11: =IF($C11 >Inputs!$C$38,"",BE11/BG11) -> 0.1282058778 | BM11: =IF($C11 >Inputs!$C$38,"",BF11/BG11) -> 0.08547058519 | BN11: =IF($C11 >Inputs!$C$38,"",BB11/BG11) -> 0.2205146945 | BO11: =IF($C11 >Inputs!$C$38,"",BC11/BG11) -> 0.2205146945 | BP11: =IF($C11 >Inputs!$C$38,"",AX11/BG11) -> 0.2071764888 | BQ11: =IF($C11 >Inputs!$C$38,"",AY11/BG11) -> 0.1381176592 | BR11: =IF($C11 >Inputs!$C$38,"",BP11+BQ11) -> 0.3452941481 | BS11: =IF($C11 >Inputs!$C$38,"",SUM(BL11:BM11)-Inputs!$D$23) -> -0.01132353702 | BT11: =IF($C11 >Inputs!$C$38,"",SUM(BN11:BO11)-Inputs!$C$23) -> -0.03397061105 | BU11: =IF($C11 >Inputs!$C$38,"",SUM(BP11:BQ11)-Inputs!$E$24) -> 0.04529414806 | BV11: =IF($C11 >Inputs!$C$38,"",BS11*Inputs!$D$30) -> -0.0003397061105 | BW11: =IF($C11 >Inputs!$C$38,"",BT11*Inputs!$D$31) -> -0.004076473326 | BX11: =IF($C11 >Inputs!$C$38,"",BU11*Inputs!$D$32) -> 0.003170590364 | BY11: =IF($C11 >Inputs!$C$38,"",SUMPRODUCT($BV11:$BX11,Inputs!$C$53:$E$53)) -> -0.0003397061105 | BZ11: =IF($C11 >Inputs!$C$38,"",SUMPRODUCT($BV11:$BX11,Inputs!$C$54:$E$54)) -> -0.001857060071 | CA11: =IF($C11 >Inputs!$C$38,"",SUMPRODUCT($BV11:$BX11,Inputs!$C$55:$E$55)) -> 0.0003170590364 | CB11: =IF($C11 >Inputs!$C$38,"",SQRT(BV11*BY11+BW11*BZ11+BX11*CA11)) -> 0.002948036704 | CC11: =Inputs!$D$23*Inputs!$C$30+Inputs!$C$23*Inputs!$C$31+Inputs!$E$24*Inputs!$C$32 -> 0.051 | CD11: =(Inputs!$D$23+BS11)*Inputs!$C$30+(Inputs!$C$23+BT11)*Inputs!$C$31+(Inputs!$E$24+BU11)*Inputs!$C$32 -> 0.05145294148 | CE11: =BS11*Inputs!$C$30+BT11*Inputs!$C$31+BU11*Inputs!$C$32 -> 0.0004529414806 | CF11: =IF($C11 >Inputs!$C$38,"",IF(MOD($C11,Inputs!$E$32)=0,0,CF10+(U11-S11))) -> -0.07025793444 | CG11: =IF($C11 >Inputs!$C$38,"",IF(MOD($C11,Inputs!$E$32)=0,0,CG10+(V11-T11))) -> -0.07025793444 | CH11: =IF($C11 >Inputs!$C$38,"",-(CF11*H11+CG11*I11)/BG11) -> 0.02423081405 | CI11: =IF($C11 >Inputs!$C$38,"",BU11*(Inputs!$C$60+Inputs!$C$39*Inputs!$C$61)) -> 0.009511771093 | CJ11: =IF($C11 >Inputs!$C$38,"",Inputs!$E$24) -> 0.3
C12: 6 | D12: =IF($C12-1 >Inputs!$C$38,"",BE11) -> 11.20912276 | E12: =IF($C12-1 >Inputs!$C$38,"",BF11) -> 7.472748504 | F12: =IF($C12-1 >Inputs!$C$38,"",BB11) -> 19.27974226 | G12: =IF($C12-1 >Inputs!$C$38,"",BC11) -> 19.27974226 | H12: =IF($C12-1 >Inputs!$C$38,"",AX11) -> 18.11357432 | I12: =IF($C12-1 >Inputs!$C$38,"",AY11) -> 12.07571621 | J12: =IF($C12-1 >Inputs!$C$38,"",SUM(D12:I12)) -> 87.43064631 | K12: 0.3452941481 | L12: =IF($C12-1 >Inputs!$C$38,"",BI11) -> 7.472748504 | M12: =IF($C12-1 >Inputs!$C$38,"",BJ11) -> 21.71558734 | N12: =IF($C12-1 >Inputs!$C$38,"",L12+M12) -> 29.18833585 | O12: =IF($C12 >Inputs!$C$38,"",Inputs!$F$30) -> 0.009831632476 | P12: =IF($C12 >Inputs!$C$38,"",Inputs!$F$30) -> 0.009831632476 | Q12: =IF($C12 >Inputs!$C$38,"",Inputs!$F$31) -> -0.02765986324 | R12: =IF($C12 >Inputs!$C$38,"",Inputs!$F$31) -> -0.02765986324 | S12: =IF($C12 >Inputs!$C$38,"",IF(MOD(C12,Inputs!$E$32)=0,Inputs!$G$32,Inputs!$F$32)) -> -0.08430952133 | T12: -0.08430952133 | U12: =IF($C12 >Inputs!$C$38,"",Inputs!$I$32) -> -0.01405158689 | V12: -0.01405158689 | W12: =IF($C12 >Inputs!$C$38,"",Inputs!$F$33) -> -0.01905158689 | X12: =IF($C12 >Inputs!$C$38,"",Inputs!$F$33) -> -0.01905158689 | Y12: =IF($C12 >Inputs!$C$38,"",D12*(1+O12)) -> 11.31932673 | Z12: =IF($C12 >Inputs!$C$38,"",E12*(1+P12)) -> 7.546217821 | AA12: =IF($C12 >Inputs!$C$38,"",F12*(1+Q12)) -> 18.74646723 | AB12: =IF($C12 >Inputs!$C$38,"",G12*(1+R12)) -> 18.74646723 | AC12: =IF($C12 >Inputs!$C$38,"",H12*(1+S12)) -> 16.58642754 | AD12: =IF($C12 >Inputs!$C$38,"",I12*(1+T12)) -> 11.05761836 | AE12: =IF($C12 >Inputs!$C$38,"",SUM(Y12:AD12)) -> 84.0025249 | AF12: =IF($C12 >Inputs!$C$38,"",L12*(1+W12)) -> 7.330380787 | AG12: =IF($C12 >Inputs!$C$38,"",M12*(1+X12)) -> 21.30187094 | AH12: =IF($C12 >Inputs!$C$38,"",AF12+AG12) -> 28.63225173 | AI12: =IF($C12 >Inputs!$C$38,"",AE12+AG12-M12) -> 83.5888085 | AJ12: =IF($C12 >Inputs!$C$38,"",AG12-M12) -> -0.4137163991 | AK12: =IF($C12 >Inputs!$C$38,"",Inputs!$C$45*$C$5) -> 0.5 | AL12: =IF($C12 >Inputs!$C$38,"",Inputs!$C$46*$C$5) -> -1 | AM12: =IF($C12 >Inputs!$C$38,"",-Inputs!$F$44*J12) -> -0.4371532316 | AN12: =IF($C12 >Inputs!$C$38,"",SUM(AJ12:AM12)) -> -1.350869631 | AO12: =IF($C12 >Inputs!$C$38,"",AE12+AN12) -> 82.65165527 | AP12: =-J12*Inputs!$F$48 -> -0.03497225852 | AQ12: =IF($C12 >Inputs!$C$38,"",Inputs!$C$11*(1-Inputs!$E$11)*AO12) -> 11.15797346 | AR12: =IF($C12 >Inputs!$C$38,"",Inputs!$C$11*Inputs!$E$11*AO12) -> 7.438648974 | AS12: =IF($C12 >Inputs!$C$38,"",Inputs!$C$12*(1-Inputs!$E$12)*AO12) -> 19.62976813 | AT12: =IF($C12 >Inputs!$C$38,"",Inputs!$C$12*Inputs!$E$12*AO12) -> 19.62976813 | AU12: =IF($C12 >Inputs!$C$38,"",Inputs!$C$13*(1-Inputs!$E$13)*AO12) -> 14.87729795 | AV12: =IF($C12 >Inputs!$C$38,"",Inputs!$C$13*Inputs!$E$13*AO12) -> 9.918198632 | AW12: =IF($C12 >Inputs!$C$38,"",((AQ12+AR12)*Inputs!$D$11 + (AS12+AT12)*Inputs!$D$12 + (AU12+AV12)*Inputs!$D$13)/AO12) -> 0.7 | AX12: =AC12-AP12*Inputs!$E$21/Inputs!$E$23 -> 16.60741089 | AY12: =AD12-AP12*Inputs!$E$22/Inputs!$E$23 -> 11.07160726 | AZ12: =IF($C12 >Inputs!$C$38,"",(AX12+AY12)*Inputs!$D$13) -> 20.75926362 | BA12: =IF($C12 >Inputs!$C$38,"",AO12*Inputs!$C$24-AZ12) -> 37.09689507 | BB12: =IF($C12 >Inputs!$C$38,"",BA12*(1-Inputs!$E$12)) -> 18.54844754 | BC12: =IF($C12 >Inputs!$C$38,"",BA12*Inputs!$E$12) -> 18.54844754 | BD12: =IF($C12 >Inputs!$C$38,"",AO12-SUM(AX12:AY12)-BA12) -> 17.87574204 | BE12: =IF($C12 >Inputs!$C$38,"",BD12*(1-Inputs!$E$11)) -> 10.72544523 | BF12: =IF($C12 >Inputs!$C$38,"",BD12*Inputs!$E$11) -> 7.150296817 | BG12: =IF($C12 >Inputs!$C$38,"",SUM(AX12,AY12,BB12,BC12,BE12,BF12)) -> 82.65165527 | BH12: =IF($C12 >Inputs!$C$38,"",((AX12+AY12)*Inputs!$D$13 + (BB12+BC12)*Inputs!$D$12 + (BE12+BF12)*Inputs!$D$11)/BG12) -> 0.7 | BI12: =IF($C12 >Inputs!$C$38,"",AY12*IF(Inputs!$H$13="Externally",Inputs!$F$13,0)+BC12*IF(Inputs!$H$12="Externally",Inputs!$F$12,0)+BF12*IF(Inputs!$H$11="Externally",Inputs!$F$11,0)) -> 7.150296817 | BJ12: =IF($C12 >Inputs!$C$38,"",AY12*IF(Inputs!$H$13="Directly",Inputs!$F$13,0)+BC12*IF(Inputs!$H$12="Directly",Inputs!$F$12,0)+BF12*IF(Inputs!$H$11="Directly",Inputs!$F$11,0)) -> 20.34583103 | BK12: =IF($C12 >Inputs!$C$38,"",SUM(BI12:BJ12)) -> 27.49612785 | BL12: =IF($C12 >Inputs!$C$38,"",BE12/BG12) -> 0.1297668533 | BM12: =IF($C12 >Inputs!$C$38,"",BF12/BG12) -> 0.08651123554 | BN12: =IF($C12 >Inputs!$C$38,"",BB12/BG12) -> 0.2244171333 | BO12: =IF($C12 >Inputs!$C$38,"",BC12/BG12) -> 0.2244171333 | BP12: =IF($C12 >Inputs!$C$38,"",AX12/BG12) -> 0.2009325868 | BQ12: =IF($C12 >Inputs!$C$38,"",AY12/BG12) -> 0.1339550578 | BR12: =IF($C12 >Inputs!$C$38,"",BP12+BQ12) -> 0.3348876446 | BS12: =IF($C12 >Inputs!$C$38,"",SUM(BL12:BM12)-Inputs!$D$23) -> -0.008721911154 | BT12: =IF($C12 >Inputs!$C$38,"",SUM(BN12:BO12)-Inputs!$C$23) -> -0.02616573346 | BU12: =IF($C12 >Inputs!$C$38,"",SUM(BP12:BQ12)-Inputs!$E$24) -> 0.03488764461 | BV12: =IF($C12 >Inputs!$C$38,"",BS12*Inputs!$D$30) -> -0.0002616573346 | BW12: =IF($C12 >Inputs!$C$38,"",BT12*Inputs!$D$31) -> -0.003139888015 | BX12: =IF($C12 >Inputs!$C$38,"",BU12*Inputs!$D$32) -> 0.002442135123 | BY12: =IF($C12 >Inputs!$C$38,"",SUMPRODUCT($BV12:$BX12,Inputs!$C$53:$E$53)) -> -0.0002616573346 | BZ12: =IF($C12 >Inputs!$C$38,"",SUMPRODUCT($BV12:$BX12,Inputs!$C$54:$E$54)) -> -0.001430393429 | CA12: =IF($C12 >Inputs!$C$38,"",SUMPRODUCT($BV12:$BX12,Inputs!$C$55:$E$55)) -> 0.0002442135123 | CB12: =IF($C12 >Inputs!$C$38,"",SQRT(BV12*BY12+BW12*BZ12+BX12*CA12)) -> 0.002270714016 | CC12: =Inputs!$D$23*Inputs!$C$30+Inputs!$C$23*Inputs!$C$31+Inputs!$E$24*Inputs!$C$32 -> 0.051 | CD12: =(Inputs!$D$23+BS12)*Inputs!$C$30+(Inputs!$C$23+BT12)*Inputs!$C$31+(Inputs!$E$24+BU12)*Inputs!$C$32 -> 0.05134887645 | CE12: =BS12*Inputs!$C$30+BT12*Inputs!$C$31+BU12*Inputs!$C$32 -> 0.0003488764461 | CF12: =IF($C12 >Inputs!$C$38,"",IF(MOD($C12,Inputs!$E$32)=0,0,CF11+(U12-S12))) -> 0 | CG12: =IF($C12 >Inputs!$C$38,"",IF(MOD($C12,Inputs!$E$32)=0,0,CG11+(V12-T12))) -> 0 | CH12: =IF($C12 >Inputs!$C$38,"",-(CF12*H12+CG12*I12)/BG12) -> 0 | CI12: =IF($C12 >Inputs!$C$38,"",BU12*(Inputs!$C$60+Inputs!$C$39*Inputs!$C$61)) -> 0.007326405369 | CJ12: =IF($C12 >Inputs!$C$38,"",Inputs!$E$24) -> 0.3
C13: 7 | D13: =IF($C13-1 >Inputs!$C$38,"",BE12) -> 10.72544523 | E13: =IF($C13-1 >Inputs!$C$38,"",BF12) -> 7.150296817 | F13: =IF($C13-1 >Inputs!$C$38,"",BB12) -> 18.54844754 | G13: =IF($C13-1 >Inputs!$C$38,"",BC12) -> 18.54844754 | H13: =IF($C13-1 >Inputs!$C$38,"",AX12) -> 16.60741089 | I13: =IF($C13-1 >Inputs!$C$38,"",AY12) -> 11.07160726 | J13: =IF($C13-1 >Inputs!$C$38,"",SUM(D13:I13)) -> 82.65165527 | K13: 0.3348876446 | L13: =IF($C13-1 >Inputs!$C$38,"",BI12) -> 7.150296817 | M13: =IF($C13-1 >Inputs!$C$38,"",BJ12) -> 20.34583103 | N13: =IF($C13-1 >Inputs!$C$38,"",L13+M13) -> 27.49612785 | O13: =IF($C13 >Inputs!$C$38,"",Inputs!$F$30) -> 0.009831632476 | P13: =IF($C13 >Inputs!$C$38,"",Inputs!$F$30) -> 0.009831632476 | Q13: =IF($C13 >Inputs!$C$38,"",Inputs!$F$31) -> -0.02765986324 | R13: =IF($C13 >Inputs!$C$38,"",Inputs!$F$31) -> -0.02765986324 | S13: =IF($C13 >Inputs!$C$38,"",IF(MOD(C13,Inputs!$E$32)=0,Inputs!$G$32,Inputs!$F$32)) -> 0 | T13: 0 | U13: =IF($C13 >Inputs!$C$38,"",Inputs!$I$32) -> -0.01405158689 | V13: -0.01405158689 | W13: =IF($C13 >Inputs!$C$38,"",Inputs!$F$33) -> -0.01905158689 | X13: =IF($C13 >Inputs!$C$38,"",Inputs!$F$33) -> -0.01905158689 | Y13: =IF($C13 >Inputs!$C$38,"",D13*(1+O13)) -> 10.83089386 | Z13: =IF($C13 >Inputs!$C$38,"",E13*(1+P13)) -> 7.220595907 | AA13: =IF($C13 >Inputs!$C$38,"",F13*(1+Q13)) -> 18.03540001 | AB13: =IF($C13 >Inputs!$C$38,"",G13*(1+R13)) -> 18.03540001 | AC13: =IF($C13 >Inputs!$C$38,"",H13*(1+S13)) -> 16.60741089 | AD13: =IF($C13 >Inputs!$C$38,"",I13*(1+T13)) -> 11.07160726 | AE13: =IF($C13 >Inputs!$C$38,"",SUM(Y13:AD13)) -> 81.80130795 | AF13: =IF($C13 >Inputs!$C$38,"",L13*(1+W13)) -> 7.014072316 | AG13: =IF($C13 >Inputs!$C$38,"",M13*(1+X13)) -> 19.95821066 | AH13: =IF($C13 >Inputs!$C$38,"",AF13+AG13) -> 26.97228298 | AI13: =IF($C13 >Inputs!$C$38,"",AE13+AG13-M13) -> 81.41368758 | AJ13: =IF($C13 >Inputs!$C$38,"",AG13-M13) -> -0.3876203677 | AK13: =IF($C13 >Inputs!$C$38,"",Inputs!$C$45*$C$5) -> 0.5 | AL13: =IF($C13 >Inputs!$C$38,"",Inputs!$C$46*$C$5) -> -1 | AM13: =IF($C13 >Inputs!$C$38,"",-Inputs!$F$44*J13) -> -0.4132582764 | AN13: =IF($C13 >Inputs!$C$38,"",SUM(AJ13:AM13)) -> -1.300878644 | AO13: =IF($C13 >Inputs!$C$38,"",AE13+AN13) -> 80.50042931 | AP13: =-J13*Inputs!$F$48 -> -0.03306066211 | AQ13: =IF($C13 >Inputs!$C$38,"",Inputs!$C$11*(1-Inputs!$E$11)*AO13) -> 10.86755796 | AR13: =IF($C13 >Inputs!$C$38,"",Inputs!$C$11*Inputs!$E$11*AO13) -> 7.245038638 | AS13: =IF($C13 >Inputs!$C$38,"",Inputs!$C$12*(1-Inputs!$E$12)*AO13) -> 19.11885196 | AT13: =IF($C13 >Inputs!$C$38,"",Inputs!$C$12*Inputs!$E$12*AO13) -> 19.11885196 | AU13: =IF($C13 >Inputs!$C$38,"",Inputs!$C$13*(1-Inputs!$E$13)*AO13) -> 14.49007728 | AV13: =IF($C13 >Inputs!$C$38,"",Inputs!$C$13*Inputs!$E$13*AO13) -> 9.660051517 | AW13: =IF($C13 >Inputs!$C$38,"",((AQ13+AR13)*Inputs!$D$11 + (AS13+AT13)*Inputs!$D$12 + (AU13+AV13)*Inputs!$D$13)/AO13) -> 0.7 | AX13: =AC13-AP13*Inputs!$E$21/Inputs!$E$23 -> 16.62724729 | AY13: =AD13-AP13*Inputs!$E$22/Inputs!$E$23 -> 11.08483153 | AZ13: =IF($C13 >Inputs!$C$38,"",(AX13+AY13)*Inputs!$D$13) -> 20.78405911 | BA13: =IF($C13 >Inputs!$C$38,"",AO13*Inputs!$C$24-AZ13) -> 35.5662414 | BB13: =IF($C13 >Inputs!$C$38,"",BA13*(1-Inputs!$E$12)) -> 17.7831207 | BC13: =IF($C13 >Inputs!$C$38,"",BA13*Inputs!$E$12) -> 17.7831207 | BD13: =IF($C13 >Inputs!$C$38,"",AO13-SUM(AX13:AY13)-BA13) -> 17.22210909 | BE13: =IF($C13 >Inputs!$C$38,"",BD13*(1-Inputs!$E$11)) -> 10.33326545 | BF13: =IF($C13 >Inputs!$C$38,"",BD13*Inputs!$E$11) -> 6.888843635 | BG13: =IF($C13 >Inputs!$C$38,"",SUM(AX13,AY13,BB13,BC13,BE13,BF13)) -> 80.50042931 | BH13: =IF($C13 >Inputs!$C$38,"",((AX13+AY13)*Inputs!$D$13 + (BB13+BC13)*Inputs!$D$12 + (BE13+BF13)*Inputs!$D$11)/BG13) -> 0.7 | BI13: =IF($C13 >Inputs!$C$38,"",AY13*IF(Inputs!$H$13="Externally",Inputs!$F$13,0)+BC13*IF(Inputs!$H$12="Externally",Inputs!$F$12,0)+BF13*IF(Inputs!$H$11="Externally",Inputs!$F$11,0)) -> 6.888843635 | BJ13: =IF($C13 >Inputs!$C$38,"",AY13*IF(Inputs!$H$13="Directly",Inputs!$F$13,0)+BC13*IF(Inputs!$H$12="Directly",Inputs!$F$12,0)+BF13*IF(Inputs!$H$11="Directly",Inputs!$F$11,0)) -> 19.97639188 | BK13: =IF($C13 >Inputs!$C$38,"",SUM(BI13:BJ13)) -> 26.86523551 | BL13: =IF($C13 >Inputs!$C$38,"",BE13/BG13) -> 0.1283628614 | BM13: =IF($C13 >Inputs!$C$38,"",BF13/BG13) -> 0.08557524096 | BN13: =IF($C13 >Inputs!$C$38,"",BB13/BG13) -> 0.2209071536 | BO13: =IF($C13 >Inputs!$C$38,"",BC13/BG13) -> 0.2209071536 | BP13: =IF($C13 >Inputs!$C$38,"",AX13/BG13) -> 0.2065485543 | BQ13: =IF($C13 >Inputs!$C$38,"",AY13/BG13) -> 0.1376990362 | BR13: =IF($C13 >Inputs!$C$38,"",BP13+BQ13) -> 0.3442475904 | BS13: =IF($C13 >Inputs!$C$38,"",SUM(BL13:BM13)-Inputs!$D$23) -> -0.01106189761 | BT13: =IF($C13 >Inputs!$C$38,"",SUM(BN13:BO13)-Inputs!$C$23) -> -0.03318569283 | BU13: =IF($C13 >Inputs!$C$38,"",SUM(BP13:BQ13)-Inputs!$E$24) -> 0.04424759044 | BV13: =IF($C13 >Inputs!$C$38,"",BS13*Inputs!$D$30) -> -0.0003318569283 | BW13: =IF($C13 >Inputs!$C$38,"",BT13*Inputs!$D$31) -> -0.00398228314 | BX13: =IF($C13 >Inputs!$C$38,"",BU13*Inputs!$D$32) -> 0.003097331331 | BY13: =IF($C13 >Inputs!$C$38,"",SUMPRODUCT($BV13:$BX13,Inputs!$C$53:$E$53)) -> -0.0003318569283 | BZ13: =IF($C13 >Inputs!$C$38,"",SUMPRODUCT($BV13:$BX13,Inputs!$C$54:$E$54)) -> -0.001814151208 | CA13: =IF($C13 >Inputs!$C$38,"",SUMPRODUCT($BV13:$BX13,Inputs!$C$55:$E$55)) -> 0.0003097331331 | CB13: =IF($C13 >Inputs!$C$38,"",SQRT(BV13*BY13+BW13*BZ13+BX13*CA13)) -> 0.002879919952 | CC13: =Inputs!$D$23*Inputs!$C$30+Inputs!$C$23*Inputs!$C$31+Inputs!$E$24*Inputs!$C$32 -> 0.051 | CD13: =(Inputs!$D$23+BS13)*Inputs!$C$30+(Inputs!$C$23+BT13)*Inputs!$C$31+(Inputs!$E$24+BU13)*Inputs!$C$32 -> 0.0514424759 | CE13: =BS13*Inputs!$C$30+BT13*Inputs!$C$31+BU13*Inputs!$C$32 -> 0.0004424759044 | CF13: =IF($C13 >Inputs!$C$38,"",IF(MOD($C13,Inputs!$E$32)=0,0,CF12+(U13-S13))) -> -0.01405158689 | CG13: =IF($C13 >Inputs!$C$38,"",IF(MOD($C13,Inputs!$E$32)=0,0,CG12+(V13-T13))) -> -0.01405158689 | CH13: =IF($C13 >Inputs!$C$38,"",-(CF13*H13+CG13*I13)/BG13) -> 0.004831454092 | CI13: =IF($C13 >Inputs!$C$38,"",BU13*(Inputs!$C$60+Inputs!$C$39*Inputs!$C$61)) -> 0.009291993993 | CJ13: =IF($C13 >Inputs!$C$38,"",Inputs!$E$24) -> 0.3
C14: 8 | D14: =IF($C14-1 >Inputs!$C$38,"",BE13) -> 10.33326545 | E14: =IF($C14-1 >Inputs!$C$38,"",BF13) -> 6.888843635 | F14: =IF($C14-1 >Inputs!$C$38,"",BB13) -> 17.7831207 | G14: =IF($C14-1 >Inputs!$C$38,"",BC13) -> 17.7831207 | H14: =IF($C14-1 >Inputs!$C$38,"",AX13) -> 16.62724729 | I14: =IF($C14-1 >Inputs!$C$38,"",AY13) -> 11.08483153 | J14: =IF($C14-1 >Inputs!$C$38,"",SUM(D14:I14)) -> 80.50042931 | K14: 0.3442475904 | L14: =IF($C14-1 >Inputs!$C$38,"",BI13) -> 6.888843635 | M14: =IF($C14-1 >Inputs!$C$38,"",BJ13) -> 19.97639188 | N14: =IF($C14-1 >Inputs!$C$38,"",L14+M14) -> 26.86523551 | O14: =IF($C14 >Inputs!$C$38,"",Inputs!$F$30) -> 0.009831632476 | P14: =IF($C14 >Inputs!$C$38,"",Inputs!$F$30) -> 0.009831632476 | Q14: =IF($C14 >Inputs!$C$38,"",Inputs!$F$31) -> -0.02765986324 | R14: =IF($C14 >Inputs!$C$38,"",Inputs!$F$31) -> -0.02765986324 | S14: =IF($C14 >Inputs!$C$38,"",IF(MOD(C14,Inputs!$E$32)=0,Inputs!$G$32,Inputs!$F$32)) -> 0 | T14: 0 | U14: =IF($C14 >Inputs!$C$38,"",Inputs!$I$32) -> -0.01405158689 | V14: -0.01405158689 | W14: =IF($C14 >Inputs!$C$38,"",Inputs!$F$33) -> -0.01905158689 | X14: =IF($C14 >Inputs!$C$38,"",Inputs!$F$33) -> -0.01905158689 | Y14: =IF($C14 >Inputs!$C$38,"",D14*(1+O14)) -> 10.43485832 | Z14: =IF($C14 >Inputs!$C$38,"",E14*(1+P14)) -> 6.956572214 | AA14: =IF($C14 >Inputs!$C$38,"",F14*(1+Q14)) -> 17.29124201 | AB14: =IF($C14 >Inputs!$C$38,"",G14*(1+R14)) -> 17.29124201 | AC14: =IF($C14 >Inputs!$C$38,"",H14*(1+S14)) -> 16.62724729 | AD14: =IF($C14 >Inputs!$C$38,"",I14*(1+T14)) -> 11.08483153 | AE14: =IF($C14 >Inputs!$C$38,"",SUM(Y14:AD14)) -> 79.68599338 | AF14: =IF($C14 >Inputs!$C$38,"",L14*(1+W14)) -> 6.757600232 | AG14: =IF($C14 >Inputs!$C$38,"",M14*(1+X14)) -> 19.59580991 | AH14: =IF($C14 >Inputs!$C$38,"",AF14+AG14) -> 26.35341014 | AI14: =IF($C14 >Inputs!$C$38,"",AE14+AG14-M14) -> 79.30541142 | AJ14: =IF($C14 >Inputs!$C$38,"",AG14-M14) -> -0.3805819656 | AK14: =IF($C14 >Inputs!$C$38,"",Inputs!$C$45*$C$5) -> 0.5 | AL14: =IF($C14 >Inputs!$C$38,"",Inputs!$C$46*$C$5) -> -1 | AM14: =IF($C14 >Inputs!$C$38,"",-Inputs!$F$44*J14) -> -0.4025021465 | AN14: =IF($C14 >Inputs!$C$38,"",SUM(AJ14:AM14)) -> -1.283084112 | AO14: =IF($C14 >Inputs!$C$38,"",AE14+AN14) -> 78.40290927 | AP14: =-J14*Inputs!$F$48 -> -0.03220017172 | AQ14: =IF($C14 >Inputs!$C$38,"",Inputs!$C$11*(1-Inputs!$E$11)*AO14) -> 10.58439275 | AR14: =IF($C14 >Inputs!$C$38,"",Inputs!$C$11*Inputs!$E$11*AO14) -> 7.056261834 | AS14: =IF($C14 >Inputs!$C$38,"",Inputs!$C$12*(1-Inputs!$E$12)*AO14) -> 18.62069095 | AT14: =IF($C14 >Inputs!$C$38,"",Inputs!$C$12*Inputs!$E$12*AO14) -> 18.62069095 | AU14: =IF($C14 >Inputs!$C$38,"",Inputs!$C$13*(1-Inputs!$E$13)*AO14) -> 14.11252367 | AV14: =IF($C14 >Inputs!$C$38,"",Inputs!$C$13*Inputs!$E$13*AO14) -> 9.408349112 | AW14: =IF($C14 >Inputs!$C$38,"",((AQ14+AR14)*Inputs!$D$11 + (AS14+AT14)*Inputs!$D$12 + (AU14+AV14)*Inputs!$D$13)/AO14) -> 0.7 | AX14: =AC14-AP14*Inputs!$E$21/Inputs!$E$23 -> 16.64656739 | AY14: =AD14-AP14*Inputs!$E$22/Inputs!$E$23 -> 11.0977116 | AZ14: =IF($C14 >Inputs!$C$38,"",(AX14+AY14)*Inputs!$D$13) -> 20.80820924 | BA14: =IF($C14 >Inputs!$C$38,"",AO14*Inputs!$C$24-AZ14) -> 34.07382725 | BB14: =IF($C14 >Inputs!$C$38,"",BA14*(1-Inputs!$E$12)) -> 17.03691362 | BC14: =IF($C14 >Inputs!$C$38,"",BA14*Inputs!$E$12) -> 17.03691362 | BD14: =IF($C14 >Inputs!$C$38,"",AO14-SUM(AX14:AY14)-BA14) -> 16.58480303 | BE14: =IF($C14 >Inputs!$C$38,"",BD14*(1-Inputs!$E$11)) -> 9.95088182 | BF14: =IF($C14 >Inputs!$C$38,"",BD14*Inputs!$E$11) -> 6.633921213 | BG14: =IF($C14 >Inputs!$C$38,"",SUM(AX14,AY14,BB14,BC14,BE14,BF14)) -> 78.40290927 | BH14: =IF($C14 >Inputs!$C$38,"",((AX14+AY14)*Inputs!$D$13 + (BB14+BC14)*Inputs!$D$12 + (BE14+BF14)*Inputs!$D$11)/BG14) -> 0.7 | BI14: =IF($C14 >Inputs!$C$38,"",AY14*IF(Inputs!$H$13="Externally",Inputs!$F$13,0)+BC14*IF(Inputs!$H$12="Externally",Inputs!$F$12,0)+BF14*IF(Inputs!$H$11="Externally",Inputs!$F$11,0)) -> 6.633921213 | BJ14: =IF($C14 >Inputs!$C$38,"",AY14*IF(Inputs!$H$13="Directly",Inputs!$F$13,0)+BC14*IF(Inputs!$H$12="Directly",Inputs!$F$12,0)+BF14*IF(Inputs!$H$11="Directly",Inputs!$F$11,0)) -> 19.61616841 | BK14: =IF($C14 >Inputs!$C$38,"",SUM(BI14:BJ14)) -> 26.25008962 | BL14: =IF($C14 >Inputs!$C$38,"",BE14/BG14) -> 0.1269198033 | BM14: =IF($C14 >Inputs!$C$38,"",BF14/BG14) -> 0.08461320218 | BN14: =IF($C14 >Inputs!$C$38,"",BB14/BG14) -> 0.2172995082 | BO14: =IF($C14 >Inputs!$C$38,"",BC14/BG14) -> 0.2172995082 | BP14: =IF($C14 >Inputs!$C$38,"",AX14/BG14) -> 0.2123207869 | BQ14: =IF($C14 >Inputs!$C$38,"",AY14/BG14) -> 0.1415471913 | BR14: =IF($C14 >Inputs!$C$38,"",BP14+BQ14) -> 0.3538679782 | BS14: =IF($C14 >Inputs!$C$38,"",SUM(BL14:BM14)-Inputs!$D$23) -> -0.01346699456 | BT14: =IF($C14 >Inputs!$C$38,"",SUM(BN14:BO14)-Inputs!$C$23) -> -0.04040098367 | BU14: =IF($C14 >Inputs!$C$38,"",SUM(BP14:BQ14)-Inputs!$E$24) -> 0.05386797823 | BV14: =IF($C14 >Inputs!$C$38,"",BS14*Inputs!$D$30) -> -0.0004040098367 | BW14: =IF($C14 >Inputs!$C$38,"",BT14*Inputs!$D$31) -> -0.004848118041 | BX14: =IF($C14 >Inputs!$C$38,"",BU14*Inputs!$D$32) -> 0.003770758476 | BY14: =IF($C14 >Inputs!$C$38,"",SUMPRODUCT($BV14:$BX14,Inputs!$C$53:$E$53)) -> -0.0004040098367 | BZ14: =IF($C14 >Inputs!$C$38,"",SUMPRODUCT($BV14:$BX14,Inputs!$C$54:$E$54)) -> -0.002208587107 | CA14: =IF($C14 >Inputs!$C$38,"",SUMPRODUCT($BV14:$BX14,Inputs!$C$55:$E$55)) -> 0.0003770758476 | CB14: =IF($C14 >Inputs!$C$38,"",SQRT(BV14*BY14+BW14*BZ14+BX14*CA14)) -> 0.003506077138 | CC14: =Inputs!$D$23*Inputs!$C$30+Inputs!$C$23*Inputs!$C$31+Inputs!$E$24*Inputs!$C$32 -> 0.051 | CD14: =(Inputs!$D$23+BS14)*Inputs!$C$30+(Inputs!$C$23+BT14)*Inputs!$C$31+(Inputs!$E$24+BU14)*Inputs!$C$32 -> 0.05153867978 | CE14: =BS14*Inputs!$C$30+BT14*Inputs!$C$31+BU14*Inputs!$C$32 -> 0.0005386797823 | CF14: =IF($C14 >Inputs!$C$38,"",IF(MOD($C14,Inputs!$E$32)=0,0,CF13+(U14-S14))) -> -0.02810317378 | CG14: =IF($C14 >Inputs!$C$38,"",IF(MOD($C14,Inputs!$E$32)=0,0,CG13+(V14-T14))) -> -0.02810317378 | CH14: =IF($C14 >Inputs!$C$38,"",-(CF14*H14+CG14*I14)/BG14) -> 0.009933271278 | CI14: =IF($C14 >Inputs!$C$38,"",BU14*(Inputs!$C$60+Inputs!$C$39*Inputs!$C$61)) -> 0.01131227543 | CJ14: =IF($C14 >Inputs!$C$38,"",Inputs!$E$24) -> 0.3
C15: 9 | D15: =IF($C15-1 >Inputs!$C$38,"",BE14) -> 9.95088182 | E15: =IF($C15-1 >Inputs!$C$38,"",BF14) -> 6.633921213 | F15: =IF($C15-1 >Inputs!$C$38,"",BB14) -> 17.03691362 | G15: =IF($C15-1 >Inputs!$C$38,"",BC14) -> 17.03691362 | H15: =IF($C15-1 >Inputs!$C$38,"",AX14) -> 16.64656739 | I15: =IF($C15-1 >Inputs!$C$38,"",AY14) -> 11.0977116 | J15: =IF($C15-1 >Inputs!$C$38,"",SUM(D15:I15)) -> 78.40290927 | K15: 0.3538679782 | L15: =IF($C15-1 >Inputs!$C$38,"",BI14) -> 6.633921213 | M15: =IF($C15-1 >Inputs!$C$38,"",BJ14) -> 19.61616841 | N15: =IF($C15-1 >Inputs!$C$38,"",L15+M15) -> 26.25008962 | O15: =IF($C15 >Inputs!$C$38,"",Inputs!$F$30) -> 0.009831632476 | P15: =IF($C15 >Inputs!$C$38,"",Inputs!$F$30) -> 0.009831632476 | Q15: =IF($C15 >Inputs!$C$38,"",Inputs!$F$31) -> -0.02765986324 | R15: =IF($C15 >Inputs!$C$38,"",Inputs!$F$31) -> -0.02765986324 | S15: =IF($C15 >Inputs!$C$38,"",IF(MOD(C15,Inputs!$E$32)=0,Inputs!$G$32,Inputs!$F$32)) -> 0 | T15: 0 | U15: =IF($C15 >Inputs!$C$38,"",Inputs!$I$32) -> -0.01405158689 | V15: -0.01405158689 | W15: =IF($C15 >Inputs!$C$38,"",Inputs!$F$33) -> -0.01905158689 | X15: =IF($C15 >Inputs!$C$38,"",Inputs!$F$33) -> -0.01905158689 | Y15: =IF($C15 >Inputs!$C$38,"",D15*(1+O15)) -> 10.04871523 | Z15: =IF($C15 >Inputs!$C$38,"",E15*(1+P15)) -> 6.699143489 | AA15: =IF($C15 >Inputs!$C$38,"",F15*(1+Q15)) -> 16.56567492 | AB15: =IF($C15 >Inputs!$C$38,"",G15*(1+R15)) -> 16.56567492 | AC15: =IF($C15 >Inputs!$C$38,"",H15*(1+S15)) -> 16.64656739 | AD15: =IF($C15 >Inputs!$C$38,"",I15*(1+T15)) -> 11.0977116 | AE15: =IF($C15 >Inputs!$C$38,"",SUM(Y15:AD15)) -> 77.62348756 | AF15: =IF($C15 >Inputs!$C$38,"",L15*(1+W15)) -> 6.507534487 | AG15: =IF($C15 >Inputs!$C$38,"",M15*(1+X15)) -> 19.24244927 | AH15: =IF($C15 >Inputs!$C$38,"",AF15+AG15) -> 25.74998376 | AI15: =IF($C15 >Inputs!$C$38,"",AE15+AG15-M15) -> 77.24976842 | AJ15: =IF($C15 >Inputs!$C$38,"",AG15-M15) -> -0.3737191368 | AK15: =IF($C15 >Inputs!$C$38,"",Inputs!$C$45*$C$5) -> 0.5 | AL15: =IF($C15 >Inputs!$C$38,"",Inputs!$C$46*$C$5) -> -1 | AM15: =IF($C15 >Inputs!$C$38,"",-Inputs!$F$44*J15) -> -0.3920145464 | AN15: =IF($C15 >Inputs!$C$38,"",SUM(AJ15:AM15)) -> -1.265733683 | AO15: =IF($C15 >Inputs!$C$38,"",AE15+AN15) -> 76.35775387 | AP15: =-J15*Inputs!$F$48 -> -0.03136116371 | AQ15: =IF($C15 >Inputs!$C$38,"",Inputs!$C$11*(1-Inputs!$E$11)*AO15) -> 10.30829677 | AR15: =IF($C15 >Inputs!$C$38,"",Inputs!$C$11*Inputs!$E$11*AO15) -> 6.872197849 | AS15: =IF($C15 >Inputs!$C$38,"",Inputs!$C$12*(1-Inputs!$E$12)*AO15) -> 18.13496654 | AT15: =IF($C15 >Inputs!$C$38,"",Inputs!$C$12*Inputs!$E$12*AO15) -> 18.13496654 | AU15: =IF($C15 >Inputs!$C$38,"",Inputs!$C$13*(1-Inputs!$E$13)*AO15) -> 13.7443957 | AV15: =IF($C15 >Inputs!$C$38,"",Inputs!$C$13*Inputs!$E$13*AO15) -> 9.162930465 | AW15: =IF($C15 >Inputs!$C$38,"",((AQ15+AR15)*Inputs!$D$11 + (AS15+AT15)*Inputs!$D$12 + (AU15+AV15)*Inputs!$D$13)/AO15) -> 0.7 | AX15: =AC15-AP15*Inputs!$E$21/Inputs!$E$23 -> 16.66538409 | AY15: =AD15-AP15*Inputs!$E$22/Inputs!$E$23 -> 11.11025606 | AZ15: =IF($C15 >Inputs!$C$38,"",(AX15+AY15)*Inputs!$D$13) -> 20.83173012 | BA15: =IF($C15 >Inputs!$C$38,"",AO15*Inputs!$C$24-AZ15) -> 32.6186976 | BB15: =IF($C15 >Inputs!$C$38,"",BA15*(1-Inputs!$E$12)) -> 16.3093488 | BC15: =IF($C15 >Inputs!$C$38,"",BA15*Inputs!$E$12) -> 16.3093488 | BD15: =IF($C15 >Inputs!$C$38,"",AO15-SUM(AX15:AY15)-BA15) -> 15.96341612 | BE15: =IF($C15 >Inputs!$C$38,"",BD15*(1-Inputs!$E$11)) -> 9.578049674 | BF15: =IF($C15 >Inputs!$C$38,"",BD15*Inputs!$E$11) -> 6.385366449 | BG15: =IF($C15 >Inputs!$C$38,"",SUM(AX15,AY15,BB15,BC15,BE15,BF15)) -> 76.35775387 | BH15: =IF($C15 >Inputs!$C$38,"",((AX15+AY15)*Inputs!$D$13 + (BB15+BC15)*Inputs!$D$12 + (BE15+BF15)*Inputs!$D$11)/BG15) -> 0.7 | BI15: =IF($C15 >Inputs!$C$38,"",AY15*IF(Inputs!$H$13="Externally",Inputs!$F$13,0)+BC15*IF(Inputs!$H$12="Externally",Inputs!$F$12,0)+BF15*IF(Inputs!$H$11="Externally",Inputs!$F$11,0)) -> 6.385366449 | BJ15: =IF($C15 >Inputs!$C$38,"",AY15*IF(Inputs!$H$13="Directly",Inputs!$F$13,0)+BC15*IF(Inputs!$H$12="Directly",Inputs!$F$12,0)+BF15*IF(Inputs!$H$11="Directly",Inputs!$F$11,0)) -> 19.26493046 | BK15: =IF($C15 >Inputs!$C$38,"",SUM(BI15:BJ15)) -> 25.65029691 | BL15: =IF($C15 >Inputs!$C$38,"",BE15/BG15) -> 0.1254365037 | BM15: =IF($C15 >Inputs!$C$38,"",BF15/BG15) -> 0.08362433578 | BN15: =IF($C15 >Inputs!$C$38,"",BB15/BG15) -> 0.2135912592 | BO15: =IF($C15 >Inputs!$C$38,"",BC15/BG15) -> 0.2135912592 | BP15: =IF($C15 >Inputs!$C$38,"",AX15/BG15) -> 0.2182539853 | BQ15: =IF($C15 >Inputs!$C$38,"",AY15/BG15) -> 0.1455026569 | BR15: =IF($C15 >Inputs!$C$38,"",BP15+BQ15) -> 0.3637566422 | BS15: =IF($C15 >Inputs!$C$38,"",SUM(BL15:BM15)-Inputs!$D$23) -> -0.01593916055 | BT15: =IF($C15 >Inputs!$C$38,"",SUM(BN15:BO15)-Inputs!$C$23) -> -0.04781748165 | BU15: =IF($C15 >Inputs!$C$38,"",SUM(BP15:BQ15)-Inputs!$E$24) -> 0.06375664219 | BV15: =IF($C15 >Inputs!$C$38,"",BS15*Inputs!$D$30) -> -0.0004781748165 | BW15: =IF($C15 >Inputs!$C$38,"",BT15*Inputs!$D$31) -> -0.005738097798 | BX15: =IF($C15 >Inputs!$C$38,"",BU15*Inputs!$D$32) -> 0.004462964954 | BY15: =IF($C15 >Inputs!$C$38,"",SUMPRODUCT($BV15:$BX15,Inputs!$C$53:$E$53)) -> -0.0004781748165 | BZ15: =IF($C15 >Inputs!$C$38,"",SUMPRODUCT($BV15:$BX15,Inputs!$C$54:$E$54)) -> -0.00261402233 | CA15: =IF($C15 >Inputs!$C$38,"",SUMPRODUCT($BV15:$BX15,Inputs!$C$55:$E$55)) -> 0.0004462964954 | CB15: =IF($C15 >Inputs!$C$38,"",SQRT(BV15*BY15+BW15*BZ15+BX15*CA15)) -> 0.004149695476 | CC15: =Inputs!$D$23*Inputs!$C$30+Inputs!$C$23*Inputs!$C$31+Inputs!$E$24*Inputs!$C$32 -> 0.051 | CD15: =(Inputs!$D$23+BS15)*Inputs!$C$30+(Inputs!$C$23+BT15)*Inputs!$C$31+(Inputs!$E$24+BU15)*Inputs!$C$32 -> 0.05163756642 | CE15: =BS15*Inputs!$C$30+BT15*Inputs!$C$31+BU15*Inputs!$C$32 -> 0.0006375664219 | CF15: =IF($C15 >Inputs!$C$38,"",IF(MOD($C15,Inputs!$E$32)=0,0,CF14+(U15-S15))) -> -0.04215476066 | CG15: =IF($C15 >Inputs!$C$38,"",IF(MOD($C15,Inputs!$E$32)=0,0,CG14+(V15-T15))) -> -0.04215476066 | CH15: =IF($C15 >Inputs!$C$38,"",-(CF15*H15+CG15*I15)/BG15) -> 0.01531676066 | CI15: =IF($C15 >Inputs!$C$38,"",BU15*(Inputs!$C$60+Inputs!$C$39*Inputs!$C$61)) -> 0.01338889486 | CJ15: =IF($C15 >Inputs!$C$38,"",Inputs!$E$24) -> 0.3
C16: 10 | D16: =IF($C16-1 >Inputs!$C$38,"",BE15) -> 9.578049674 | E16: =IF($C16-1 >Inputs!$C$38,"",BF15) -> 6.385366449 | F16: =IF($C16-1 >Inputs!$C$38,"",BB15) -> 16.3093488 | G16: =IF($C16-1 >Inputs!$C$38,"",BC15) -> 16.3093488 | H16: =IF($C16-1 >Inputs!$C$38,"",AX15) -> 16.66538409 | I16: =IF($C16-1 >Inputs!$C$38,"",AY15) -> 11.11025606 | J16: =IF($C16-1 >Inputs!$C$38,"",SUM(D16:I16)) -> 76.35775387 | K16: 0.3637566422 | L16: =IF($C16-1 >Inputs!$C$38,"",BI15) -> 6.385366449 | M16: =IF($C16-1 >Inputs!$C$38,"",BJ15) -> 19.26493046 | N16: =IF($C16-1 >Inputs!$C$38,"",L16+M16) -> 25.65029691 | O16: =IF($C16 >Inputs!$C$38,"",Inputs!$F$30) -> 0.009831632476 | P16: =IF($C16 >Inputs!$C$38,"",Inputs!$F$30) -> 0.009831632476 | Q16: =IF($C16 >Inputs!$C$38,"",Inputs!$F$31) -> -0.02765986324 | R16: =IF($C16 >Inputs!$C$38,"",Inputs!$F$31) -> -0.02765986324 | S16: =IF($C16 >Inputs!$C$38,"",IF(MOD(C16,Inputs!$E$32)=0,Inputs!$G$32,Inputs!$F$32)) -> 0 | T16: 0 | U16: =IF($C16 >Inputs!$C$38,"",Inputs!$I$32) -> -0.01405158689 | V16: -0.01405158689 | W16: =IF($C16 >Inputs!$C$38,"",Inputs!$F$33) -> -0.01905158689 | X16: =IF($C16 >Inputs!$C$38,"",Inputs!$F$33) -> -0.01905158689 | Y16: =IF($C16 >Inputs!$C$38,"",D16*(1+O16)) -> 9.672217538 | Z16: =IF($C16 >Inputs!$C$38,"",E16*(1+P16)) -> 6.448145026 | AA16: =IF($C16 >Inputs!$C$38,"",F16*(1+Q16)) -> 15.85823444 | AB16: =IF($C16 >Inputs!$C$38,"",G16*(1+R16)) -> 15.85823444 | AC16: =IF($C16 >Inputs!$C$38,"",H16*(1+S16)) -> 16.66538409 | AD16: =IF($C16 >Inputs!$C$38,"",I16*(1+T16)) -> 11.11025606 | AE16: =IF($C16 >Inputs!$C$38,"",SUM(Y16:AD16)) -> 75.6124716 | AF16: =IF($C16 >Inputs!$C$38,"",L16*(1+W16)) -> 6.263715086 | AG16: =IF($C16 >Inputs!$C$38,"",M16*(1+X16)) -> 18.89790296 | AH16: =IF($C16 >Inputs!$C$38,"",AF16+AG16) -> 25.16161805 | AI16: =IF($C16 >Inputs!$C$38,"",AE16+AG16-M16) -> 75.2454441 | AJ16: =IF($C16 >Inputs!$C$38,"",AG16-M16) -> -0.3670274966 | AK16: =IF($C16 >Inputs!$C$38,"",Inputs!$C$45*$C$5) -> 0.5 | AL16: =IF($C16 >Inputs!$C$38,"",Inputs!$C$46*$C$5) -> -1 | AM16: =IF($C16 >Inputs!$C$38,"",-Inputs!$F$44*J16) -> -0.3817887694 | AN16: =IF($C16 >Inputs!$C$38,"",SUM(AJ16:AM16)) -> -1.248816266 | AO16: =IF($C16 >Inputs!$C$38,"",AE16+AN16) -> 74.36365533 | AP16: =-J16*Inputs!$F$48 -> -0.03054310155 | AQ16: =IF($C16 >Inputs!$C$38,"",Inputs!$C$11*(1-Inputs!$E$11)*AO16) -> 10.03909347 | AR16: =IF($C16 >Inputs!$C$38,"",Inputs!$C$11*Inputs!$E$11*AO16) -> 6.69272898 | AS16: =IF($C16 >Inputs!$C$38,"",Inputs!$C$12*(1-Inputs!$E$12)*AO16) -> 17.66136814 | AT16: =IF($C16 >Inputs!$C$38,"",Inputs!$C$12*Inputs!$E$12*AO16) -> 17.66136814 | AU16: =IF($C16 >Inputs!$C$38,"",Inputs!$C$13*(1-Inputs!$E$13)*AO16) -> 13.38545796 | AV16: =IF($C16 >Inputs!$C$38,"",Inputs!$C$13*Inputs!$E$13*AO16) -> 8.92363864 | AW16: =IF($C16 >Inputs!$C$38,"",((AQ16+AR16)*Inputs!$D$11 + (AS16+AT16)*Inputs!$D$12 + (AU16+AV16)*Inputs!$D$13)/AO16) -> 0.7 | AX16: =AC16-AP16*Inputs!$E$21/Inputs!$E$23 -> 16.68370995 | AY16: =AD16-AP16*Inputs!$E$22/Inputs!$E$23 -> 11.1224733 | AZ16: =IF($C16 >Inputs!$C$38,"",(AX16+AY16)*Inputs!$D$13) -> 20.85463744 | BA16: =IF($C16 >Inputs!$C$38,"",AO16*Inputs!$C$24-AZ16) -> 31.19992129 | BB16: =IF($C16 >Inputs!$C$38,"",BA16*(1-Inputs!$E$12)) -> 15.59996065 | BC16: =IF($C16 >Inputs!$C$38,"",BA16*Inputs!$E$12) -> 15.59996065 | BD16: =IF($C16 >Inputs!$C$38,"",AO16-SUM(AX16:AY16)-BA16) -> 15.35755079 | BE16: =IF($C16 >Inputs!$C$38,"",BD16*(1-Inputs!$E$11)) -> 9.214530472 | BF16: =IF($C16 >Inputs!$C$38,"",BD16*Inputs!$E$11) -> 6.143020314 | BG16: =IF($C16 >Inputs!$C$38,"",SUM(AX16,AY16,BB16,BC16,BE16,BF16)) -> 74.36365533 | BH16: =IF($C16 >Inputs!$C$38,"",((AX16+AY16)*Inputs!$D$13 + (BB16+BC16)*Inputs!$D$12 + (BE16+BF16)*Inputs!$D$11)/BG16) -> 0.7 | BI16: =IF($C16 >Inputs!$C$38,"",AY16*IF(Inputs!$H$13="Externally",Inputs!$F$13,0)+BC16*IF(Inputs!$H$12="Externally",Inputs!$F$12,0)+BF16*IF(Inputs!$H$11="Externally",Inputs!$F$11,0)) -> 6.143020314 | BJ16: =IF($C16 >Inputs!$C$38,"",AY16*IF(Inputs!$H$13="Directly",Inputs!$F$13,0)+BC16*IF(Inputs!$H$12="Directly",Inputs!$F$12,0)+BF16*IF(Inputs!$H$11="Directly",Inputs!$F$11,0)) -> 18.92245363 | BK16: =IF($C16 >Inputs!$C$38,"",SUM(BI16:BJ16)) -> 25.06547394 | BL16: =IF($C16 >Inputs!$C$38,"",BE16/BG16) -> 0.1239117473 | BM16: =IF($C16 >Inputs!$C$38,"",BF16/BG16) -> 0.08260783157 | BN16: =IF($C16 >Inputs!$C$38,"",BB16/BG16) -> 0.2097793684 | BO16: =IF($C16 >Inputs!$C$38,"",BC16/BG16) -> 0.2097793684 | BP16: =IF($C16 >Inputs!$C$38,"",AX16/BG16) -> 0.2243530106 | BQ16: =IF($C16 >Inputs!$C$38,"",AY16/BG16) -> 0.1495686737 | BR16: =IF($C16 >Inputs!$C$38,"",BP16+BQ16) -> 0.3739216843 | BS16: =IF($C16 >Inputs!$C$38,"",SUM(BL16:BM16)-Inputs!$D$23) -> -0.01848042109 | BT16: =IF($C16 >Inputs!$C$38,"",SUM(BN16:BO16)-Inputs!$C$23) -> -0.05544126326 | BU16: =IF($C16 >Inputs!$C$38,"",SUM(BP16:BQ16)-Inputs!$E$24) -> 0.07392168434 | BV16: =IF($C16 >Inputs!$C$38,"",BS16*Inputs!$D$30) -> -0.0005544126326 | BW16: =IF($C16 >Inputs!$C$38,"",BT16*Inputs!$D$31) -> -0.006652951591 | BX16: =IF($C16 >Inputs!$C$38,"",BU16*Inputs!$D$32) -> 0.005174517904 | BY16: =IF($C16 >Inputs!$C$38,"",SUMPRODUCT($BV16:$BX16,Inputs!$C$53:$E$53)) -> -0.0005544126326 | BZ16: =IF($C16 >Inputs!$C$38,"",SUMPRODUCT($BV16:$BX16,Inputs!$C$54:$E$54)) -> -0.003030789058 | CA16: =IF($C16 >Inputs!$C$38,"",SUMPRODUCT($BV16:$BX16,Inputs!$C$55:$E$55)) -> 0.0005174517904 | CB16: =IF($C16 >Inputs!$C$38,"",SQRT(BV16*BY16+BW16*BZ16+BX16*CA16)) -> 0.004811302298 | CC16: =Inputs!$D$23*Inputs!$C$30+Inputs!$C$23*Inputs!$C$31+Inputs!$E$24*Inputs!$C$32 -> 0.051 | CD16: =(Inputs!$D$23+BS16)*Inputs!$C$30+(Inputs!$C$23+BT16)*Inputs!$C$31+(Inputs!$E$24+BU16)*Inputs!$C$32 -> 0.05173921684 | CE16: =BS16*Inputs!$C$30+BT16*Inputs!$C$31+BU16*Inputs!$C$32 -> 0.0007392168434 | CF16: =IF($C16 >Inputs!$C$38,"",IF(MOD($C16,Inputs!$E$32)=0,0,CF15+(U16-S16))) -> -0.05620634755 | CG16: =IF($C16 >Inputs!$C$38,"",IF(MOD($C16,Inputs!$E$32)=0,0,CG15+(V16-T16))) -> -0.05620634755 | CH16: =IF($C16 >Inputs!$C$38,"",-(CF16*H16+CG16*I16)/BG16) -> 0.02099368673 | CI16: =IF($C16 >Inputs!$C$38,"",BU16*(Inputs!$C$60+Inputs!$C$39*Inputs!$C$61)) -> 0.01552355371 | CJ16: =IF($C16 >Inputs!$C$38,"",Inputs!$E$24) -> 0.3
C17: 11 | D17: =IF($C17-1 >Inputs!$C$38,"",BE16) -> 9.214530472 | E17: =IF($C17-1 >Inputs!$C$38,"",BF16) -> 6.143020314 | F17: =IF($C17-1 >Inputs!$C$38,"",BB16) -> 15.59996065 | G17: =IF($C17-1 >Inputs!$C$38,"",BC16) -> 15.59996065 | H17: =IF($C17-1 >Inputs!$C$38,"",AX16) -> 16.68370995 | I17: =IF($C17-1 >Inputs!$C$38,"",AY16) -> 11.1224733 | J17: =IF($C17-1 >Inputs!$C$38,"",SUM(D17:I17)) -> 74.36365533 | K17: 0.3739216843 | L17: =IF($C17-1 >Inputs!$C$38,"",BI16) -> 6.143020314 | M17: =IF($C17-1 >Inputs!$C$38,"",BJ16) -> 18.92245363 | N17: =IF($C17-1 >Inputs!$C$38,"",L17+M17) -> 25.06547394 | O17: =IF($C17 >Inputs!$C$38,"",Inputs!$F$30) -> 0.009831632476 | P17: =IF($C17 >Inputs!$C$38,"",Inputs!$F$30) -> 0.009831632476 | Q17: =IF($C17 >Inputs!$C$38,"",Inputs!$F$31) -> -0.02765986324 | R17: =IF($C17 >Inputs!$C$38,"",Inputs!$F$31) -> -0.02765986324 | S17: =IF($C17 >Inputs!$C$38,"",IF(MOD(C17,Inputs!$E$32)=0,Inputs!$G$32,Inputs!$F$32)) -> 0 | T17: 0 | U17: =IF($C17 >Inputs!$C$38,"",Inputs!$I$32) -> -0.01405158689 | V17: -0.01405158689 | W17: =IF($C17 >Inputs!$C$38,"",Inputs!$F$33) -> -0.01905158689 | X17: =IF($C17 >Inputs!$C$38,"",Inputs!$F$33) -> -0.01905158689 | Y17: =IF($C17 >Inputs!$C$38,"",D17*(1+O17)) -> 9.305124349 | Z17: =IF($C17 >Inputs!$C$38,"",E17*(1+P17)) -> 6.203416232 | AA17: =IF($C17 >Inputs!$C$38,"",F17*(1+Q17)) -> 15.16846787 | AB17: =IF($C17 >Inputs!$C$38,"",G17*(1+R17)) -> 15.16846787 | AC17: =IF($C17 >Inputs!$C$38,"",H17*(1+S17)) -> 16.68370995 | AD17: =IF($C17 >Inputs!$C$38,"",I17*(1+T17)) -> 11.1224733 | AE17: =IF($C17 >Inputs!$C$38,"",SUM(Y17:AD17)) -> 73.65165957 | AF17: =IF($C17 >Inputs!$C$38,"",L17*(1+W17)) -> 6.025986029 | AG17: =IF($C17 >Inputs!$C$38,"",M17*(1+X17)) -> 18.56195086 | AH17: =IF($C17 >Inputs!$C$38,"",AF17+AG17) -> 24.58793689 | AI17: =IF($C17 >Inputs!$C$38,"",AE17+AG17-M17) -> 73.2911568 | AJ17: =IF($C17 >Inputs!$C$38,"",AG17-M17) -> -0.3605027694 | AK17: =IF($C17 >Inputs!$C$38,"",Inputs!$C$45*$C$5) -> 0.5 | AL17: =IF($C17 >Inputs!$C$38,"",Inputs!$C$46*$C$5) -> -1 | AM17: =IF($C17 >Inputs!$C$38,"",-Inputs!$F$44*J17) -> -0.3718182767 | AN17: =IF($C17 >Inputs!$C$38,"",SUM(AJ17:AM17)) -> -1.232321046 | AO17: =IF($C17 >Inputs!$C$38,"",AE17+AN17) -> 72.41933853 | AP17: =-J17*Inputs!$F$48 -> -0.02974546213 | AQ17: =IF($C17 >Inputs!$C$38,"",Inputs!$C$11*(1-Inputs!$E$11)*AO17) -> 9.776610701 | AR17: =IF($C17 >Inputs!$C$38,"",Inputs!$C$11*Inputs!$E$11*AO17) -> 6.517740467 | AS17: =IF($C17 >Inputs!$C$38,"",Inputs!$C$12*(1-Inputs!$E$12)*AO17) -> 17.1995929 | AT17: =IF($C17 >Inputs!$C$38,"",Inputs!$C$12*Inputs!$E$12*AO17) -> 17.1995929 | AU17: =IF($C17 >Inputs!$C$38,"",Inputs!$C$13*(1-Inputs!$E$13)*AO17) -> 13.03548093 | AV17: =IF($C17 >Inputs!$C$38,"",Inputs!$C$13*Inputs!$E$13*AO17) -> 8.690320623 | AW17: =IF($C17 >Inputs!$C$38,"",((AQ17+AR17)*Inputs!$D$11 + (AS17+AT17)*Inputs!$D$12 + (AU17+AV17)*Inputs!$D$13)/AO17) -> 0.7 | AX17: =AC17-AP17*Inputs!$E$21/Inputs!$E$23 -> 16.70155723 | AY17: =AD17-AP17*Inputs!$E$22/Inputs!$E$23 -> 11.13437149 | AZ17: =IF($C17 >Inputs!$C$38,"",(AX17+AY17)*Inputs!$D$13) -> 20.87694654 | BA17: =IF($C17 >Inputs!$C$38,"",AO17*Inputs!$C$24-AZ17) -> 29.81659043 | BB17: =IF($C17 >Inputs!$C$38,"",BA17*(1-Inputs!$E$12)) -> 14.90829521 | BC17: =IF($C17 >Inputs!$C$38,"",BA17*Inputs!$E$12) -> 14.90829521 | BD17: =IF($C17 >Inputs!$C$38,"",AO17-SUM(AX17:AY17)-BA17) -> 14.76681938 | BE17: =IF($C17 >Inputs!$C$38,"",BD17*(1-Inputs!$E$11)) -> 8.860091627 | BF17: =IF($C17 >Inputs!$C$38,"",BD17*Inputs!$E$11) -> 5.906727751 | BG17: =IF($C17 >Inputs!$C$38,"",SUM(AX17,AY17,BB17,BC17,BE17,BF17)) -> 72.41933853 | BH17: =IF($C17 >Inputs!$C$38,"",((AX17+AY17)*Inputs!$D$13 + (BB17+BC17)*Inputs!$D$12 + (BE17+BF17)*Inputs!$D$11)/BG17) -> 0.7 | BI17: =IF($C17 >Inputs!$C$38,"",AY17*IF(Inputs!$H$13="Externally",Inputs!$F$13,0)+BC17*IF(Inputs!$H$12="Externally",Inputs!$F$12,0)+BF17*IF(Inputs!$H$11="Externally",Inputs!$F$11,0)) -> 5.906727751 | BJ17: =IF($C17 >Inputs!$C$38,"",AY17*IF(Inputs!$H$13="Directly",Inputs!$F$13,0)+BC17*IF(Inputs!$H$12="Directly",Inputs!$F$12,0)+BF17*IF(Inputs!$H$11="Directly",Inputs!$F$11,0)) -> 18.58851909 | BK17: =IF($C17 >Inputs!$C$38,"",SUM(BI17:BJ17)) -> 24.49524685 | BL17: =IF($C17 >Inputs!$C$38,"",BE17/BG17) -> 0.1223442772 | BM17: =IF($C17 >Inputs!$C$38,"",BF17/BG17) -> 0.08156285146 | BN17: =IF($C17 >Inputs!$C$38,"",BB17/BG17) -> 0.205860693 | BO17: =IF($C17 >Inputs!$C$38,"",BC17/BG17) -> 0.205860693 | BP17: =IF($C17 >Inputs!$C$38,"",AX17/BG17) -> 0.2306228912 | BQ17: =IF($C17 >Inputs!$C$38,"",AY17/BG17) -> 0.1537485941 | BR17: =IF($C17 >Inputs!$C$38,"",BP17+BQ17) -> 0.3843714854 | BS17: =IF($C17 >Inputs!$C$38,"",SUM(BL17:BM17)-Inputs!$D$23) -> -0.02109287134 | BT17: =IF($C17 >Inputs!$C$38,"",SUM(BN17:BO17)-Inputs!$C$23) -> -0.06327861402 | BU17: =IF($C17 >Inputs!$C$38,"",SUM(BP17:BQ17)-Inputs!$E$24) -> 0.08437148536 | BV17: =IF($C17 >Inputs!$C$38,"",BS17*Inputs!$D$30) -> -0.0006327861402 | BW17: =IF($C17 >Inputs!$C$38,"",BT17*Inputs!$D$31) -> -0.007593433682 | BX17: =IF($C17 >Inputs!$C$38,"",BU17*Inputs!$D$32) -> 0.005906003975 | BY17: =IF($C17 >Inputs!$C$38,"",SUMPRODUCT($BV17:$BX17,Inputs!$C$53:$E$53)) -> -0.0006327861402 | BZ17: =IF($C17 >Inputs!$C$38,"",SUMPRODUCT($BV17:$BX17,Inputs!$C$54:$E$54)) -> -0.0034592309 | CA17: =IF($C17 >Inputs!$C$38,"",SUMPRODUCT($BV17:$BX17,Inputs!$C$55:$E$55)) -> 0.0005906003975 | CB17: =IF($C17 >Inputs!$C$38,"",SQRT(BV17*BY17+BW17*BZ17+BX17*CA17)) -> 0.005491443073 | CC17: =Inputs!$D$23*Inputs!$C$30+Inputs!$C$23*Inputs!$C$31+Inputs!$E$24*Inputs!$C$32 -> 0.051 | CD17: =(Inputs!$D$23+BS17)*Inputs!$C$30+(Inputs!$C$23+BT17)*Inputs!$C$31+(Inputs!$E$24+BU17)*Inputs!$C$32 -> 0.05184371485 | CE17: =BS17*Inputs!$C$30+BT17*Inputs!$C$31+BU17*Inputs!$C$32 -> 0.0008437148536 | CF17: =IF($C17 >Inputs!$C$38,"",IF(MOD($C17,Inputs!$E$32)=0,0,CF16+(U17-S17))) -> -0.07025793444 | CG17: =IF($C17 >Inputs!$C$38,"",IF(MOD($C17,Inputs!$E$32)=0,0,CG16+(V17-T17))) -> -0.07025793444 | CH17: =IF($C17 >Inputs!$C$38,"",-(CF17*H17+CG17*I17)/BG17) -> 0.02697628893 | CI17: =IF($C17 >Inputs!$C$38,"",BU17*(Inputs!$C$60+Inputs!$C$39*Inputs!$C$61)) -> 0.01771801193 | CJ17: =IF($C17 >Inputs!$C$38,"",Inputs!$E$24) -> 0.3
C18: 12 | D18: =IF($C18-1 >Inputs!$C$38,"",BE17) -> 8.860091627 | E18: =IF($C18-1 >Inputs!$C$38,"",BF17) -> 5.906727751 | F18: =IF($C18-1 >Inputs!$C$38,"",BB17) -> 14.90829521 | G18: =IF($C18-1 >Inputs!$C$38,"",BC17) -> 14.90829521 | H18: =IF($C18-1 >Inputs!$C$38,"",AX17) -> 16.70155723 | I18: =IF($C18-1 >Inputs!$C$38,"",AY17) -> 11.13437149 | J18: =IF($C18-1 >Inputs!$C$38,"",SUM(D18:I18)) -> 72.41933853 | K18: 0.3843714854 | L18: =IF($C18-1 >Inputs!$C$38,"",BI17) -> 5.906727751 | M18: =IF($C18-1 >Inputs!$C$38,"",BJ17) -> 18.58851909 | N18: =IF($C18-1 >Inputs!$C$38,"",L18+M18) -> 24.49524685 | O18: =IF($C18 >Inputs!$C$38,"",Inputs!$F$30) -> 0.009831632476 | P18: =IF($C18 >Inputs!$C$38,"",Inputs!$F$30) -> 0.009831632476 | Q18: =IF($C18 >Inputs!$C$38,"",Inputs!$F$31) -> -0.02765986324 | R18: =IF($C18 >Inputs!$C$38,"",Inputs!$F$31) -> -0.02765986324 | S18: =IF($C18 >Inputs!$C$38,"",IF(MOD(C18,Inputs!$E$32)=0,Inputs!$G$32,Inputs!$F$32)) -> -0.08430952133 | T18: -0.08430952133 | U18: =IF($C18 >Inputs!$C$38,"",Inputs!$I$32) -> -0.01405158689 | V18: -0.01405158689 | W18: =IF($C18 >Inputs!$C$38,"",Inputs!$F$33) -> -0.01905158689 | X18: =IF($C18 >Inputs!$C$38,"",Inputs!$F$33) -> -0.01905158689 | Y18: =IF($C18 >Inputs!$C$38,"",D18*(1+O18)) -> 8.947200792 | Z18: =IF($C18 >Inputs!$C$38,"",E18*(1+P18)) -> 5.964800528 | AA18: =IF($C18 >Inputs!$C$38,"",F18*(1+Q18)) -> 14.49593381 | AB18: =IF($C18 >Inputs!$C$38,"",G18*(1+R18)) -> 14.49593381 | AC18: =IF($C18 >Inputs!$C$38,"",H18*(1+S18)) -> 15.29345694 | AD18: =IF($C18 >Inputs!$C$38,"",I18*(1+T18)) -> 10.19563796 | AE18: =IF($C18 >Inputs!$C$38,"",SUM(Y18:AD18)) -> 69.39296383 | AF18: =IF($C18 >Inputs!$C$38,"",L18*(1+W18)) -> 5.794195214 | AG18: =IF($C18 >Inputs!$C$38,"",M18*(1+X18)) -> 18.23437831 | AH18: =IF($C18 >Inputs!$C$38,"",AF18+AG18) -> 24.02857352 | AI18: =IF($C18 >Inputs!$C$38,"",AE18+AG18-M18) -> 69.03882304 | AJ18: =IF($C18 >Inputs!$C$38,"",AG18-M18) -> -0.3541407867 | AK18: =IF($C18 >Inputs!$C$38,"",Inputs!$C$45*$C$5) -> 0.5 | AL18: =IF($C18 >Inputs!$C$38,"",Inputs!$C$46*$C$5) -> -1 | AM18: =IF($C18 >Inputs!$C$38,"",-Inputs!$F$44*J18) -> -0.3620966926 | AN18: =IF($C18 >Inputs!$C$38,"",SUM(AJ18:AM18)) -> -1.216237479 | AO18: =IF($C18 >Inputs!$C$38,"",AE18+AN18) -> 68.17672635 | AP18: =-J18*Inputs!$F$48 -> -0.02896773541 | AQ18: =IF($C18 >Inputs!$C$38,"",Inputs!$C$11*(1-Inputs!$E$11)*AO18) -> 9.203858057 | AR18: =IF($C18 >Inputs!$C$38,"",Inputs!$C$11*Inputs!$E$11*AO18) -> 6.135905371 | AS18: =IF($C18 >Inputs!$C$38,"",Inputs!$C$12*(1-Inputs!$E$12)*AO18) -> 16.19197251 | AT18: =IF($C18 >Inputs!$C$38,"",Inputs!$C$12*Inputs!$E$12*AO18) -> 16.19197251 | AU18: =IF($C18 >Inputs!$C$38,"",Inputs!$C$13*(1-Inputs!$E$13)*AO18) -> 12.27181074 | AV18: =IF($C18 >Inputs!$C$38,"",Inputs!$C$13*Inputs!$E$13*AO18) -> 8.181207162 | AW18: =IF($C18 >Inputs!$C$38,"",((AQ18+AR18)*Inputs!$D$11 + (AS18+AT18)*Inputs!$D$12 + (AU18+AV18)*Inputs!$D$13)/AO18) -> 0.7 | AX18: =AC18-AP18*Inputs!$E$21/Inputs!$E$23 -> 15.31083758 | AY18: =AD18-AP18*Inputs!$E$22/Inputs!$E$23 -> 10.20722505 | AZ18: =IF($C18 >Inputs!$C$38,"",(AX18+AY18)*Inputs!$D$13) -> 19.13854697 | BA18: =IF($C18 >Inputs!$C$38,"",AO18*Inputs!$C$24-AZ18) -> 28.58516147 | BB18: =IF($C18 >Inputs!$C$38,"",BA18*(1-Inputs!$E$12)) -> 14.29258074 | BC18: =IF($C18 >Inputs!$C$38,"",BA18*Inputs!$E$12) -> 14.29258074 | BD18: =IF($C18 >Inputs!$C$38,"",AO18-SUM(AX18:AY18)-BA18) -> 14.07350225 | BE18: =IF($C18 >Inputs!$C$38,"",BD18*(1-Inputs!$E$11)) -> 8.444101349 | BF18: =IF($C18 >Inputs!$C$38,"",BD18*Inputs!$E$11) -> 5.629400899 | BG18: =IF($C18 >Inputs!$C$38,"",SUM(AX18,AY18,BB18,BC18,BE18,BF18)) -> 68.17672635 | BH18: =IF($C18 >Inputs!$C$38,"",((AX18+AY18)*Inputs!$D$13 + (BB18+BC18)*Inputs!$D$12 + (BE18+BF18)*Inputs!$D$11)/BG18) -> 0.7 | BI18: =IF($C18 >Inputs!$C$38,"",AY18*IF(Inputs!$H$13="Externally",Inputs!$F$13,0)+BC18*IF(Inputs!$H$12="Externally",Inputs!$F$12,0)+BF18*IF(Inputs!$H$11="Externally",Inputs!$F$11,0)) -> 5.629400899 | BJ18: =IF($C18 >Inputs!$C$38,"",AY18*IF(Inputs!$H$13="Directly",Inputs!$F$13,0)+BC18*IF(Inputs!$H$12="Directly",Inputs!$F$12,0)+BF18*IF(Inputs!$H$11="Directly",Inputs!$F$11,0)) -> 17.35351542 | BK18: =IF($C18 >Inputs!$C$38,"",SUM(BI18:BJ18)) -> 22.98291632 | BL18: =IF($C18 >Inputs!$C$38,"",BE18/BG18) -> 0.1238560694 | BM18: =IF($C18 >Inputs!$C$38,"",BF18/BG18) -> 0.08257071292 | BN18: =IF($C18 >Inputs!$C$38,"",BB18/BG18) -> 0.2096401734 | BO18: =IF($C18 >Inputs!$C$38,"",BC18/BG18) -> 0.2096401734 | BP18: =IF($C18 >Inputs!$C$38,"",AX18/BG18) -> 0.2245757225 | BQ18: =IF($C18 >Inputs!$C$38,"",AY18/BG18) -> 0.1497171483 | BR18: =IF($C18 >Inputs!$C$38,"",BP18+BQ18) -> 0.3742928708 | BS18: =IF($C18 >Inputs!$C$38,"",SUM(BL18:BM18)-Inputs!$D$23) -> -0.0185732177 | BT18: =IF($C18 >Inputs!$C$38,"",SUM(BN18:BO18)-Inputs!$C$23) -> -0.05571965311 | BU18: =IF($C18 >Inputs!$C$38,"",SUM(BP18:BQ18)-Inputs!$E$24) -> 0.07429287081 | BV18: =IF($C18 >Inputs!$C$38,"",BS18*Inputs!$D$30) -> -0.0005571965311 | BW18: =IF($C18 >Inputs!$C$38,"",BT18*Inputs!$D$31) -> -0.006686358373 | BX18: =IF($C18 >Inputs!$C$38,"",BU18*Inputs!$D$32) -> 0.005200500957 | BY18: =IF($C18 >Inputs!$C$38,"",SUMPRODUCT($BV18:$BX18,Inputs!$C$53:$E$53)) -> -0.0005571965311 | BZ18: =IF($C18 >Inputs!$C$38,"",SUMPRODUCT($BV18:$BX18,Inputs!$C$54:$E$54)) -> -0.003046007703 | CA18: =IF($C18 >Inputs!$C$38,"",SUMPRODUCT($BV18:$BX18,Inputs!$C$55:$E$55)) -> 0.0005200500957 | CB18: =IF($C18 >Inputs!$C$38,"",SQRT(BV18*BY18+BW18*BZ18+BX18*CA18)) -> 0.004835461519 | CC18: =Inputs!$D$23*Inputs!$C$30+Inputs!$C$23*Inputs!$C$31+Inputs!$E$24*Inputs!$C$32 -> 0.051 | CD18: =(Inputs!$D$23+BS18)*Inputs!$C$30+(Inputs!$C$23+BT18)*Inputs!$C$31+(Inputs!$E$24+BU18)*Inputs!$C$32 -> 0.05174292871 | CE18: =BS18*Inputs!$C$30+BT18*Inputs!$C$31+BU18*Inputs!$C$32 -> 0.0007429287081 | CF18: =IF($C18 >Inputs!$C$38,"",IF(MOD($C18,Inputs!$E$32)=0,0,CF17+(U18-S18))) -> 0 | CG18: =IF($C18 >Inputs!$C$38,"",IF(MOD($C18,Inputs!$E$32)=0,0,CG17+(V18-T18))) -> 0 | CH18: =IF($C18 >Inputs!$C$38,"",-(CF18*H18+CG18*I18)/BG18) -> 0 | CI18: =IF($C18 >Inputs!$C$38,"",BU18*(Inputs!$C$60+Inputs!$C$39*Inputs!$C$61)) -> 0.01560150287 | CJ18: =IF($C18 >Inputs!$C$38,"",Inputs!$E$24) -> 0.3
C19: 13 | D19: =IF($C19-1 >Inputs!$C$38,"",BE18) -> 8.444101349 | E19: =IF($C19-1 >Inputs!$C$38,"",BF18) -> 5.629400899 | F19: =IF($C19-1 >Inputs!$C$38,"",BB18) -> 14.29258074 | G19: =IF($C19-1 >Inputs!$C$38,"",BC18) -> 14.29258074 | H19: =IF($C19-1 >Inputs!$C$38,"",AX18) -> 15.31083758 | I19: =IF($C19-1 >Inputs!$C$38,"",AY18) -> 10.20722505 | J19: =IF($C19-1 >Inputs!$C$38,"",SUM(D19:I19)) -> 68.17672635 | K19: 0.3742928708 | L19: =IF($C19-1 >Inputs!$C$38,"",BI18) -> 5.629400899 | M19: =IF($C19-1 >Inputs!$C$38,"",BJ18) -> 17.35351542 | N19: =IF($C19-1 >Inputs!$C$38,"",L19+M19) -> 22.98291632 | O19: =IF($C19 >Inputs!$C$38,"",Inputs!$F$30) -> 0.009831632476 | P19: =IF($C19 >Inputs!$C$38,"",Inputs!$F$30) -> 0.009831632476 | Q19: =IF($C19 >Inputs!$C$38,"",Inputs!$F$31) -> -0.02765986324 | R19: =IF($C19 >Inputs!$C$38,"",Inputs!$F$31) -> -0.02765986324 | S19: =IF($C19 >Inputs!$C$38,"",IF(MOD(C19,Inputs!$E$32)=0,Inputs!$G$32,Inputs!$F$32)) -> 0 | T19: 0 | U19: =IF($C19 >Inputs!$C$38,"",Inputs!$I$32) -> -0.01405158689 | V19: -0.01405158689 | W19: =IF($C19 >Inputs!$C$38,"",Inputs!$F$33) -> -0.01905158689 | X19: =IF($C19 >Inputs!$C$38,"",Inputs!$F$33) -> -0.01905158689 | Y19: =IF($C19 >Inputs!$C$38,"",D19*(1+O19)) -> 8.52712065 | Z19: =IF($C19 >Inputs!$C$38,"",E19*(1+P19)) -> 5.6847471 | AA19: =IF($C19 >Inputs!$C$38,"",F19*(1+Q19)) -> 13.89724991 | AB19: =IF($C19 >Inputs!$C$38,"",G19*(1+R19)) -> 13.89724991 | AC19: =IF($C19 >Inputs!$C$38,"",H19*(1+S19)) -> 15.31083758 | AD19: =IF($C19 >Inputs!$C$38,"",I19*(1+T19)) -> 10.20722505 | AE19: =IF($C19 >Inputs!$C$38,"",SUM(Y19:AD19)) -> 67.52443019 | AF19: =IF($C19 >Inputs!$C$38,"",L19*(1+W19)) -> 5.522151879 | AG19: =IF($C19 >Inputs!$C$38,"",M19*(1+X19)) -> 17.02290341 | AH19: =IF($C19 >Inputs!$C$38,"",AF19+AG19) -> 22.54505529 | AI19: =IF($C19 >Inputs!$C$38,"",AE19+AG19-M19) -> 67.19381819 | AJ19: =IF($C19 >Inputs!$C$38,"",AG19-M19) -> -0.3306120068 | AK19: =IF($C19 >Inputs!$C$38,"",Inputs!$C$45*$C$5) -> 0.5 | AL19: =IF($C19 >Inputs!$C$38,"",Inputs!$C$46*$C$5) -> -1 | AM19: =IF($C19 >Inputs!$C$38,"",-Inputs!$F$44*J19) -> -0.3408836317 | AN19: =IF($C19 >Inputs!$C$38,"",SUM(AJ19:AM19)) -> -1.171495639 | AO19: =IF($C19 >Inputs!$C$38,"",AE19+AN19) -> 66.35293455 | AP19: =-J19*Inputs!$F$48 -> -0.02727069054 | AQ19: =IF($C19 >Inputs!$C$38,"",Inputs!$C$11*(1-Inputs!$E$11)*AO19) -> 8.957646165 | AR19: =IF($C19 >Inputs!$C$38,"",Inputs!$C$11*Inputs!$E$11*AO19) -> 5.97176411 | AS19: =IF($C19 >Inputs!$C$38,"",Inputs!$C$12*(1-Inputs!$E$12)*AO19) -> 15.75882196 | AT19: =IF($C19 >Inputs!$C$38,"",Inputs!$C$12*Inputs!$E$12*AO19) -> 15.75882196 | AU19: =IF($C19 >Inputs!$C$38,"",Inputs!$C$13*(1-Inputs!$E$13)*AO19) -> 11.94352822 | AV19: =IF($C19 >Inputs!$C$38,"",Inputs!$C$13*Inputs!$E$13*AO19) -> 7.962352147 | AW19: =IF($C19 >Inputs!$C$38,"",((AQ19+AR19)*Inputs!$D$11 + (AS19+AT19)*Inputs!$D$12 + (AU19+AV19)*Inputs!$D$13)/AO19) -> 0.7 | AX19: =AC19-AP19*Inputs!$E$21/Inputs!$E$23 -> 15.32719999 | AY19: =AD19-AP19*Inputs!$E$22/Inputs!$E$23 -> 10.21813333 | AZ19: =IF($C19 >Inputs!$C$38,"",(AX19+AY19)*Inputs!$D$13) -> 19.15899999 | BA19: =IF($C19 >Inputs!$C$38,"",AO19*Inputs!$C$24-AZ19) -> 27.2880542 | BB19: =IF($C19 >Inputs!$C$38,"",BA19*(1-Inputs!$E$12)) -> 13.6440271 | BC19: =IF($C19 >Inputs!$C$38,"",BA19*Inputs!$E$12) -> 13.6440271 | BD19: =IF($C19 >Inputs!$C$38,"",AO19-SUM(AX19:AY19)-BA19) -> 13.51954704 | BE19: =IF($C19 >Inputs!$C$38,"",BD19*(1-Inputs!$E$11)) -> 8.111728222 | BF19: =IF($C19 >Inputs!$C$38,"",BD19*Inputs!$E$11) -> 5.407818815 | BG19: =IF($C19 >Inputs!$C$38,"",SUM(AX19,AY19,BB19,BC19,BE19,BF19)) -> 66.35293455 | BH19: =IF($C19 >Inputs!$C$38,"",((AX19+AY19)*Inputs!$D$13 + (BB19+BC19)*Inputs!$D$12 + (BE19+BF19)*Inputs!$D$11)/BG19) -> 0.7 | BI19: =IF($C19 >Inputs!$C$38,"",AY19*IF(Inputs!$H$13="Externally",Inputs!$F$13,0)+BC19*IF(Inputs!$H$12="Externally",Inputs!$F$12,0)+BF19*IF(Inputs!$H$11="Externally",Inputs!$F$11,0)) -> 5.407818815 | BJ19: =IF($C19 >Inputs!$C$38,"",AY19*IF(Inputs!$H$13="Directly",Inputs!$F$13,0)+BC19*IF(Inputs!$H$12="Directly",Inputs!$F$12,0)+BF19*IF(Inputs!$H$11="Directly",Inputs!$F$11,0)) -> 17.04014688 | BK19: =IF($C19 >Inputs!$C$38,"",SUM(BI19:BJ19)) -> 22.44796569 | BL19: =IF($C19 >Inputs!$C$38,"",BE19/BG19) -> 0.1222512354 | BM19: =IF($C19 >Inputs!$C$38,"",BF19/BG19) -> 0.0815008236 | BN19: =IF($C19 >Inputs!$C$38,"",BB19/BG19) -> 0.2056280885 | BO19: =IF($C19 >Inputs!$C$38,"",BC19/BG19) -> 0.2056280885 | BP19: =IF($C19 >Inputs!$C$38,"",AX19/BG19) -> 0.2309950584 | BQ19: =IF($C19 >Inputs!$C$38,"",AY19/BG19) -> 0.1539967056 | BR19: =IF($C19 >Inputs!$C$38,"",BP19+BQ19) -> 0.384991764 | BS19: =IF($C19 >Inputs!$C$38,"",SUM(BL19:BM19)-Inputs!$D$23) -> -0.02124794099 | BT19: =IF($C19 >Inputs!$C$38,"",SUM(BN19:BO19)-Inputs!$C$23) -> -0.06374382297 | BU19: =IF($C19 >Inputs!$C$38,"",SUM(BP19:BQ19)-Inputs!$E$24) -> 0.08499176396 | BV19: =IF($C19 >Inputs!$C$38,"",BS19*Inputs!$D$30) -> -0.0006374382297 | BW19: =IF($C19 >Inputs!$C$38,"",BT19*Inputs!$D$31) -> -0.007649258756 | BX19: =IF($C19 >Inputs!$C$38,"",BU19*Inputs!$D$32) -> 0.005949423477 | BY19: =IF($C19 >Inputs!$C$38,"",SUMPRODUCT($BV19:$BX19,Inputs!$C$53:$E$53)) -> -0.0006374382297 | BZ19: =IF($C19 >Inputs!$C$38,"",SUMPRODUCT($BV19:$BX19,Inputs!$C$54:$E$54)) -> -0.003484662322 | CA19: =IF($C19 >Inputs!$C$38,"",SUMPRODUCT($BV19:$BX19,Inputs!$C$55:$E$55)) -> 0.0005949423477 | CB19: =IF($C19 >Inputs!$C$38,"",SQRT(BV19*BY19+BW19*BZ19+BX19*CA19)) -> 0.005531814824 | CC19: =Inputs!$D$23*Inputs!$C$30+Inputs!$C$23*Inputs!$C$31+Inputs!$E$24*Inputs!$C$32 -> 0.051 | CD19: =(Inputs!$D$23+BS19)*Inputs!$C$30+(Inputs!$C$23+BT19)*Inputs!$C$31+(Inputs!$E$24+BU19)*Inputs!$C$32 -> 0.05184991764 | CE19: =BS19*Inputs!$C$30+BT19*Inputs!$C$31+BU19*Inputs!$C$32 -> 0.0008499176396 | CF19: =IF($C19 >Inputs!$C$38,"",IF(MOD($C19,Inputs!$E$32)=0,0,CF18+(U19-S19))) -> -0.01405158689 | CG19: =IF($C19 >Inputs!$C$38,"",IF(MOD($C19,Inputs!$E$32)=0,0,CG18+(V19-T19))) -> -0.01405158689 | CH19: =IF($C19 >Inputs!$C$38,"",-(CF19*H19+CG19*I19)/BG19) -> 0.005403970098 | CI19: =IF($C19 >Inputs!$C$38,"",BU19*(Inputs!$C$60+Inputs!$C$39*Inputs!$C$61)) -> 0.01784827043 | CJ19: =IF($C19 >Inputs!$C$38,"",Inputs!$E$24) -> 0.3
C20: 14 | D20: =IF($C20-1 >Inputs!$C$38,"",BE19) -> 8.111728222 | E20: =IF($C20-1 >Inputs!$C$38,"",BF19) -> 5.407818815 | F20: =IF($C20-1 >Inputs!$C$38,"",BB19) -> 13.6440271 | G20: =IF($C20-1 >Inputs!$C$38,"",BC19) -> 13.6440271 | H20: =IF($C20-1 >Inputs!$C$38,"",AX19) -> 15.32719999 | I20: =IF($C20-1 >Inputs!$C$38,"",AY19) -> 10.21813333 | J20: =IF($C20-1 >Inputs!$C$38,"",SUM(D20:I20)) -> 66.35293455 | K20: =IF($J20="","",(H20+I20)/J20) -> 0.384991764 | L20: =IF($C20-1 >Inputs!$C$38,"",BI19) -> 5.407818815 | M20: =IF($C20-1 >Inputs!$C$38,"",BJ19) -> 17.04014688 | N20: =IF($C20-1 >Inputs!$C$38,"",L20+M20) -> 22.44796569 | O20: =IF($C20 >Inputs!$C$38,"",Inputs!$F$30) -> 0.009831632476 | P20: =IF($C20 >Inputs!$C$38,"",Inputs!$F$30) -> 0.009831632476 | Q20: =IF($C20 >Inputs!$C$38,"",Inputs!$F$31) -> -0.02765986324 | R20: =IF($C20 >Inputs!$C$38,"",Inputs!$F$31) -> -0.02765986324 | S20: =IF($C20 >Inputs!$C$38,"",IF(MOD(C20,Inputs!$E$32)=0,Inputs!$G$32,Inputs!$F$32)) -> 0 | T20: 0 | U20: =IF($C20 >Inputs!$C$38,"",Inputs!$I$32) -> -0.01405158689 | V20: -0.01405158689 | W20: =IF($C20 >Inputs!$C$38,"",Inputs!$F$33) -> -0.01905158689 | X20: =IF($C20 >Inputs!$C$38,"",Inputs!$F$33) -> -0.01905158689 | Y20: =IF($C20 >Inputs!$C$38,"",D20*(1+O20)) -> 8.191479753 | Z20: =IF($C20 >Inputs!$C$38,"",E20*(1+P20)) -> 5.460986502 | AA20: =IF($C20 >Inputs!$C$38,"",F20*(1+Q20)) -> 13.26663518 | AB20: =IF($C20 >Inputs!$C$38,"",G20*(1+R20)) -> 13.26663518 | AC20: =IF($C20 >Inputs!$C$38,"",H20*(1+S20)) -> 15.32719999 | AD20: =IF($C20 >Inputs!$C$38,"",I20*(1+T20)) -> 10.21813333 | AE20: =IF($C20 >Inputs!$C$38,"",SUM(Y20:AD20)) -> 65.73106993 | AF20: =IF($C20 >Inputs!$C$38,"",L20*(1+W20)) -> 5.304791285 | AG20: =IF($C20 >Inputs!$C$38,"",M20*(1+X20)) -> 16.71550504 | AH20: =IF($C20 >Inputs!$C$38,"",AF20+AG20) -> 22.02029632 | AI20: =IF($C20 >Inputs!$C$38,"",AE20+AG20-M20) -> 65.40642809 | AJ20: =IF($C20 >Inputs!$C$38,"",AG20-M20) -> -0.3246418388 | AK20: =IF($C20 >Inputs!$C$38,"",Inputs!$C$45*$C$5) -> 0.5 | AL20: =IF($C20 >Inputs!$C$38,"",Inputs!$C$46*$C$5) -> -1 | AM20: =IF($C20 >Inputs!$C$38,"",-Inputs!$F$44*J20) -> -0.3317646728 | AN20: =IF($C20 >Inputs!$C$38,"",SUM(AJ20:AM20)) -> -1.156406512 | AO20: =IF($C20 >Inputs!$C$38,"",AE20+AN20) -> 64.57466341 | AP20: =-J20*Inputs!$F$48 -> -0.02654117382 | AQ20: =IF($C20 >Inputs!$C$38,"",Inputs!$C$11*(1-Inputs!$E$11)*AO20) -> 8.717579561 | AR20: =IF($C20 >Inputs!$C$38,"",Inputs!$C$11*Inputs!$E$11*AO20) -> 5.811719707 | AS20: =IF($C20 >Inputs!$C$38,"",Inputs!$C$12*(1-Inputs!$E$12)*AO20) -> 15.33648256 | AT20: =IF($C20 >Inputs!$C$38,"",Inputs!$C$12*Inputs!$E$12*AO20) -> 15.33648256 | AU20: =IF($C20 >Inputs!$C$38,"",Inputs!$C$13*(1-Inputs!$E$13)*AO20) -> 11.62343941 | AV20: =IF($C20 >Inputs!$C$38,"",Inputs!$C$13*Inputs!$E$13*AO20) -> 7.74895961 | AW20: =IF($C20 >Inputs!$C$38,"",((AQ20+AR20)*Inputs!$D$11 + (AS20+AT20)*Inputs!$D$12 + (AU20+AV20)*Inputs!$D$13)/AO20) -> 0.7 | AX20: =AC20-AP20*Inputs!$E$21/Inputs!$E$23 -> 15.3431247 | AY20: =AD20-AP20*Inputs!$E$22/Inputs!$E$23 -> 10.2287498 | AZ20: =IF($C20 >Inputs!$C$38,"",(AX20+AY20)*Inputs!$D$13) -> 19.17890587 | BA20: =IF($C20 >Inputs!$C$38,"",AO20*Inputs!$C$24-AZ20) -> 26.02335852 | BB20: =IF($C20 >Inputs!$C$38,"",BA20*(1-Inputs!$E$12)) -> 13.01167926 | BC20: =IF($C20 >Inputs!$C$38,"",BA20*Inputs!$E$12) -> 13.01167926 | BD20: =IF($C20 >Inputs!$C$38,"",AO20-SUM(AX20:AY20)-BA20) -> 12.9794304 | BE20: =IF($C20 >Inputs!$C$38,"",BD20*(1-Inputs!$E$11)) -> 7.787658241 | BF20: =IF($C20 >Inputs!$C$38,"",BD20*Inputs!$E$11) -> 5.19177216 | BG20: =IF($C20 >Inputs!$C$38,"",SUM(AX20,AY20,BB20,BC20,BE20,BF20)) -> 64.57466341 | BH20: =IF($C20 >Inputs!$C$38,"",((AX20+AY20)*Inputs!$D$13 + (BB20+BC20)*Inputs!$D$12 + (BE20+BF20)*Inputs!$D$11)/BG20) -> 0.7 | BI20: =IF($C20 >Inputs!$C$38,"",AY20*IF(Inputs!$H$13="Externally",Inputs!$F$13,0)+BC20*IF(Inputs!$H$12="Externally",Inputs!$F$12,0)+BF20*IF(Inputs!$H$11="Externally",Inputs!$F$11,0)) -> 5.19177216 | BJ20: =IF($C20 >Inputs!$C$38,"",AY20*IF(Inputs!$H$13="Directly",Inputs!$F$13,0)+BC20*IF(Inputs!$H$12="Directly",Inputs!$F$12,0)+BF20*IF(Inputs!$H$11="Directly",Inputs!$F$11,0)) -> 16.73458943 | BK20: =IF($C20 >Inputs!$C$38,"",SUM(BI20:BJ20)) -> 21.92636159 | BL20: =IF($C20 >Inputs!$C$38,"",BE20/BG20) -> 0.1205992851 | BM20: =IF($C20 >Inputs!$C$38,"",BF20/BG20) -> 0.08039952337 | BN20: =IF($C20 >Inputs!$C$38,"",BB20/BG20) -> 0.2014982126 | BO20: =IF($C20 >Inputs!$C$38,"",BC20/BG20) -> 0.2014982126 | BP20: =IF($C20 >Inputs!$C$38,"",AX20/BG20) -> 0.2376028598 | BQ20: =IF($C20 >Inputs!$C$38,"",AY20/BG20) -> 0.1584019065 | BR20: =IF($C20 >Inputs!$C$38,"",BP20+BQ20) -> 0.3960047663 | BS20: =IF($C20 >Inputs!$C$38,"",SUM(BL20:BM20)-Inputs!$D$23) -> -0.02400119157 | BT20: =IF($C20 >Inputs!$C$38,"",SUM(BN20:BO20)-Inputs!$C$23) -> -0.0720035747 | BU20: =IF($C20 >Inputs!$C$38,"",SUM(BP20:BQ20)-Inputs!$E$24) -> 0.09600476627 | BV20: =IF($C20 >Inputs!$C$38,"",BS20*Inputs!$D$30) -> -0.000720035747 | BW20: =IF($C20 >Inputs!$C$38,"",BT20*Inputs!$D$31) -> -0.008640428964 | BX20: =IF($C20 >Inputs!$C$38,"",BU20*Inputs!$D$32) -> 0.006720333639 | BY20: =IF($C20 >Inputs!$C$38,"",SUMPRODUCT($BV20:$BX20,Inputs!$C$53:$E$53)) -> -0.000720035747 | BZ20: =IF($C20 >Inputs!$C$38,"",SUMPRODUCT($BV20:$BX20,Inputs!$C$54:$E$54)) -> -0.003936195417 | CA20: =IF($C20 >Inputs!$C$38,"",SUMPRODUCT($BV20:$BX20,Inputs!$C$55:$E$55)) -> 0.0006720333639 | CB20: =IF($C20 >Inputs!$C$38,"",SQRT(BV20*BY20+BW20*BZ20+BX20*CA20)) -> 0.006248612389 | CC20: =Inputs!$D$23*Inputs!$C$30+Inputs!$C$23*Inputs!$C$31+Inputs!$E$24*Inputs!$C$32 -> 0.051 | CD20: =(Inputs!$D$23+BS20)*Inputs!$C$30+(Inputs!$C$23+BT20)*Inputs!$C$31+(Inputs!$E$24+BU20)*Inputs!$C$32 -> 0.05196004766 | CE20: =BS20*Inputs!$C$30+BT20*Inputs!$C$31+BU20*Inputs!$C$32 -> 0.0009600476627 | CF20: =IF($C20 >Inputs!$C$38,"",IF(MOD($C20,Inputs!$E$32)=0,0,CF19+(U20-S20))) -> -0.02810317378 | CG20: =IF($C20 >Inputs!$C$38,"",IF(MOD($C20,Inputs!$E$32)=0,0,CG19+(V20-T20))) -> -0.02810317378 | CH20: =IF($C20 >Inputs!$C$38,"",-(CF20*H20+CG20*I20)/BG20) -> 0.01111743993 | CI20: =IF($C20 >Inputs!$C$38,"",BU20*(Inputs!$C$60+Inputs!$C$39*Inputs!$C$61)) -> 0.02016100092 | CJ20: =IF($C20 >Inputs!$C$38,"",Inputs!$E$24) -> 0.3
C21: 15 | D21: =IF($C21-1 >Inputs!$C$38,"",BE20) -> 7.787658241 | E21: =IF($C21-1 >Inputs!$C$38,"",BF20) -> 5.19177216 | F21: =IF($C21-1 >Inputs!$C$38,"",BB20) -> 13.01167926 | G21: =IF($C21-1 >Inputs!$C$38,"",BC20) -> 13.01167926 | H21: =IF($C21-1 >Inputs!$C$38,"",AX20) -> 15.3431247 | I21: =IF($C21-1 >Inputs!$C$38,"",AY20) -> 10.2287498 | J21: =IF($C21-1 >Inputs!$C$38,"",SUM(D21:I21)) -> 64.57466341 | K21: =IF($J21="","",(H21+I21)/J21) -> 0.3960047663 | L21: =IF($C21-1 >Inputs!$C$38,"",BI20) -> 5.19177216 | M21: =IF($C21-1 >Inputs!$C$38,"",BJ20) -> 16.73458943 | N21: =IF($C21-1 >Inputs!$C$38,"",L21+M21) -> 21.92636159 | O21: =IF($C21 >Inputs!$C$38,"",Inputs!$F$30) -> 0.009831632476 | P21: =IF($C21 >Inputs!$C$38,"",Inputs!$F$30) -> 0.009831632476 | Q21: =IF($C21 >Inputs!$C$38,"",Inputs!$F$31) -> -0.02765986324 | R21: =IF($C21 >Inputs!$C$38,"",Inputs!$F$31) -> -0.02765986324 | S21: =IF($C21 >Inputs!$C$38,"",IF(MOD(C21,Inputs!$E$32)=0,Inputs!$G$32,Inputs!$F$32)) -> 0 | T21: 0 | U21: =IF($C21 >Inputs!$C$38,"",Inputs!$I$32) -> -0.01405158689 | V21: -0.01405158689 | W21: =IF($C21 >Inputs!$C$38,"",Inputs!$F$33) -> -0.01905158689 | X21: =IF($C21 >Inputs!$C$38,"",Inputs!$F$33) -> -0.01905158689 | Y21: =IF($C21 >Inputs!$C$38,"",D21*(1+O21)) -> 7.864223634 | Z21: =IF($C21 >Inputs!$C$38,"",E21*(1+P21)) -> 5.242815756 | AA21: =IF($C21 >Inputs!$C$38,"",F21*(1+Q21)) -> 12.65177799 | AB21: =IF($C21 >Inputs!$C$38,"",G21*(1+R21)) -> 12.65177799 | AC21: =IF($C21 >Inputs!$C$38,"",H21*(1+S21)) -> 15.3431247 | AD21: =IF($C21 >Inputs!$C$38,"",I21*(1+T21)) -> 10.2287498 | AE21: =IF($C21 >Inputs!$C$38,"",SUM(Y21:AD21)) -> 63.98246987 | AF21: =IF($C21 >Inputs!$C$38,"",L21*(1+W21)) -> 5.092860662 | AG21: =IF($C21 >Inputs!$C$38,"",M21*(1+X21)) -> 16.41576894 | AH21: =IF($C21 >Inputs!$C$38,"",AF21+AG21) -> 21.5086296 | AI21: =IF($C21 >Inputs!$C$38,"",AE21+AG21-M21) -> 63.66364938 | AJ21: =IF($C21 >Inputs!$C$38,"",AG21-M21) -> -0.3188204845 | AK21: =IF($C21 >Inputs!$C$38,"",Inputs!$C$45*$C$5) -> 0.5 | AL21: =IF($C21 >Inputs!$C$38,"",Inputs!$C$46*$C$5) -> -1 | AM21: =IF($C21 >Inputs!$C$38,"",-Inputs!$F$44*J21) -> -0.3228733171 | AN21: =IF($C21 >Inputs!$C$38,"",SUM(AJ21:AM21)) -> -1.141693802 | AO21: =IF($C21 >Inputs!$C$38,"",AE21+AN21) -> 62.84077606 | AP21: =-J21*Inputs!$F$48 -> -0.02582986537 | AQ21: =IF($C21 >Inputs!$C$38,"",Inputs!$C$11*(1-Inputs!$E$11)*AO21) -> 8.483504769 | AR21: =IF($C21 >Inputs!$C$38,"",Inputs!$C$11*Inputs!$E$11*AO21) -> 5.655669846 | AS21: =IF($C21 >Inputs!$C$38,"",Inputs!$C$12*(1-Inputs!$E$12)*AO21) -> 14.92468432 | AT21: =IF($C21 >Inputs!$C$38,"",Inputs!$C$12*Inputs!$E$12*AO21) -> 14.92468432 | AU21: =IF($C21 >Inputs!$C$38,"",Inputs!$C$13*(1-Inputs!$E$13)*AO21) -> 11.31133969 | AV21: =IF($C21 >Inputs!$C$38,"",Inputs!$C$13*Inputs!$E$13*AO21) -> 7.540893128 | AW21: =IF($C21 >Inputs!$C$38,"",((AQ21+AR21)*Inputs!$D$11 + (AS21+AT21)*Inputs!$D$12 + (AU21+AV21)*Inputs!$D$13)/AO21) -> 0.7 | AX21: =AC21-AP21*Inputs!$E$21/Inputs!$E$23 -> 15.35862261 | AY21: =AD21-AP21*Inputs!$E$22/Inputs!$E$23 -> 10.23908174 | AZ21: =IF($C21 >Inputs!$C$38,"",(AX21+AY21)*Inputs!$D$13) -> 19.19827827 | BA21: =IF($C21 >Inputs!$C$38,"",AO21*Inputs!$C$24-AZ21) -> 24.79026498 | BB21: =IF($C21 >Inputs!$C$38,"",BA21*(1-Inputs!$E$12)) -> 12.39513249 | BC21: =IF($C21 >Inputs!$C$38,"",BA21*Inputs!$E$12) -> 12.39513249 | BD21: =IF($C21 >Inputs!$C$38,"",AO21-SUM(AX21:AY21)-BA21) -> 12.45280673 | BE21: =IF($C21 >Inputs!$C$38,"",BD21*(1-Inputs!$E$11)) -> 7.471684038 | BF21: =IF($C21 >Inputs!$C$38,"",BD21*Inputs!$E$11) -> 4.981122692 | BG21: =IF($C21 >Inputs!$C$38,"",SUM(AX21,AY21,BB21,BC21,BE21,BF21)) -> 62.84077606 | BH21: =IF($C21 >Inputs!$C$38,"",((AX21+AY21)*Inputs!$D$13 + (BB21+BC21)*Inputs!$D$12 + (BE21+BF21)*Inputs!$D$11)/BG21) -> 0.7 | BI21: =IF($C21 >Inputs!$C$38,"",AY21*IF(Inputs!$H$13="Externally",Inputs!$F$13,0)+BC21*IF(Inputs!$H$12="Externally",Inputs!$F$12,0)+BF21*IF(Inputs!$H$11="Externally",Inputs!$F$11,0)) -> 4.981122692 | BJ21: =IF($C21 >Inputs!$C$38,"",AY21*IF(Inputs!$H$13="Directly",Inputs!$F$13,0)+BC21*IF(Inputs!$H$12="Directly",Inputs!$F$12,0)+BF21*IF(Inputs!$H$11="Directly",Inputs!$F$11,0)) -> 16.43664799 | BK21: =IF($C21 >Inputs!$C$38,"",SUM(BI21:BJ21)) -> 21.41777068 | BL21: =IF($C21 >Inputs!$C$38,"",BE21/BG21) -> 0.1188986595 | BM21: =IF($C21 >Inputs!$C$38,"",BF21/BG21) -> 0.07926577302 | BN21: =IF($C21 >Inputs!$C$38,"",BB21/BG21) -> 0.1972466488 | BO21: =IF($C21 >Inputs!$C$38,"",BC21/BG21) -> 0.1972466488 | BP21: =IF($C21 >Inputs!$C$38,"",AX21/BG21) -> 0.2444053619 | BQ21: =IF($C21 >Inputs!$C$38,"",AY21/BG21) -> 0.1629369079 | BR21: =IF($C21 >Inputs!$C$38,"",BP21+BQ21) -> 0.4073422698 | BS21: =IF($C21 >Inputs!$C$38,"",SUM(BL21:BM21)-Inputs!$D$23) -> -0.02683556745 | BT21: =IF($C21 >Inputs!$C$38,"",SUM(BN21:BO21)-Inputs!$C$23) -> -0.08050670234 | BU21: =IF($C21 >Inputs!$C$38,"",SUM(BP21:BQ21)-Inputs!$E$24) -> 0.1073422698 | BV21: =IF($C21 >Inputs!$C$38,"",BS21*Inputs!$D$30) -> -0.0008050670234 | BW21: =IF($C21 >Inputs!$C$38,"",BT21*Inputs!$D$31) -> -0.009660804281 | BX21: =IF($C21 >Inputs!$C$38,"",BU21*Inputs!$D$32) -> 0.007513958885 | BY21: =IF($C21 >Inputs!$C$38,"",SUMPRODUCT($BV21:$BX21,Inputs!$C$53:$E$53)) -> -0.0008050670234 | BZ21: =IF($C21 >Inputs!$C$38,"",SUMPRODUCT($BV21:$BX21,Inputs!$C$54:$E$54)) -> -0.004401033061 | CA21: =IF($C21 >Inputs!$C$38,"",SUMPRODUCT($BV21:$BX21,Inputs!$C$55:$E$55)) -> 0.0007513958885 | CB21: =IF($C21 >Inputs!$C$38,"",SQRT(BV21*BY21+BW21*BZ21+BX21*CA21)) -> 0.006986530596 | CC21: =Inputs!$D$23*Inputs!$C$30+Inputs!$C$23*Inputs!$C$31+Inputs!$E$24*Inputs!$C$32 -> 0.051 | CD21: =(Inputs!$D$23+BS21)*Inputs!$C$30+(Inputs!$C$23+BT21)*Inputs!$C$31+(Inputs!$E$24+BU21)*Inputs!$C$32 -> 0.0520734227 | CE21: =BS21*Inputs!$C$30+BT21*Inputs!$C$31+BU21*Inputs!$C$32 -> 0.001073422698 | CF21: =IF($C21 >Inputs!$C$38,"",IF(MOD($C21,Inputs!$E$32)=0,0,CF20+(U21-S21))) -> -0.04215476066 | CG21: =IF($C21 >Inputs!$C$38,"",IF(MOD($C21,Inputs!$E$32)=0,0,CG20+(V21-T21))) -> -0.04215476066 | CH21: =IF($C21 >Inputs!$C$38,"",-(CF21*H21+CG21*I21)/BG21) -> 0.01715408874 | CI21: =IF($C21 >Inputs!$C$38,"",BU21*(Inputs!$C$60+Inputs!$C$39*Inputs!$C$61)) -> 0.02254187666 | CJ21: =IF($C21 >Inputs!$C$38,"",Inputs!$E$24) -> 0.3
C22: 16 | D22: =IF($C22-1 >Inputs!$C$38,"",BE21) -> 7.471684038 | E22: =IF($C22-1 >Inputs!$C$38,"",BF21) -> 4.981122692 | F22: =IF($C22-1 >Inputs!$C$38,"",BB21) -> 12.39513249 | G22: =IF($C22-1 >Inputs!$C$38,"",BC21) -> 12.39513249 | H22: =IF($C22-1 >Inputs!$C$38,"",AX21) -> 15.35862261 | I22: =IF($C22-1 >Inputs!$C$38,"",AY21) -> 10.23908174 | J22: =IF($C22-1 >Inputs!$C$38,"",SUM(D22:I22)) -> 62.84077606 | K22: 0.4073422698 | L22: =IF($C22-1 >Inputs!$C$38,"",BI21) -> 4.981122692 | M22: =IF($C22-1 >Inputs!$C$38,"",BJ21) -> 16.43664799 | N22: =IF($C22-1 >Inputs!$C$38,"",L22+M22) -> 21.41777068 | O22: =IF($C22 >Inputs!$C$38,"",Inputs!$F$30) -> 0.009831632476 | P22: =IF($C22 >Inputs!$C$38,"",Inputs!$F$30) -> 0.009831632476 | Q22: =IF($C22 >Inputs!$C$38,"",Inputs!$F$31) -> -0.02765986324 | R22: =IF($C22 >Inputs!$C$38,"",Inputs!$F$31) -> -0.02765986324 | S22: =IF($C22 >Inputs!$C$38,"",IF(MOD(C22,Inputs!$E$32)=0,Inputs!$G$32,Inputs!$F$32)) -> 0 | T22: 0 | U22: =IF($C22 >Inputs!$C$38,"",Inputs!$I$32) -> -0.01405158689 | V22: -0.01405158689 | W22: =IF($C22 >Inputs!$C$38,"",Inputs!$F$33) -> -0.01905158689 | X22: =IF($C22 >Inputs!$C$38,"",Inputs!$F$33) -> -0.01905158689 | Y22: =IF($C22 >Inputs!$C$38,"",D22*(1+O22)) -> 7.545142889 | Z22: =IF($C22 >Inputs!$C$38,"",E22*(1+P22)) -> 5.03009526 | AA22: =IF($C22 >Inputs!$C$38,"",F22*(1+Q22)) -> 12.05228482 | AB22: =IF($C22 >Inputs!$C$38,"",G22*(1+R22)) -> 12.05228482 | AC22: =IF($C22 >Inputs!$C$38,"",H22*(1+S22)) -> 15.35862261 | AD22: =IF($C22 >Inputs!$C$38,"",I22*(1+T22)) -> 10.23908174 | AE22: =IF($C22 >Inputs!$C$38,"",SUM(Y22:AD22)) -> 62.27751214 | AF22: =IF($C22 >Inputs!$C$38,"",L22*(1+W22)) -> 4.8862244 | AG22: =IF($C22 >Inputs!$C$38,"",M22*(1+X22)) -> 16.12350376 | AH22: =IF($C22 >Inputs!$C$38,"",AF22+AG22) -> 21.00972816 | AI22: =IF($C22 >Inputs!$C$38,"",AE22+AG22-M22) -> 61.96436792 | AJ22: =IF($C22 >Inputs!$C$38,"",AG22-M22) -> -0.3131442273 | AK22: =IF($C22 >Inputs!$C$38,"",Inputs!$C$45*$C$5) -> 0.5 | AL22: =IF($C22 >Inputs!$C$38,"",Inputs!$C$46*$C$5) -> -1 | AM22: =IF($C22 >Inputs!$C$38,"",-Inputs!$F$44*J22) -> -0.3142038803 | AN22: =IF($C22 >Inputs!$C$38,"",SUM(AJ22:AM22)) -> -1.127348108 | AO22: =IF($C22 >Inputs!$C$38,"",AE22+AN22) -> 61.15016404 | AP22: =-J22*Inputs!$F$48 -> -0.02513631043 | AQ22: =IF($C22 >Inputs!$C$38,"",Inputs!$C$11*(1-Inputs!$E$11)*AO22) -> 8.255272145 | AR22: =IF($C22 >Inputs!$C$38,"",Inputs!$C$11*Inputs!$E$11*AO22) -> 5.503514763 | AS22: =IF($C22 >Inputs!$C$38,"",Inputs!$C$12*(1-Inputs!$E$12)*AO22) -> 14.52316396 | AT22: =IF($C22 >Inputs!$C$38,"",Inputs!$C$12*Inputs!$E$12*AO22) -> 14.52316396 | AU22: =IF($C22 >Inputs!$C$38,"",Inputs!$C$13*(1-Inputs!$E$13)*AO22) -> 11.00702953 | AV22: =IF($C22 >Inputs!$C$38,"",Inputs!$C$13*Inputs!$E$13*AO22) -> 7.338019684 | AW22: =IF($C22 >Inputs!$C$38,"",((AQ22+AR22)*Inputs!$D$11 + (AS22+AT22)*Inputs!$D$12 + (AU22+AV22)*Inputs!$D$13)/AO22) -> 0.7 | AX22: =AC22-AP22*Inputs!$E$21/Inputs!$E$23 -> 15.3737044 | AY22: =AD22-AP22*Inputs!$E$22/Inputs!$E$23 -> 10.24913627 | AZ22: =IF($C22 >Inputs!$C$38,"",(AX22+AY22)*Inputs!$D$13) -> 19.2171305 | BA22: =IF($C22 >Inputs!$C$38,"",AO22*Inputs!$C$24-AZ22) -> 23.58798432 | BB22: =IF($C22 >Inputs!$C$38,"",BA22*(1-Inputs!$E$12)) -> 11.79399216 | BC22: =IF($C22 >Inputs!$C$38,"",BA22*Inputs!$E$12) -> 11.79399216 | BD22: =IF($C22 >Inputs!$C$38,"",AO22-SUM(AX22:AY22)-BA22) -> 11.93933904 | BE22: =IF($C22 >Inputs!$C$38,"",BD22*(1-Inputs!$E$11)) -> 7.163603426 | BF22: =IF($C22 >Inputs!$C$38,"",BD22*Inputs!$E$11) -> 4.775735618 | BG22: =IF($C22 >Inputs!$C$38,"",SUM(AX22,AY22,BB22,BC22,BE22,BF22)) -> 61.15016404 | BH22: =IF($C22 >Inputs!$C$38,"",((AX22+AY22)*Inputs!$D$13 + (BB22+BC22)*Inputs!$D$12 + (BE22+BF22)*Inputs!$D$11)/BG22) -> 0.7 | BI22: =IF($C22 >Inputs!$C$38,"",AY22*IF(Inputs!$H$13="Externally",Inputs!$F$13,0)+BC22*IF(Inputs!$H$12="Externally",Inputs!$F$12,0)+BF22*IF(Inputs!$H$11="Externally",Inputs!$F$11,0)) -> 4.775735618 | BJ22: =IF($C22 >Inputs!$C$38,"",AY22*IF(Inputs!$H$13="Directly",Inputs!$F$13,0)+BC22*IF(Inputs!$H$12="Directly",Inputs!$F$12,0)+BF22*IF(Inputs!$H$11="Directly",Inputs!$F$11,0)) -> 16.14613235 | BK22: =IF($C22 >Inputs!$C$38,"",SUM(BI22:BJ22)) -> 20.92186797 | BL22: =IF($C22 >Inputs!$C$38,"",BE22/BG22) -> 0.1171477385 | BM22: =IF($C22 >Inputs!$C$38,"",BF22/BG22) -> 0.07809849234 | BN22: =IF($C22 >Inputs!$C$38,"",BB22/BG22) -> 0.1928693463 | BO22: =IF($C22 >Inputs!$C$38,"",BC22/BG22) -> 0.1928693463 | BP22: =IF($C22 >Inputs!$C$38,"",AX22/BG22) -> 0.251409046 | BQ22: =IF($C22 >Inputs!$C$38,"",AY22/BG22) -> 0.1676060306 | BR22: =IF($C22 >Inputs!$C$38,"",BP22+BQ22) -> 0.4190150766 | BS22: =IF($C22 >Inputs!$C$38,"",SUM(BL22:BM22)-Inputs!$D$23) -> -0.02975376915 | BT22: =IF($C22 >Inputs!$C$38,"",SUM(BN22:BO22)-Inputs!$C$23) -> -0.08926130745 | BU22: =IF($C22 >Inputs!$C$38,"",SUM(BP22:BQ22)-Inputs!$E$24) -> 0.1190150766 | BV22: =IF($C22 >Inputs!$C$38,"",BS22*Inputs!$D$30) -> -0.0008926130745 | BW22: =IF($C22 >Inputs!$C$38,"",BT22*Inputs!$D$31) -> -0.01071135689 | BX22: =IF($C22 >Inputs!$C$38,"",BU22*Inputs!$D$32) -> 0.008331055362 | BY22: =IF($C22 >Inputs!$C$38,"",SUMPRODUCT($BV22:$BX22,Inputs!$C$53:$E$53)) -> -0.0008926130745 | BZ22: =IF($C22 >Inputs!$C$38,"",SUMPRODUCT($BV22:$BX22,Inputs!$C$54:$E$54)) -> -0.00487961814 | CA22: =IF($C22 >Inputs!$C$38,"",SUMPRODUCT($BV22:$BX22,Inputs!$C$55:$E$55)) -> 0.0008331055362 | CB22: =IF($C22 >Inputs!$C$38,"",SQRT(BV22*BY22+BW22*BZ22+BX22*CA22)) -> 0.007746272513 | CC22: =Inputs!$D$23*Inputs!$C$30+Inputs!$C$23*Inputs!$C$31+Inputs!$E$24*Inputs!$C$32 -> 0.051 | CD22: =(Inputs!$D$23+BS22)*Inputs!$C$30+(Inputs!$C$23+BT22)*Inputs!$C$31+(Inputs!$E$24+BU22)*Inputs!$C$32 -> 0.05219015077 | CE22: =BS22*Inputs!$C$30+BT22*Inputs!$C$31+BU22*Inputs!$C$32 -> 0.001190150766 | CF22: =IF($C22 >Inputs!$C$38,"",IF(MOD($C22,Inputs!$E$32)=0,0,CF21+(U22-S22))) -> -0.05620634755 | CG22: =IF($C22 >Inputs!$C$38,"",IF(MOD($C22,Inputs!$E$32)=0,0,CG21+(V22-T22))) -> -0.05620634755 | CH22: =IF($C22 >Inputs!$C$38,"",-(CF22*H22+CG22*I22)/BG22) -> 0.02352820291 | CI22: =IF($C22 >Inputs!$C$38,"",BU22*(Inputs!$C$60+Inputs!$C$39*Inputs!$C$61)) -> 0.02499316609 | CJ22: =IF($C22 >Inputs!$C$38,"",Inputs!$E$24) -> 0.3
C23: 17 | D23: =IF($C23-1 >Inputs!$C$38,"",BE22) -> 7.163603426 | E23: =IF($C23-1 >Inputs!$C$38,"",BF22) -> 4.775735618 | F23: =IF($C23-1 >Inputs!$C$38,"",BB22) -> 11.79399216 | G23: =IF($C23-1 >Inputs!$C$38,"",BC22) -> 11.79399216 | H23: =IF($C23-1 >Inputs!$C$38,"",AX22) -> 15.3737044 | I23: =IF($C23-1 >Inputs!$C$38,"",AY22) -> 10.24913627 | J23: =IF($C23-1 >Inputs!$C$38,"",SUM(D23:I23)) -> 61.15016404 | K23: 0.4190150766 | L23: =IF($C23-1 >Inputs!$C$38,"",BI22) -> 4.775735618 | M23: =IF($C23-1 >Inputs!$C$38,"",BJ22) -> 16.14613235 | N23: =IF($C23-1 >Inputs!$C$38,"",L23+M23) -> 20.92186797 | O23: =IF($C23 >Inputs!$C$38,"",Inputs!$F$30) -> 0.009831632476 | P23: =IF($C23 >Inputs!$C$38,"",Inputs!$F$30) -> 0.009831632476 | Q23: =IF($C23 >Inputs!$C$38,"",Inputs!$F$31) -> -0.02765986324 | R23: =IF($C23 >Inputs!$C$38,"",Inputs!$F$31) -> -0.02765986324 | S23: =IF($C23 >Inputs!$C$38,"",IF(MOD(C23,Inputs!$E$32)=0,Inputs!$G$32,Inputs!$F$32)) -> 0 | T23: 0 | U23: =IF($C23 >Inputs!$C$38,"",Inputs!$I$32) -> -0.01405158689 | V23: -0.01405158689 | W23: =IF($C23 >Inputs!$C$38,"",Inputs!$F$33) -> -0.01905158689 | X23: =IF($C23 >Inputs!$C$38,"",Inputs!$F$33) -> -0.01905158689 | Y23: =IF($C23 >Inputs!$C$38,"",D23*(1+O23)) -> 7.234033343 | Z23: =IF($C23 >Inputs!$C$38,"",E23*(1+P23)) -> 4.822688895 | AA23: =IF($C23 >Inputs!$C$38,"",F23*(1+Q23)) -> 11.46777195 | AB23: =IF($C23 >Inputs!$C$38,"",G23*(1+R23)) -> 11.46777195 | AC23: =IF($C23 >Inputs!$C$38,"",H23*(1+S23)) -> 15.3737044 | AD23: =IF($C23 >Inputs!$C$38,"",I23*(1+T23)) -> 10.24913627 | AE23: =IF($C23 >Inputs!$C$38,"",SUM(Y23:AD23)) -> 60.61510681 | AF23: =IF($C23 >Inputs!$C$38,"",L23*(1+W23)) -> 4.684750276 | AG23: =IF($C23 >Inputs!$C$38,"",M23*(1+X23)) -> 15.8385229 | AH23: =IF($C23 >Inputs!$C$38,"",AF23+AG23) -> 20.52327318 | AI23: =IF($C23 >Inputs!$C$38,"",AE23+AG23-M23) -> 60.30749737 | AJ23: =IF($C23 >Inputs!$C$38,"",AG23-M23) -> -0.3076094433 | AK23: =IF($C23 >Inputs!$C$38,"",Inputs!$C$45*$C$5) -> 0.5 | AL23: =IF($C23 >Inputs!$C$38,"",Inputs!$C$46*$C$5) -> -1 | AM23: =IF($C23 >Inputs!$C$38,"",-Inputs!$F$44*J23) -> -0.3057508202 | AN23: =IF($C23 >Inputs!$C$38,"",SUM(AJ23:AM23)) -> -1.113360264 | AO23: =IF($C23 >Inputs!$C$38,"",AE23+AN23) -> 59.50174655 | AP23: =-J23*Inputs!$F$48 -> -0.02446006561 | AQ23: =IF($C23 >Inputs!$C$38,"",Inputs!$C$11*(1-Inputs!$E$11)*AO23) -> 8.032735784 | AR23: =IF($C23 >Inputs!$C$38,"",Inputs!$C$11*Inputs!$E$11*AO23) -> 5.355157189 | AS23: =IF($C23 >Inputs!$C$38,"",Inputs!$C$12*(1-Inputs!$E$12)*AO23) -> 14.1316648 | AT23: =IF($C23 >Inputs!$C$38,"",Inputs!$C$12*Inputs!$E$12*AO23) -> 14.1316648 | AU23: =IF($C23 >Inputs!$C$38,"",Inputs!$C$13*(1-Inputs!$E$13)*AO23) -> 10.71031438 | AV23: =IF($C23 >Inputs!$C$38,"",Inputs!$C$13*Inputs!$E$13*AO23) -> 7.140209586 | AW23: =IF($C23 >Inputs!$C$38,"",((AQ23+AR23)*Inputs!$D$11 + (AS23+AT23)*Inputs!$D$12 + (AU23+AV23)*Inputs!$D$13)/AO23) -> 0.7 | AX23: =AC23-AP23*Inputs!$E$21/Inputs!$E$23 -> 15.38838044 | AY23: =AD23-AP23*Inputs!$E$22/Inputs!$E$23 -> 10.25892029 | AZ23: =IF($C23 >Inputs!$C$38,"",(AX23+AY23)*Inputs!$D$13) -> 19.23547555 | BA23: =IF($C23 >Inputs!$C$38,"",AO23*Inputs!$C$24-AZ23) -> 22.41574703 | BB23: =IF($C23 >Inputs!$C$38,"",BA23*(1-Inputs!$E$12)) -> 11.20787352 | BC23: =IF($C23 >Inputs!$C$38,"",BA23*Inputs!$E$12) -> 11.20787352 | BD23: =IF($C23 >Inputs!$C$38,"",AO23-SUM(AX23:AY23)-BA23) -> 11.43869878 | BE23: =IF($C23 >Inputs!$C$38,"",BD23*(1-Inputs!$E$11)) -> 6.863219268 | BF23: =IF($C23 >Inputs!$C$38,"",BD23*Inputs!$E$11) -> 4.575479512 | BG23: =IF($C23 >Inputs!$C$38,"",SUM(AX23,AY23,BB23,BC23,BE23,BF23)) -> 59.50174655 | BH23: =IF($C23 >Inputs!$C$38,"",((AX23+AY23)*Inputs!$D$13 + (BB23+BC23)*Inputs!$D$12 + (BE23+BF23)*Inputs!$D$11)/BG23) -> 0.7 | BI23: =IF($C23 >Inputs!$C$38,"",AY23*IF(Inputs!$H$13="Externally",Inputs!$F$13,0)+BC23*IF(Inputs!$H$12="Externally",Inputs!$F$12,0)+BF23*IF(Inputs!$H$11="Externally",Inputs!$F$11,0)) -> 4.575479512 | BJ23: =IF($C23 >Inputs!$C$38,"",AY23*IF(Inputs!$H$13="Directly",Inputs!$F$13,0)+BC23*IF(Inputs!$H$12="Directly",Inputs!$F$12,0)+BF23*IF(Inputs!$H$11="Directly",Inputs!$F$11,0)) -> 15.86285705 | BK23: =IF($C23 >Inputs!$C$38,"",SUM(BI23:BJ23)) -> 20.43833656 | BL23: =IF($C23 >Inputs!$C$38,"",BE23/BG23) -> 0.1153448372 | BM23: =IF($C23 >Inputs!$C$38,"",BF23/BG23) -> 0.07689655813 | BN23: =IF($C23 >Inputs!$C$38,"",BB23/BG23) -> 0.188362093 | BO23: =IF($C23 >Inputs!$C$38,"",BC23/BG23) -> 0.188362093 | BP23: =IF($C23 >Inputs!$C$38,"",AX23/BG23) -> 0.2586206512 | BQ23: =IF($C23 >Inputs!$C$38,"",AY23/BG23) -> 0.1724137675 | BR23: =IF($C23 >Inputs!$C$38,"",BP23+BQ23) -> 0.4310344187 | BS23: =IF($C23 >Inputs!$C$38,"",SUM(BL23:BM23)-Inputs!$D$23) -> -0.03275860467 | BT23: =IF($C23 >Inputs!$C$38,"",SUM(BN23:BO23)-Inputs!$C$23) -> -0.09827581402 | BU23: =IF($C23 >Inputs!$C$38,"",SUM(BP23:BQ23)-Inputs!$E$24) -> 0.1310344187 | BV23: =IF($C23 >Inputs!$C$38,"",BS23*Inputs!$D$30) -> -0.0009827581402 | BW23: =IF($C23 >Inputs!$C$38,"",BT23*Inputs!$D$31) -> -0.01179309768 | BX23: =IF($C23 >Inputs!$C$38,"",BU23*Inputs!$D$32) -> 0.009172409308 | BY23: =IF($C23 >Inputs!$C$38,"",SUMPRODUCT($BV23:$BX23,Inputs!$C$53:$E$53)) -> -0.0009827581402 | BZ23: =IF($C23 >Inputs!$C$38,"",SUMPRODUCT($BV23:$BX23,Inputs!$C$54:$E$54)) -> -0.005372411166 | CA23: =IF($C23 >Inputs!$C$38,"",SUMPRODUCT($BV23:$BX23,Inputs!$C$55:$E$55)) -> 0.0009172409308 | CB23: =IF($C23 >Inputs!$C$38,"",SQRT(BV23*BY23+BW23*BZ23+BX23*CA23)) -> 0.008528569193 | CC23: =Inputs!$D$23*Inputs!$C$30+Inputs!$C$23*Inputs!$C$31+Inputs!$E$24*Inputs!$C$32 -> 0.051 | CD23: =(Inputs!$D$23+BS23)*Inputs!$C$30+(Inputs!$C$23+BT23)*Inputs!$C$31+(Inputs!$E$24+BU23)*Inputs!$C$32 -> 0.05231034419 | CE23: =BS23*Inputs!$C$30+BT23*Inputs!$C$31+BU23*Inputs!$C$32 -> 0.001310344187 | CF23: =IF($C23 >Inputs!$C$38,"",IF(MOD($C23,Inputs!$E$32)=0,0,CF22+(U23-S23))) -> -0.07025793444 | CG23: =IF($C23 >Inputs!$C$38,"",IF(MOD($C23,Inputs!$E$32)=0,0,CG22+(V23-T23))) -> -0.07025793444 | CH23: =IF($C23 >Inputs!$C$38,"",-(CF23*H23+CG23*I23)/BG23) -> 0.03025470619 | CI23: =IF($C23 >Inputs!$C$38,"",BU23*(Inputs!$C$60+Inputs!$C$39*Inputs!$C$61)) -> 0.02751722792 | CJ23: =IF($C23 >Inputs!$C$38,"",Inputs!$E$24) -> 0.3
C24: 18 | D24: =IF($C24-1 >Inputs!$C$38,"",BE23) -> 6.863219268 | E24: =IF($C24-1 >Inputs!$C$38,"",BF23) -> 4.575479512 | F24: =IF($C24-1 >Inputs!$C$38,"",BB23) -> 11.20787352 | G24: =IF($C24-1 >Inputs!$C$38,"",BC23) -> 11.20787352 | H24: =IF($C24-1 >Inputs!$C$38,"",AX23) -> 15.38838044 | I24: =IF($C24-1 >Inputs!$C$38,"",AY23) -> 10.25892029 | J24: =IF($C24-1 >Inputs!$C$38,"",SUM(D24:I24)) -> 59.50174655 | K24: 0.4310344187 | L24: =IF($C24-1 >Inputs!$C$38,"",BI23) -> 4.575479512 | M24: =IF($C24-1 >Inputs!$C$38,"",BJ23) -> 15.86285705 | N24: =IF($C24-1 >Inputs!$C$38,"",L24+M24) -> 20.43833656 | O24: =IF($C24 >Inputs!$C$38,"",Inputs!$F$30) -> 0.009831632476 | P24: =IF($C24 >Inputs!$C$38,"",Inputs!$F$30) -> 0.009831632476 | Q24: =IF($C24 >Inputs!$C$38,"",Inputs!$F$31) -> -0.02765986324 | R24: =IF($C24 >Inputs!$C$38,"",Inputs!$F$31) -> -0.02765986324 | S24: =IF($C24 >Inputs!$C$38,"",IF(MOD(C24,Inputs!$E$32)=0,Inputs!$G$32,Inputs!$F$32)) -> -0.08430952133 | T24: -0.08430952133 | U24: =IF($C24 >Inputs!$C$38,"",Inputs!$I$32) -> -0.01405158689 | V24: -0.01405158689 | W24: =IF($C24 >Inputs!$C$38,"",Inputs!$F$33) -> -0.01905158689 | X24: =IF($C24 >Inputs!$C$38,"",Inputs!$F$33) -> -0.01905158689 | Y24: =IF($C24 >Inputs!$C$38,"",D24*(1+O24)) -> 6.930695918 | Z24: =IF($C24 >Inputs!$C$38,"",E24*(1+P24)) -> 4.620463945 | AA24: =IF($C24 >Inputs!$C$38,"",F24*(1+Q24)) -> 10.89786527 | AB24: =IF($C24 >Inputs!$C$38,"",G24*(1+R24)) -> 10.89786527 | AC24: =IF($C24 >Inputs!$C$38,"",H24*(1+S24)) -> 14.09099345 | AD24: =IF($C24 >Inputs!$C$38,"",I24*(1+T24)) -> 9.393995634 | AE24: =IF($C24 >Inputs!$C$38,"",SUM(Y24:AD24)) -> 56.83187948 | AF24: =IF($C24 >Inputs!$C$38,"",L24*(1+W24)) -> 4.488309367 | AG24: =IF($C24 >Inputs!$C$38,"",M24*(1+X24)) -> 15.56064445 | AH24: =IF($C24 >Inputs!$C$38,"",AF24+AG24) -> 20.04895382 | AI24: =IF($C24 >Inputs!$C$38,"",AE24+AG24-M24) -> 56.52966688 | AJ24: =IF($C24 >Inputs!$C$38,"",AG24-M24) -> -0.3022125994 | AK24: =IF($C24 >Inputs!$C$38,"",Inputs!$C$45*$C$5) -> 0.5 | AL24: =IF($C24 >Inputs!$C$38,"",Inputs!$C$46*$C$5) -> -1 | AM24: =IF($C24 >Inputs!$C$38,"",-Inputs!$F$44*J24) -> -0.2975087327 | AN24: =IF($C24 >Inputs!$C$38,"",SUM(AJ24:AM24)) -> -1.099721332 | AO24: =IF($C24 >Inputs!$C$38,"",AE24+AN24) -> 55.73215815 | AP24: =-J24*Inputs!$F$48 -> -0.02380069862 | AQ24: =IF($C24 >Inputs!$C$38,"",Inputs!$C$11*(1-Inputs!$E$11)*AO24) -> 7.52384135 | AR24: =IF($C24 >Inputs!$C$38,"",Inputs!$C$11*Inputs!$E$11*AO24) -> 5.015894234 | AS24: =IF($C24 >Inputs!$C$38,"",Inputs!$C$12*(1-Inputs!$E$12)*AO24) -> 13.23638756 | AT24: =IF($C24 >Inputs!$C$38,"",Inputs!$C$12*Inputs!$E$12*AO24) -> 13.23638756 | AU24: =IF($C24 >Inputs!$C$38,"",Inputs!$C$13*(1-Inputs!$E$13)*AO24) -> 10.03178847 | AV24: =IF($C24 >Inputs!$C$38,"",Inputs!$C$13*Inputs!$E$13*AO24) -> 6.687858978 | AW24: =IF($C24 >Inputs!$C$38,"",((AQ24+AR24)*Inputs!$D$11 + (AS24+AT24)*Inputs!$D$12 + (AU24+AV24)*Inputs!$D$13)/AO24) -> 0.7 | AX24: =IF($C24 >Inputs!$C$38,"",AC24) -> 14.09099345 | AY24: =IF($C24 >Inputs!$C$38,"",AD24) -> 9.393995634 | AZ24: =IF($C24 >Inputs!$C$38,"",(AX24+AY24)*Inputs!$D$13) -> 17.61374181 | BA24: =IF($C24 >Inputs!$C$38,"",AO24*Inputs!$C$24-AZ24) -> 21.39876889 | BB24: =IF($C24 >Inputs!$C$38,"",BA24*(1-Inputs!$E$12)) -> 10.69938445 | BC24: =IF($C24 >Inputs!$C$38,"",BA24*Inputs!$E$12) -> 10.69938445 | BD24: =IF($C24 >Inputs!$C$38,"",AO24-SUM(AX24:AY24)-BA24) -> 10.84840017 | BE24: =IF($C24 >Inputs!$C$38,"",BD24*(1-Inputs!$E$11)) -> 6.509040104 | BF24: =IF($C24 >Inputs!$C$38,"",BD24*Inputs!$E$11) -> 4.33936007 | BG24: =IF($C24 >Inputs!$C$38,"",SUM(AX24,AY24,BB24,BC24,BE24,BF24)) -> 55.73215815 | BH24: =IF($C24 >Inputs!$C$38,"",((AX24+AY24)*Inputs!$D$13 + (BB24+BC24)*Inputs!$D$12 + (BE24+BF24)*Inputs!$D$11)/BG24) -> 0.7 | BI24: =IF($C24 >Inputs!$C$38,"",AY24*IF(Inputs!$H$13="Externally",Inputs!$F$13,0)+BC24*IF(Inputs!$H$12="Externally",Inputs!$F$12,0)+BF24*IF(Inputs!$H$11="Externally",Inputs!$F$11,0)) -> 4.33936007 | BJ24: =IF($C24 >Inputs!$C$38,"",AY24*IF(Inputs!$H$13="Directly",Inputs!$F$13,0)+BC24*IF(Inputs!$H$12="Directly",Inputs!$F$12,0)+BF24*IF(Inputs!$H$11="Directly",Inputs!$F$11,0)) -> 14.74368786 | BK24: =IF($C24 >Inputs!$C$38,"",SUM(BI24:BJ24)) -> 19.08304793 | BL24: =IF($C24 >Inputs!$C$38,"",BE24/BG24) -> 0.1167914597 | BM24: =IF($C24 >Inputs!$C$38,"",BF24/BG24) -> 0.07786097315 | BN24: =IF($C24 >Inputs!$C$38,"",BB24/BG24) -> 0.1919786493 | BO24: =IF($C24 >Inputs!$C$38,"",BC24/BG24) -> 0.1919786493 | BP24: =IF($C24 >Inputs!$C$38,"",AX24/BG24) -> 0.2528341611 | BQ24: =IF($C24 >Inputs!$C$38,"",AY24/BG24) -> 0.1685561074 | BR24: =IF($C24 >Inputs!$C$38,"",BP24+BQ24) -> 0.4213902685 | BS24: =IF($C24 >Inputs!$C$38,"",SUM(BL24:BM24)-Inputs!$D$23) -> -0.03034756712 | BT24: =IF($C24 >Inputs!$C$38,"",SUM(BN24:BO24)-Inputs!$C$23) -> -0.09104270135 | BU24: =IF($C24 >Inputs!$C$38,"",SUM(BP24:BQ24)-Inputs!$E$24) -> 0.1213902685 | BV24: =IF($C24 >Inputs!$C$38,"",BS24*Inputs!$D$30) -> -0.0009104270135 | BW24: =IF($C24 >Inputs!$C$38,"",BT24*Inputs!$D$31) -> -0.01092512416 | BX24: =IF($C24 >Inputs!$C$38,"",BU24*Inputs!$D$32) -> 0.008497318792 | BY24: =IF($C24 >Inputs!$C$38,"",SUMPRODUCT($BV24:$BX24,Inputs!$C$53:$E$53)) -> -0.0009104270135 | BZ24: =IF($C24 >Inputs!$C$38,"",SUMPRODUCT($BV24:$BX24,Inputs!$C$54:$E$54)) -> -0.004977001007 | CA24: =IF($C24 >Inputs!$C$38,"",SUMPRODUCT($BV24:$BX24,Inputs!$C$55:$E$55)) -> 0.0008497318792 | CB24: =IF($C24 >Inputs!$C$38,"",SQRT(BV24*BY24+BW24*BZ24+BX24*CA24)) -> 0.007900865393 | CC24: =Inputs!$D$23*Inputs!$C$30+Inputs!$C$23*Inputs!$C$31+Inputs!$E$24*Inputs!$C$32 -> 0.051 | CD24: =(Inputs!$D$23+BS24)*Inputs!$C$30+(Inputs!$C$23+BT24)*Inputs!$C$31+(Inputs!$E$24+BU24)*Inputs!$C$32 -> 0.05221390268 | CE24: =BS24*Inputs!$C$30+BT24*Inputs!$C$31+BU24*Inputs!$C$32 -> 0.001213902685 | CF24: =IF($C24 >Inputs!$C$38,"",IF(MOD($C24,Inputs!$E$32)=0,0,CF23+(U24-S24))) -> 0 | CG24: =IF($C24 >Inputs!$C$38,"",IF(MOD($C24,Inputs!$E$32)=0,0,CG23+(V24-T24))) -> 0 | CH24: =IF($C24 >Inputs!$C$38,"",-(CF24*H24+CG24*I24)/BG24) -> 0 | CI24: =IF($C24 >Inputs!$C$38,"",BU24*(Inputs!$C$60+Inputs!$C$39*Inputs!$C$61)) -> 0.02549195638 | CJ24: =IF($C24 >Inputs!$C$38,"",Inputs!$E$24) -> 0.3
C25: 19 | D25: =IF($C25-1 >Inputs!$C$38,"",BE24) -> 6.509040104 | E25: =IF($C25-1 >Inputs!$C$38,"",BF24) -> 4.33936007 | F25: =IF($C25-1 >Inputs!$C$38,"",BB24) -> 10.69938445 | G25: =IF($C25-1 >Inputs!$C$38,"",BC24) -> 10.69938445 | H25: =IF($C25-1 >Inputs!$C$38,"",AX24) -> 14.09099345 | I25: =IF($C25-1 >Inputs!$C$38,"",AY24) -> 9.393995634 | J25: =IF($C25-1 >Inputs!$C$38,"",SUM(D25:I25)) -> 55.73215815 | K25: 0.4213902685 | L25: =IF($C25-1 >Inputs!$C$38,"",BI24) -> 4.33936007 | M25: =IF($C25-1 >Inputs!$C$38,"",BJ24) -> 14.74368786 | N25: =IF($C25-1 >Inputs!$C$38,"",L25+M25) -> 19.08304793 | O25: =IF($C25 >Inputs!$C$38,"",Inputs!$F$30) ->  | P25: =IF($C25 >Inputs!$C$38,"",Inputs!$F$30) ->  | Q25: =IF($C25 >Inputs!$C$38,"",Inputs!$F$31) ->  | R25: =IF($C25 >Inputs!$C$38,"",Inputs!$F$31) ->  | S25: =IF($C25 >Inputs!$C$38,"",IF(MOD(C25,Inputs!$E$32)=0,Inputs!$G$32,Inputs!$F$32)) ->  | U25: =IF($C25 >Inputs!$C$38,"",Inputs!$I$32) ->  | W25: =IF($C25 >Inputs!$C$38,"",Inputs!$F$33) ->  | X25: =IF($C25 >Inputs!$C$38,"",Inputs!$F$33) ->  | Y25: =IF($C25 >Inputs!$C$38,"",D25*(1+O25)) ->  | Z25: =IF($C25 >Inputs!$C$38,"",E25*(1+P25)) ->  | AA25: =IF($C25 >Inputs!$C$38,"",F25*(1+Q25)) ->  | AB25: =IF($C25 >Inputs!$C$38,"",G25*(1+R25)) ->  | AC25: =IF($C25 >Inputs!$C$38,"",H25*(1+S25)) ->  | AD25: =IF($C25 >Inputs!$C$38,"",I25*(1+T25)) ->  | AE25: =IF($C25 >Inputs!$C$38,"",SUM(Y25:AD25)) ->  | AF25: =IF($C25 >Inputs!$C$38,"",L25*(1+W25)) ->  | AG25: =IF($C25 >Inputs!$C$38,"",M25*(1+X25)) ->  | AH25: =IF($C25 >Inputs!$C$38,"",AF25+AG25) ->  | AI25: =IF($C25 >Inputs!$C$38,"",AE25+AG25-M25) ->  | AJ25: =IF($C25 >Inputs!$C$38,"",AG25-M25) ->  | AK25: =IF($C25 >Inputs!$C$38,"",Inputs!$C$45*$C$5) ->  | AL25: =IF($C25 >Inputs!$C$38,"",Inputs!$C$46*$C$5) ->  | AM25: =IF($C25 >Inputs!$C$38,"",-Inputs!$F$44*J25) ->  | AN25: =IF($C25 >Inputs!$C$38,"",SUM(AJ25:AM25)) ->  | AO25: =IF($C25 >Inputs!$C$38,"",AE25+AN25) ->  | AQ25: =IF($C25 >Inputs!$C$38,"",Inputs!$C$11*(1-Inputs!$E$11)*AO25) ->  | AR25: =IF($C25 >Inputs!$C$38,"",Inputs!$C$11*Inputs!$E$11*AO25) ->  | AS25: =IF($C25 >Inputs!$C$38,"",Inputs!$C$12*(1-Inputs!$E$12)*AO25) ->  | AT25: =IF($C25 >Inputs!$C$38,"",Inputs!$C$12*Inputs!$E$12*AO25) ->  | AU25: =IF($C25 >Inputs!$C$38,"",Inputs!$C$13*(1-Inputs!$E$13)*AO25) ->  | AV25: =IF($C25 >Inputs!$C$38,"",Inputs!$C$13*Inputs!$E$13*AO25) ->  | AW25: =IF($C25 >Inputs!$C$38,"",((AQ25+AR25)*Inputs!$D$11 + (AS25+AT25)*Inputs!$D$12 + (AU25+AV25)*Inputs!$D$13)/AO25) ->  | AX25: =IF($C25 >Inputs!$C$38,"",AC25) ->  | AY25: =IF($C25 >Inputs!$C$38,"",AD25) ->  | AZ25: =IF($C25 >Inputs!$C$38,"",(AX25+AY25)*Inputs!$D$13) ->  | BA25: =IF($C25 >Inputs!$C$38,"",AO25*Inputs!$C$24-AZ25) ->  | BB25: =IF($C25 >Inputs!$C$38,"",BA25*(1-Inputs!$E$12)) ->  | BC25: =IF($C25 >Inputs!$C$38,"",BA25*Inputs!$E$12) ->  | BD25: =IF($C25 >Inputs!$C$38,"",AO25-SUM(AX25:AY25)-BA25) ->  | BE25: =IF($C25 >Inputs!$C$38,"",BD25*(1-Inputs!$E$11)) ->  | BF25: =IF($C25 >Inputs!$C$38,"",BD25*Inputs!$E$11) ->  | BG25: =IF($C25 >Inputs!$C$38,"",SUM(AX25,AY25,BB25,BC25,BE25,BF25)) ->  | BH25: =IF($C25 >Inputs!$C$38,"",((AX25+AY25)*Inputs!$D$13 + (BB25+BC25)*Inputs!$D$12 + (BE25+BF25)*Inputs!$D$11)/BG25) ->  | BI25: =IF($C25 >Inputs!$C$38,"",AY25*IF(Inputs!$H$13="Externally",Inputs!$F$13,0)+BC25*IF(Inputs!$H$12="Externally",Inputs!$F$12,0)+BF25*IF(Inputs!$H$11="Externally",Inputs!$F$11,0)) ->  | BJ25: =IF($C25 >Inputs!$C$38,"",AY25*IF(Inputs!$H$13="Directly",Inputs!$F$13,0)+BC25*IF(Inputs!$H$12="Directly",Inputs!$F$12,0)+BF25*IF(Inputs!$H$11="Directly",Inputs!$F$11,0)) ->  | BK25: =IF($C25 >Inputs!$C$38,"",SUM(BI25:BJ25)) ->  | BL25: =IF($C25 >Inputs!$C$38,"",BE25/BG25) ->  | BM25: =IF($C25 >Inputs!$C$38,"",BF25/BG25) ->  | BN25: =IF($C25 >Inputs!$C$38,"",BB25/BG25) ->  | BO25: =IF($C25 >Inputs!$C$38,"",BC25/BG25) ->  | BP25: =IF($C25 >Inputs!$C$38,"",AX25/BG25) ->  | BQ25: =IF($C25 >Inputs!$C$38,"",AY25/BG25) ->  | BR25: =IF($C25 >Inputs!$C$38,"",BP25+BQ25) ->  | BS25: =IF($C25 >Inputs!$C$38,"",SUM(BL25:BM25)-Inputs!$D$23) ->  | BT25: =IF($C25 >Inputs!$C$38,"",SUM(BN25:BO25)-Inputs!$C$23) ->  | BU25: =IF($C25 >Inputs!$C$38,"",SUM(BP25:BQ25)-Inputs!$E$24) ->  | BV25: =IF($C25 >Inputs!$C$38,"",BS25*Inputs!$D$30) ->  | BW25: =IF($C25 >Inputs!$C$38,"",BT25*Inputs!$D$31) ->  | BX25: =IF($C25 >Inputs!$C$38,"",BU25*Inputs!$D$32) ->  | BY25: =IF($C25 >Inputs!$C$38,"",SUMPRODUCT($BV25:$BX25,Inputs!$C$53:$E$53)) ->  | BZ25: =IF($C25 >Inputs!$C$38,"",SUMPRODUCT($BV25:$BX25,Inputs!$C$54:$E$54)) ->  | CA25: =IF($C25 >Inputs!$C$38,"",SUMPRODUCT($BV25:$BX25,Inputs!$C$55:$E$55)) ->  | CB25: =IF($C25 >Inputs!$C$38,"",SQRT(BV25*BY25+BW25*BZ25+BX25*CA25)) ->  | CC25: =IF($C25 >Inputs!$C$38,"",BS25*Inputs!$C$30+BT25*Inputs!$C$31+BU25*Inputs!$C$32) ->  | CF25: =IF($C25 >Inputs!$C$38,"",IF(MOD($C25,Inputs!$E$32)=0,0,CF24+(U25-S25))) ->  | CG25: =IF($C25 >Inputs!$C$38,"",IF(MOD($C25,Inputs!$E$32)=0,0,CG24+(V25-T25))) ->  | CH25: =IF($C25 >Inputs!$C$38,"",-(CF25*H25+CG25*I25)/BG25) ->  | CI25: =IF($C25 >Inputs!$C$38,"",BU25*(Inputs!$C$60+Inputs!$C$39*Inputs!$C$61)) ->  | CJ25: =IF($C25 >Inputs!$C$38,"",Inputs!$E$24) -> 

Sheet Findings (hidden)
A1: Charts
